Service Area,Service Division,Expense Type,Expense Code,Detailed Expense Type,Payment Date,Transaction Number,Amount Exc Vat,Supplier Name
Assistant Chief Executive,Partnerships & Community Engagement Div.,Transfer Payments,525030,Other,02-Dec-2013,2675143-002,"2,067.00",CHESTER LE ST PRIMARY SCHOOLS ATHLETICS ASSOCIATION.
Assistant Chief Executive,Partnerships & Community Engagement Div.,Transfer Payments,525030,Other,02-Dec-2013,2675282-008,"5,000.00",OUSTON COMMUNITY ASSOCIATION.
Assistant Chief Executive,Partnerships & Community Engagement Div.,Supplies and Services,384085,Miscellaneous Expenses,02-Dec-2013,2675175-13,500.00,DURHAM CATHEDRAL LTD.
Assistant Chief Executive,Partnerships & Community Engagement Div.,Cap Exp on Grants & Other Financial Assistance (REFCUS),918004,Contributions to other bodies,02-Dec-2013,2675313-EDUR016,"30,000.00",SEAHAM SEA CADETS.
Children and Adult Services,Central Charges (CYPS),Employees,005001,Pay,02-Dec-2013,2675260-RES-12-2013-001,"11,000.00",REDACTED - PAYMENT TO INDIVIDUAL
Children and Adult Services,Childrens care,Third Party Payments,425041,Rendered by Voluntary Organisations,02-Dec-2013,2675088-397/14,"1,194.42",ADOPTION MATTERS NORTHWEST.
Children and Adult Services,Childrens care,Third Party Payments,425040,Rendered by Voluntary Organisations,02-Dec-2013,2675155-630099706,"4,079.43",CORE ASSETS FOSTERING LTD.
Children and Adult Services,Childrens care,Third Party Payments,425040,Rendered by Voluntary Organisations,02-Dec-2013,2675155-630100197,"4,079.43",CORE ASSETS FOSTERING LTD.
Children and Adult Services,Childrens care,Supplies and Services,338027,Services,02-Dec-2013,2675181-ECSC10,"1,500.00",EC SAFEGUARDING CONSULTANCY LTD.
Children and Adult Services,Childrens care,Supplies and Services,384237,Miscellaneous Expenses,02-Dec-2013,2675237-SI-002004,675.00,LEISUREWORKS.
Children and Adult Services,Childrens care,Supplies and Services,384302,Miscellaneous Expenses,02-Dec-2013,2675237-SI-002153,700.50,LEISUREWORKS.
Children and Adult Services,Childrens care,Third Party Payments,425041,Rendered by Voluntary Organisations,02-Dec-2013,2675320-995562,"2,250.00",ST FRANCIS CHILDRENS SOCIETY.
Children and Adult Services,Childrens care,Employees,080025,Agency Staff,02-Dec-2013,2675335-4810001226,"6,592.00",TEES ESK & WEAR VALLEYS NHS FOUNDATION TRUST.
Children and Adult Services,Childrens care,Supplies and Services,338044,Services,02-Dec-2013,2675351-032143-DUR005,"1,941.20",TRIMEGA LABORATORIES LTD.
Children and Adult Services,Childrens care,Transport,235073,Public Transport,02-Dec-2013,2675362-13020165,711.45,WRIXON SECURITY SERVICES LTD T/A WRIXON CARE.
Children and Adult Services,Commissioning inc Supporting People,Third Party Payments,479101,Purchase of Care,02-Dec-2013,2675335-4810000693,"4,275.29",TEES ESK & WEAR VALLEYS NHS FOUNDATION TRUST.
Children and Adult Services,Early Intervention and Involvement,Income,720090,Fees and Charges,02-Dec-2013,2675321-11-2013-145,"1,954.00",STAINDROP SCHOOL.
Children and Adult Services,Early Intervention and Involvement,Third Party Payments,410037,Rendered by Other Local Authorities,02-Dec-2013,2675343-SII002458,"2,316.00",THE YOUTH JUSTICE BOARD.
Children and Adult Services,Early Intervention and Involvement,Third Party Payments,410037,Rendered by Other Local Authorities,02-Dec-2013,2675343-SII002459,"8,685.00",THE YOUTH JUSTICE BOARD.
Children and Adult Services,Early Intervention and Involvement,Transport,235073,Public Transport,02-Dec-2013,2675362-13019945,574.70,WRIXON SECURITY SERVICES LTD T/A WRIXON CARE.
Children and Adult Services,Education,Transport,235005,Public Transport,02-Dec-2013,2675101-106029,"31,169.50",ARRIVA NORTH EAST LTD.
Children and Adult Services,Education,Construction Work,908105,Construction work,02-Dec-2013,2675110-54597,"1,291.88",BAILEYS BLINDS CO LTD.
Children and Adult Services,Education,Supplies and Services,338035,Services,02-Dec-2013,2675131-INV162309,"1,575.00",CACHE.
Children and Adult Services,Education,Construction Work,908105,Construction work,02-Dec-2013,2675136-14430,"1,474.78",CATHEDRAL LOCK & SAFE SERVICES LTD.
Children and Adult Services,Education,Transfer Payments,510026,School Children,02-Dec-2013,2675216-SUPPORTHB,"1,392.75",HOWLETCH & SHOTTON CHILDCARE LTD.
Children and Adult Services,Education,Supplies and Services,384199,Miscellaneous Expenses,02-Dec-2013,2675271-CAS-11-2013-082,"1,869.12",NORTH EAST ENVIRONMENT NETWORK LTD.
Children and Adult Services,Education,Transfer Payments,510026,School Children,02-Dec-2013,2675312,564.30,SEAHAM HOUSE DAY NURSERY.
Children and Adult Services,Education,Transfer Payments,510026,School Children,02-Dec-2013,2675327-9237,"1,395.00",SUNSHINE DAY NURSERY.
Children and Adult Services,Head of Adults,Premises,145023,Cleaning and Domestic Supplies,02-Dec-2013,2675207-08/393701,804.07,GREENHAM TRADING LTD.
Children and Adult Services,Head of Adults,Supplies and Services,324117,Provisions,02-Dec-2013,2675227-O20325,"1,228.51",JR HOLLAND FOOD SERVICES LTD.
Children and Adult Services,Head of Adults,Supplies and Services,304259,Equipment and Materials,02-Dec-2013,2675236-SIN0552856,"1,447.06",LBS WORLDWIDE LTD T/A FRESH2O GLOBAL.
Children and Adult Services,Planning & Service Strategy,Supplies and Services,336005,Advertising,02-Dec-2013,2675299-RNE012195,"1,495.00",REAL RADIO (NORTH EAST) LTD.
Children and Adult Services,Planning & Service Strategy,Supplies and Services,336005,Advertising,02-Dec-2013,2675299-SNE007172,"1,495.00",REAL RADIO (NORTH EAST) LTD.
Children and Adult Services,Public Health,Third Party Payments,460803,Contract Payments,02-Dec-2013,2675097-FPL65/OCT/13,754.26,AR MCCONNELL LTD T/A THE VILLAGE PHARMACY.
Children and Adult Services,Public Health,Third Party Payments,460803,Contract Payments,02-Dec-2013,2675104-FDE75/OCT/13,"1,529.01",ASDA PHARMACY.
Children and Adult Services,Public Health,Third Party Payments,460803,Contract Payments,02-Dec-2013,2675105-FQ606/OCT/13,665.00,ASDA PHARMACY.
Children and Adult Services,Public Health,Third Party Payments,460803,Contract Payments,02-Dec-2013,2675106-FE649/OCT/13,944.71,ASDA PHARMACY.
Children and Adult Services,Public Health,Third Party Payments,460803,Contract Payments,02-Dec-2013,2675114,"1,002.50",BEWICK CRESCENT SURGERY.
Children and Adult Services,Public Health,Third Party Payments,460803,Contract Payments,02-Dec-2013,2675117-FH756/OCT/13,"1,133.64",BOOTS THE CHEMISTS LTD.
Children and Adult Services,Public Health,Third Party Payments,460803,Contract Payments,02-Dec-2013,2675119-FCH78/OCT/13,"1,481.16",BOOTS THE CHEMISTS LTD.
Children and Adult Services,Public Health,Third Party Payments,460803,Contract Payments,02-Dec-2013,2675120-FF604/OCT/13,"1,221.56",BOOTS THE CHEMISTS LTD.
Children and Adult Services,Public Health,Third Party Payments,460803,Contract Payments,02-Dec-2013,2675121-FGR42/AUG/13,873.97,BOOTS THE CHEMISTS LTD.
Children and Adult Services,Public Health,Third Party Payments,460803,Contract Payments,02-Dec-2013,2675121-FGR42/OCT/13,673.70,BOOTS THE CHEMISTS LTD.
Children and Adult Services,Public Health,Third Party Payments,460803,Contract Payments,02-Dec-2013,2675121-FGR42/SEPT/13,640.22,BOOTS THE CHEMISTS LTD.
Children and Adult Services,Public Health,Third Party Payments,460803,Contract Payments,02-Dec-2013,2675122-FHD21/OCT/13,934.89,BOOTS THE CHEMISTS LTD.
Children and Adult Services,Public Health,Third Party Payments,460803,Contract Payments,02-Dec-2013,2675123-FNC75/OCT/13,"1,295.71",BOOTS THE CHEMISTS LTD.
Children and Adult Services,Public Health,Third Party Payments,460803,Contract Payments,02-Dec-2013,2675139-FJV36/OCT/13,955.35,CHAMBERS CHEMIST.
Children and Adult Services,Public Health,Third Party Payments,460803,Contract Payments,02-Dec-2013,2675142-FLE10/OCT/13,826.22,CHEAPSIDE CHEMIST.
Children and Adult Services,Public Health,Third Party Payments,460803,Contract Payments,02-Dec-2013,2675149-FQR60/OCT/13,"1,789.22",CO-OPERATIVE PHARMACY.
Children and Adult Services,Public Health,Third Party Payments,460803,Contract Payments,02-Dec-2013,2675150-FDR43/OCT/13,806.52,CO-OPERATIVE PHARMACY.
Children and Adult Services,Public Health,Third Party Payments,460803,Contract Payments,02-Dec-2013,2675151-FVF01/OCT/13,602.33,CO-OPERATIVE PHARMACY.
Children and Adult Services,Public Health,Third Party Payments,460803,Contract Payments,02-Dec-2013,2675173-A83004/NOV13,632.50,DR K.
Children and Adult Services,Public Health,Third Party Payments,460803,Contract Payments,02-Dec-2013,2675218-FG885/OCT/13,644.85,INTRAHEALTH LTD.
Children and Adult Services,Public Health,Third Party Payments,460802,Contract Payments,02-Dec-2013,2675249,"4,906.64",MARLBOROUGH SURGERY.
Children and Adult Services,Public Health,Third Party Payments,460802,Contract Payments,02-Dec-2013,2675316,"2,842.76",SOUTHDENE MEDICAL CENTRE.
Children and Adult Services,Public Health,Third Party Payments,460803,Contract Payments,02-Dec-2013,2675337-FLL39/OCT/13,906.45,TESCO PHARMACY.
Children and Adult Services,Public Health,Third Party Payments,460803,Contract Payments,02-Dec-2013,2675338-FMH62/OCT/13,588.91,TESCO PHARMACY.
Children and Adult Services,Public Health,Third Party Payments,460803,Contract Payments,02-Dec-2013,2675340,578.07,THE BOOTS CO PLC.
Children and Adult Services,Public Health,Third Party Payments,460803,Contract Payments,02-Dec-2013,2675347-FF689/OCT/13,546.49,TOW LAW PHARMACY.
Corporate Resources,Financial Services,Supplies and Services,384199,Miscellaneous Expenses,02-Dec-2013,2675230-8044,"4,337.16",KAIZEN CONSULTANTS.
Corporate Resources,I.C.T. Services,Supplies and Services,342051,Computers and Communications,02-Dec-2013,2675130-360243,"2,158.61",BYTES SOFTWARE SERVICES.
Corporate Resources,I.C.T. Services,Supplies and Services,332029,"Printing, Stationery and Gen Off Exps",02-Dec-2013,2675214-67933,"1,296.00",HILLPRINT MEDIA LTD.
Corporate Resources,I.C.T. Services,Supplies and Services,344033,Telephones,02-Dec-2013,2675332-04853591,"1,733.32",TALKTALK BUSINESS.
Dedicated Schools Grant,Dedicated Schools Grant,Third Party Payments,425005,Rendered by Voluntary Organisations,02-Dec-2013,2675296-0000121123,"2,730.00",QUALITY TIME CARE LTD.
Dedicated Schools Grant,Dedicated Schools Grant,Supplies and Services,342013,Computers and Communications,02-Dec-2013,2675330-6271270,550.48,SUPPLIES TEAM LTD.
Neighbourhood Services,Culture & Sport,Supplies and Services,338047,Services,02-Dec-2013,2675158,"1,500.00",CRAIG WILLIAM DAVIDSON.
Neighbourhood Services,Culture & Sport,Supplies and Services,338047,Services,02-Dec-2013,2675224,"1,500.00",JOHN MURDOCH.
Neighbourhood Services,Culture & Sport,Supplies and Services,338047,Services,02-Dec-2013,2675232,"1,950.00",KEW PERSONAL MANAGEMENT.
Neighbourhood Services,Culture & Sport,Third Party Payments,430100,Rendered by Private Contractors,02-Dec-2013,2675080-2B15,"2,400.00",2B COMMUNICATIONS LTD.
Neighbourhood Services,Culture & Sport,Supplies and Services,384199,Miscellaneous Expenses,02-Dec-2013,2675085-34/13,900.00,ABRAM WILSON FOUNDATION.
Neighbourhood Services,Culture & Sport,Supplies and Services,338047,Services,02-Dec-2013,2675094-AMB/EJ/2030,"3,115.32",AMBER PERSONAL MANAGEMENT LTD.
Neighbourhood Services,Culture & Sport,Supplies and Services,384199,Miscellaneous Expenses,02-Dec-2013,2675102-100244,"54,450.00",ARTICHOKE TRUST.
Neighbourhood Services,Culture & Sport,Supplies and Services,384199,Miscellaneous Expenses,02-Dec-2013,2675102-100245,"28,802.00",ARTICHOKE TRUST.
Neighbourhood Services,Culture & Sport,Supplies and Services,304221,Equipment and Materials,02-Dec-2013,2675103-SIN110857,936.40,ASA AWARDS.
Neighbourhood Services,Culture & Sport,Fees,901002,Professional fees,02-Dec-2013,2675108-13035290,"1,753.00",ATKINS GLOBAL.
Neighbourhood Services,Culture & Sport,Fees,901002,Professional fees,02-Dec-2013,2675108-13035301,"1,552.00",ATKINS GLOBAL.
Neighbourhood Services,Culture & Sport,Supplies and Services,338047,Services,02-Dec-2013,2675137-2,"1,200.00",CATHERINE KINSON.
Neighbourhood Services,Culture & Sport,Supplies and Services,384700,Miscellaneous Expenses,02-Dec-2013,2675147-3910001987,"2,472.18",CO DURHAM & DARLINGTON NHS FOUNDATION TRUST.
Neighbourhood Services,Culture & Sport,Supplies and Services,338047,Services,02-Dec-2013,2675157-INV-00018,"1,500.00",CRAIG WALTON.
Neighbourhood Services,Culture & Sport,Supplies and Services,338047,Services,02-Dec-2013,2675212-0044,"2,100.00",HEATHER ROBERTSON.
Neighbourhood Services,Culture & Sport,Supplies and Services,338047,Services,02-Dec-2013,2675221-DT/2665,"2,952.04","JEWEL, WRIGHT & LEE."
Neighbourhood Services,Culture & Sport,Supplies and Services,338047,Services,02-Dec-2013,2675247-INV-0001A,"1,500.00",MARK GERRENS.
Neighbourhood Services,Culture & Sport,Supplies and Services,338047,Services,02-Dec-2013,2675253-RB/1039,"1,950.00",MICHELLE BLAIR.
Neighbourhood Services,Culture & Sport,Transport,230005,Contract Hire,02-Dec-2013,2675254-2154,825.00,MID NITE EXPRESS.
Neighbourhood Services,Culture & Sport,Supplies and Services,338047,Services,02-Dec-2013,2675256-2,"1,500.00",MR IAN PATERSON.
Neighbourhood Services,Culture & Sport,Supplies and Services,338047,Services,02-Dec-2013,2675284-GT001/2,"2,400.00",P AZIZ.
Neighbourhood Services,Culture & Sport,Supplies and Services,338047,Services,02-Dec-2013,2675289-1314002,"1,950.00",PHOEBE LOUISE HARTSHORNE.
Neighbourhood Services,Culture & Sport,Supplies and Services,338047,Services,02-Dec-2013,2675310-13,"1,500.00",SAM SMITH..
Neighbourhood Services,Direct Services,Supplies and Services,304221,Equipment and Materials,02-Dec-2013,2675126-INV131365,790.00,BROXAP LTD.
Neighbourhood Services,Direct Services,Stock,926004,Stock,02-Dec-2013,2675138-1481241,"2,122.60",CERTAS ENERGY UK LTD.
Neighbourhood Services,Direct Services,Stock,926004,Stock,02-Dec-2013,2675138-1537081,"14,857.85",CERTAS ENERGY UK LTD.
Neighbourhood Services,Direct Services,Stock,926004,Stock,02-Dec-2013,2675138-1537114,"2,232.48",CERTAS ENERGY UK LTD.
Neighbourhood Services,Direct Services,Stock,926004,Stock,02-Dec-2013,2675138-1540573,"16,513.00",CERTAS ENERGY UK LTD.
Neighbourhood Services,Direct Services,Stock,926004,Stock,02-Dec-2013,2675138-1540577,"1,915.20",CERTAS ENERGY UK LTD.
Neighbourhood Services,Direct Services,Transport,230005,Contract Hire,02-Dec-2013,2675163-066598,"1,998.81",DAWSONRENTALS SWEEPERS.
Neighbourhood Services,Direct Services,Transport,210057,Repair and Maintenance of Vehicles,02-Dec-2013,2675167-DE10748382,558.91,DENNIS EAGLE LTD.
Neighbourhood Services,Direct Services,Supplies and Services,304259,Equipment and Materials,02-Dec-2013,2675169-0000124380,"1,156.00",DIGITAL ID LTD.
Neighbourhood Services,Direct Services,Supplies and Services,304259,Equipment and Materials,02-Dec-2013,2675180-3110599,531.95,EAST RIDING HORTICULTURE LTD.
Neighbourhood Services,Direct Services,Transport,210057,Repair and Maintenance of Vehicles,02-Dec-2013,2675182-S183131,"1,082.13",ECON ENGINEERING LTD.
Neighbourhood Services,Direct Services,Stock,926004,Stock,02-Dec-2013,2675194-9180735,508.70,FLOGAS UK LTD.
Neighbourhood Services,Direct Services,Supplies and Services,304221,Equipment and Materials,02-Dec-2013,2675228-NBI106666,"2,039.00",JT DOVE LTD.
Neighbourhood Services,Direct Services,Supplies and Services,304221,Equipment and Materials,02-Dec-2013,2675229-CNI18404/D,692.82,JT DOVE LTD.
Neighbourhood Services,Direct Services,Supplies and Services,304221,Equipment and Materials,02-Dec-2013,2675229-CNI18412/D,692.82,JT DOVE LTD.
Neighbourhood Services,Direct Services,Supplies and Services,304221,Equipment and Materials,02-Dec-2013,2675229-NOI39971,657.00,JT DOVE LTD.
Neighbourhood Services,Direct Services,Third Party Payments,430100,Rendered by Private Contractors,02-Dec-2013,2675274-90004564,777.21,NORTHERN GAS NETWORKS LTD.
Neighbourhood Services,Direct Services,Supplies and Services,304259,Equipment and Materials,02-Dec-2013,2675281-CN18593837,"2,164.48",OCS GROUP UK LTD T/A CANNON HYGIENE.
Neighbourhood Services,Direct Services,Supplies and Services,304221,Equipment and Materials,02-Dec-2013,2675291-4120158306,975.99,PLUMBING TRADE SUPPLIES LTD.
Neighbourhood Services,Direct Services,Supplies and Services,304221,Equipment and Materials,02-Dec-2013,2675292-185323,885.95,PLUMBING TRADE SUPPLIES LTD.
Neighbourhood Services,Direct Services,Supplies and Services,304221,Equipment and Materials,02-Dec-2013,2675292-4120157593,546.85,PLUMBING TRADE SUPPLIES LTD.
Neighbourhood Services,Direct Services,Supplies and Services,304221,Equipment and Materials,02-Dec-2013,2675292-4120157618,619.21,PLUMBING TRADE SUPPLIES LTD.
Neighbourhood Services,Direct Services,Supplies and Services,304221,Equipment and Materials,02-Dec-2013,2675292-4120157659,619.21,PLUMBING TRADE SUPPLIES LTD.
Neighbourhood Services,Direct Services,Supplies and Services,304221,Equipment and Materials,02-Dec-2013,2675292-4120157660,619.21,PLUMBING TRADE SUPPLIES LTD.
Neighbourhood Services,Direct Services,Supplies and Services,304221,Equipment and Materials,02-Dec-2013,2675292-4120157661,619.21,PLUMBING TRADE SUPPLIES LTD.
Neighbourhood Services,Direct Services,Supplies and Services,304221,Equipment and Materials,02-Dec-2013,2675292-4120157663,619.21,PLUMBING TRADE SUPPLIES LTD.
Neighbourhood Services,Direct Services,Supplies and Services,304221,Equipment and Materials,02-Dec-2013,2675292-4120157724,835.52,PLUMBING TRADE SUPPLIES LTD.
Neighbourhood Services,Direct Services,Supplies and Services,304221,Equipment and Materials,02-Dec-2013,2675292-4120157728,546.85,PLUMBING TRADE SUPPLIES LTD.
Neighbourhood Services,Direct Services,Supplies and Services,304221,Equipment and Materials,02-Dec-2013,2675292-4120157729,546.85,PLUMBING TRADE SUPPLIES LTD.
Neighbourhood Services,Direct Services,Supplies and Services,304221,Equipment and Materials,02-Dec-2013,2675292-4120157730,546.85,PLUMBING TRADE SUPPLIES LTD.
Neighbourhood Services,Direct Services,Supplies and Services,304221,Equipment and Materials,02-Dec-2013,2675292-4120157808,845.01,PLUMBING TRADE SUPPLIES LTD.
Neighbourhood Services,Direct Services,Supplies and Services,304221,Equipment and Materials,02-Dec-2013,2675292-4120157822,546.85,PLUMBING TRADE SUPPLIES LTD.
Neighbourhood Services,Direct Services,Supplies and Services,304221,Equipment and Materials,02-Dec-2013,2675292-4120157823,546.85,PLUMBING TRADE SUPPLIES LTD.
Neighbourhood Services,Direct Services,Supplies and Services,304221,Equipment and Materials,02-Dec-2013,2675292-4120157824,546.85,PLUMBING TRADE SUPPLIES LTD.
Neighbourhood Services,Direct Services,Supplies and Services,304221,Equipment and Materials,02-Dec-2013,2675292-4120157825,546.85,PLUMBING TRADE SUPPLIES LTD.
Neighbourhood Services,Direct Services,Supplies and Services,304221,Equipment and Materials,02-Dec-2013,2675292-4120157849,619.21,PLUMBING TRADE SUPPLIES LTD.
Neighbourhood Services,Direct Services,Supplies and Services,304221,Equipment and Materials,02-Dec-2013,2675292-4120157893,644.11,PLUMBING TRADE SUPPLIES LTD.
Neighbourhood Services,Direct Services,Supplies and Services,304221,Equipment and Materials,02-Dec-2013,2675292-4120157894,546.85,PLUMBING TRADE SUPPLIES LTD.
Neighbourhood Services,Direct Services,Supplies and Services,304221,Equipment and Materials,02-Dec-2013,2675292-4120157895,546.85,PLUMBING TRADE SUPPLIES LTD.
Neighbourhood Services,Direct Services,Supplies and Services,304221,Equipment and Materials,02-Dec-2013,2675292-4120157981,828.16,PLUMBING TRADE SUPPLIES LTD.
Neighbourhood Services,Direct Services,Supplies and Services,304221,Equipment and Materials,02-Dec-2013,2675292-4120157985,703.72,PLUMBING TRADE SUPPLIES LTD.
Neighbourhood Services,Direct Services,Supplies and Services,304221,Equipment and Materials,02-Dec-2013,2675292-4120157986,698.27,PLUMBING TRADE SUPPLIES LTD.
Neighbourhood Services,Direct Services,Supplies and Services,304221,Equipment and Materials,02-Dec-2013,2675292-4120157987,698.27,PLUMBING TRADE SUPPLIES LTD.
Neighbourhood Services,Direct Services,Supplies and Services,304221,Equipment and Materials,02-Dec-2013,2675292-4120158049,546.85,PLUMBING TRADE SUPPLIES LTD.
Neighbourhood Services,Direct Services,Supplies and Services,304221,Equipment and Materials,02-Dec-2013,2675292-4120158057,698.27,PLUMBING TRADE SUPPLIES LTD.
Neighbourhood Services,Direct Services,Supplies and Services,304221,Equipment and Materials,02-Dec-2013,2675292-4120158058,546.85,PLUMBING TRADE SUPPLIES LTD.
Neighbourhood Services,Direct Services,Supplies and Services,304221,Equipment and Materials,02-Dec-2013,2675292-4120158059,546.85,PLUMBING TRADE SUPPLIES LTD.
Neighbourhood Services,Direct Services,Supplies and Services,304221,Equipment and Materials,02-Dec-2013,2675292-4120158060,698.27,PLUMBING TRADE SUPPLIES LTD.
Neighbourhood Services,Direct Services,Supplies and Services,304221,Equipment and Materials,02-Dec-2013,2675292-4120158142,546.85,PLUMBING TRADE SUPPLIES LTD.
Neighbourhood Services,Direct Services,Supplies and Services,304221,Equipment and Materials,02-Dec-2013,2675292-4120158144,546.85,PLUMBING TRADE SUPPLIES LTD.
Neighbourhood Services,Direct Services,Supplies and Services,304221,Equipment and Materials,02-Dec-2013,2675292-4120158230,698.27,PLUMBING TRADE SUPPLIES LTD.
Neighbourhood Services,Direct Services,Supplies and Services,304221,Equipment and Materials,02-Dec-2013,2675292-4120158231,546.85,PLUMBING TRADE SUPPLIES LTD.
Neighbourhood Services,Direct Services,Supplies and Services,304221,Equipment and Materials,02-Dec-2013,2675292-4120158233,546.85,PLUMBING TRADE SUPPLIES LTD.
Neighbourhood Services,Direct Services,Supplies and Services,304221,Equipment and Materials,02-Dec-2013,2675292-4120158309,871.72,PLUMBING TRADE SUPPLIES LTD.
Neighbourhood Services,Direct Services,Supplies and Services,304221,Equipment and Materials,02-Dec-2013,2675292-4120158313,546.85,PLUMBING TRADE SUPPLIES LTD.
Neighbourhood Services,Direct Services,Supplies and Services,304221,Equipment and Materials,02-Dec-2013,2675292-4120158314,546.85,PLUMBING TRADE SUPPLIES LTD.
Neighbourhood Services,Direct Services,Supplies and Services,304221,Equipment and Materials,02-Dec-2013,2675292-4120158315,680.78,PLUMBING TRADE SUPPLIES LTD.
Neighbourhood Services,Direct Services,Supplies and Services,384199,Miscellaneous Expenses,02-Dec-2013,2675293-125977,"3,750.00",PREMIER TRAFFIC MANAGEMENT LTD.
Neighbourhood Services,Direct Services,Supplies and Services,384199,Miscellaneous Expenses,02-Dec-2013,2675293-126082,"1,200.00",PREMIER TRAFFIC MANAGEMENT LTD.
Neighbourhood Services,Direct Services,Transport,230005,Contract Hire,02-Dec-2013,2675294-22948,"2,875.00",PREMIER TRUCK HIRE LTD.
Neighbourhood Services,Direct Services,Stock,926004,Stock,02-Dec-2013,2675336-4029550,680.00,TENNANTS DISTRIBUTION LTD.
Neighbourhood Services,"Environment,Health & Consumer Protection",Third Party Payments,430100,Rendered by Private Contractors,02-Dec-2013,2675290-007373,502.24,PHOENIX SECURITY UK LTD.
Neighbourhood Services,"Environment,Health & Consumer Protection",Third Party Payments,430100,Rendered by Private Contractors,02-Dec-2013,2675290-007615,502.24,PHOENIX SECURITY UK LTD.
Neighbourhood Services,Projects and Business services,Third Party Payments,430119,Rendered by Private Contractors,02-Dec-2013,2675209-84802,944.99,HARPERS ENVIRONMENTAL LTD.
Neighbourhood Services,Projects and Business services,Third Party Payments,430119,Rendered by Private Contractors,02-Dec-2013,2675209-84804,"6,213.61",HARPERS ENVIRONMENTAL LTD.
Neighbourhood Services,Projects and Business services,Supplies and Services,304357,Equipment and Materials,02-Dec-2013,2675245-5,960.00,M & E & MR WALTON.
Neighbourhood Services,Projects and Business services,Supplies and Services,308011,Furniture,02-Dec-2013,2675265-7865,600.00,NELSONS OF DURHAM.
Neighbourhood Services,Technical Services,Stock,926900,Stock in hand-Inventory system,02-Dec-2013,2675099-920532459,755.36,ARCO LTD.
Neighbourhood Services,Technical Services,Supplies and Services,304357,Equipment and Materials,02-Dec-2013,2675127-NEW8104299,506.00,BURNT TREE GROUP LTD.
Neighbourhood Services,Technical Services,Stock,926900,Stock in hand-Inventory system,02-Dec-2013,2675153-143878,918.00,COLAS LTD.
Neighbourhood Services,Technical Services,Supplies and Services,304357,Equipment and Materials,02-Dec-2013,2675201-DCC22,882.55,GAP GROUP LTD.
Neighbourhood Services,Technical Services,Supplies and Services,304357,Equipment and Materials,02-Dec-2013,2675201-DCC29,882.67,GAP GROUP LTD.
Neighbourhood Services,Technical Services,Supplies and Services,304337,Equipment and Materials,02-Dec-2013,2675276-DI20176691,631.24,NORTHERN POWERGRID (NORTHEAST) LTD.
Neighbourhood Services,Technical Services,Supplies and Services,304337,Equipment and Materials,02-Dec-2013,2675276-DI20176692,"3,495.76",NORTHERN POWERGRID (NORTHEAST) LTD.
Neighbourhood Services,Technical Services,Third Party Payments,460157,Contract Payments,02-Dec-2013,2675279-912930373,"4,356.77",NORTHUMBRIAN WATER LTD.
Neighbourhood Services,Technical Services,Stock,926900,Stock in hand-Inventory system,02-Dec-2013,2675285-XL102003,802.09,PARK ELECTRICAL DISTRIBUTORS LTD.
Neighbourhood Services,Technical Services,Stock,926900,Stock in hand-Inventory system,02-Dec-2013,2675285-XL102233,"1,508.02",PARK ELECTRICAL DISTRIBUTORS LTD.
Neighbourhood Services,Technical Services,Third Party Payments,430100,Rendered by Private Contractors,02-Dec-2013,2675293-126383,"7,729.48",PREMIER TRAFFIC MANAGEMENT LTD.
Neighbourhood Services,Technical Services,Third Party Payments,430100,Rendered by Private Contractors,02-Dec-2013,2675298-2580/131014,"34,834.92",RAINTON CONSTRUCTION LTD.
Neighbourhood Services,Technical Services,Third Party Payments,430100,Rendered by Private Contractors,02-Dec-2013,2675298-2580/131037,"18,080.94",RAINTON CONSTRUCTION LTD.
Neighbourhood Services,Technical Services,Stock,926900,Stock in hand-Inventory system,02-Dec-2013,2675302-RSIN0079157,636.00,RIGBY TAYLOR LTD.
Neighbourhood Services,Technical Services,Stock,926900,Stock in hand-Inventory system,02-Dec-2013,2675315-182794,"2,640.00",SNAPFAST.
Neighbourhood Services,Technical Services,Stock,926900,Stock in hand-Inventory system,02-Dec-2013,2675330-6321461,511.20,SUPPLIES TEAM LTD.
RED HRA,Housing Revenue Account,Debtors,930106,Debtor-furnished tenancy scheme,02-Dec-2013,2675267,"1,554.09",NEWCASTLE UPON TYNE CITY COUNCIL.
RED HRA,HRA Capital,Other Expenses,914001,Other capital expenses,02-Dec-2013,2675220-14322,"1,444.85",JDP CONTRACTING SERVICES LTD.
RED HRA,HRA Capital,Construction Work,908105,Construction work,02-Dec-2013,2675265-7869,"1,049.00",NELSONS OF DURHAM.
RED HRA,HRA Capital,Construction Work,908105,Construction work,02-Dec-2013,2675265-7870,840.00,NELSONS OF DURHAM.
RED HRA,HRA Capital,Construction Work,908105,Construction work,02-Dec-2013,2675328-038,"2,643.80",SUNTER LTD.
RED HRA,HRA Capital,Construction Work,908105,Construction work,02-Dec-2013,2675328-017,"32,031.37",SUNTER LTD.
RED HRA,HRA Capital,Construction Work,908105,Construction work,02-Dec-2013,2675357-20844,"5,036.84",WHITFIELDS BUILDING SERVICES LTD.
RED HRA,HRA Capital,Construction Work,908105,Construction work,02-Dec-2013,2675366-29577,"6,010.63",YWC GROUP LTD.
RED HRA,HRA Capital,Construction Work,908105,Construction work,02-Dec-2013,2675366-29579,678.36,YWC GROUP LTD.
RED HRA,HRA Capital,Construction Work,908105,Construction work,02-Dec-2013,2675366-29580,518.22,YWC GROUP LTD.
RED HRA,HRA Capital,Construction Work,908105,Construction work,02-Dec-2013,2675366-29709,"8,286.53",YWC GROUP LTD.
Regeneration & Economic Development,Economic Development and Housing,Supplies and Services,324117,Provisions,02-Dec-2013,2675081-36491424,750.67,3663.
Regeneration & Economic Development,Economic Development and Housing,Premises,120021,Energy Costs,02-Dec-2013,2675156-08808228,523.73,CORONA ENERGY RETAIL 2 LTD.
Regeneration & Economic Development,Economic Development and Housing,Cap Exp on Grants & Other Financial Assistance (REFCUS),918401,Capital grants,02-Dec-2013,2675160-RED-11-2013-219,"1,708.00",CROOK OFF LICENCE & MINI MARKET.
Regeneration & Economic Development,Economic Development and Housing,Cap Exp on Grants & Other Financial Assistance (REFCUS),918401,Capital grants,02-Dec-2013,2675189-RED-11-2013-106,"4,095.00",F TIFFEN BUILDING SERVICES.
Regeneration & Economic Development,Economic Development and Housing,Cap Exp on Grants & Other Financial Assistance (REFCUS),918401,Capital grants,02-Dec-2013,2675189-RED-11-2013-200,"3,990.00",F TIFFEN BUILDING SERVICES.
Regeneration & Economic Development,Economic Development and Housing,Fees,901001,Internal fees,02-Dec-2013,2675195-SITRH/0005836,"1,285.80",FOUR HOUSING GROUP.
Regeneration & Economic Development,Economic Development and Housing,Fees,901001,Internal fees,02-Dec-2013,2675195-SITRH/0005837,903.00,FOUR HOUSING GROUP.
Regeneration & Economic Development,Economic Development and Housing,Cap Exp on Grants & Other Financial Assistance (REFCUS),918401,Capital grants,02-Dec-2013,2675195-SITRH/0005845,"3,214.29",FOUR HOUSING GROUP.
Regeneration & Economic Development,Economic Development and Housing,Supplies and Services,384700,Miscellaneous Expenses,02-Dec-2013,2675258-RED-11-2013-223,"1,000.00",MR R MADDISON & MR S WOOD.
Regeneration & Economic Development,Economic Development and Housing,Supplies and Services,384199,Miscellaneous Expenses,02-Dec-2013,2675265-7853,674.00,NELSONS OF DURHAM.
Regeneration & Economic Development,Economic Development and Housing,Supplies and Services,384199,Miscellaneous Expenses,02-Dec-2013,2675266-5357,"12,520.00",NEWCASTLE GATESHEAD INITIATIVE.
Regeneration & Economic Development,Economic Development and Housing,Construction Work,908105,Construction work,02-Dec-2013,2675276-ENQ5222376,"4,959.00",NORTHERN POWERGRID (NORTHEAST) LTD.
Regeneration & Economic Development,Economic Development and Housing,Cap Exp on Grants & Other Financial Assistance (REFCUS),918401,Capital grants,02-Dec-2013,2675288-RED-11-2013-218,"3,608.00",PHILLIPS CHEMISTS LTD.
Regeneration & Economic Development,Economic Development and Housing,Fees,901001,Internal fees,02-Dec-2013,2675344-SITRH/0005851,505.20,THREE RIVERS HOUSING ASSOCIATION LTD.
Regeneration & Economic Development,"Spatial Policy, Planning, Assets & Environment",Other Expenses,914001,Other capital expenses,02-Dec-2013,2675089-28NOV13,"1,640.00",AET LTD.
Regeneration & Economic Development,"Spatial Policy, Planning, Assets & Environment",Supplies and Services,384199,Miscellaneous Expenses,02-Dec-2013,2675278-3489,"2,050.00",NORTHUMBERLAND WILDLIFE TRUST.
Regeneration & Economic Development,"Spatial Policy, Planning, Assets & Environment",Supplies and Services,304259,Equipment and Materials,02-Dec-2013,2675363-102229/G,572.00,WYBONE LTD.
Regeneration & Economic Development,Transport and Contracted Services,Third Party Payments,430108,Rendered by Private Contractors,02-Dec-2013,2675267-1800006716093,"1,714.60",NEWCASTLE UPON TYNE CITY COUNCIL.
Regeneration & Economic Development,Transport and Contracted Services,Third Party Payments,430108,Rendered by Private Contractors,02-Dec-2013,2675267-1800006716100,"1,551.63",NEWCASTLE UPON TYNE CITY COUNCIL.
Regeneration & Economic Development,Transport and Contracted Services,Other Expenses,914001,Other capital expenses,02-Dec-2013,2675293-126013,"7,000.00",PREMIER TRAFFIC MANAGEMENT LTD.
Regeneration & Economic Development,Transport and Contracted Services,Third Party Payments,430106,Rendered by Private Contractors,02-Dec-2013,2675295-998,"5,429.18",PYGALL COACH HIRE.
Regeneration & Economic Development,Transport and Contracted Services,Third Party Payments,430106,Rendered by Private Contractors,02-Dec-2013,2675355-0896,"34,039.09",WEARDALE MOTOR SERVICES LTD.
Assistant Chief Executive,Partnerships & Community Engagement Div.,Transport,235057,Public Transport,03-Dec-2013,2676118-402456,"3,606.20",CLICK TRAVEL LTD.
Assistant Chief Executive,Partnerships & Community Engagement Div.,Transfer Payments,525030,Other,03-Dec-2013,2676103-010,"5,000.00",CHESTER LE STREET SCC.
Assistant Chief Executive,Partnerships & Community Engagement Div.,Transfer Payments,525030,Other,03-Dec-2013,2676173-CHES002,"4,768.00",DURHAM POLICE & CRIME COMMISSIONER.
Assistant Chief Executive,Partnerships & Community Engagement Div.,Transfer Payments,525030,Other,03-Dec-2013,2676063-005,"5,000.00",BRANCEPETH COMMUNITY ASSOCIATION.
Assistant Chief Executive,Partnerships & Community Engagement Div.,Transfer Payments,525030,Other,03-Dec-2013,2676078-016,"5,000.00",BURNHOPE PARISH COUNCIL.
Assistant Chief Executive,Partnerships & Community Engagement Div.,Transfer Payments,525030,Other,03-Dec-2013,2676407-004,"5,000.00",NEW BRANCEPETH VILLAGE HALL ASSOCIATION.
Assistant Chief Executive,Partnerships & Community Engagement Div.,Transfer Payments,525030,Other,03-Dec-2013,2676494-007,"5,000.00",QUEBEC & DISTRICT VILLAGE HALL ASSOCIATION.
Children and Adult Services,Childrens care,Third Party Payments,440001,Other Third Party Payments,03-Dec-2013,226031-918017,509.22,REDACTED - PAYMENT TO INDIVIDUAL
Children and Adult Services,Childrens care,Third Party Payments,440027,Other Third Party Payments,03-Dec-2013,2675419-916395,"3,326.69",REDACTED - PAYMENT TO INDIVIDUAL
Children and Adult Services,Childrens care,Third Party Payments,440028,Other Third Party Payments,03-Dec-2013,2675473-916383,706.23,REDACTED - PAYMENT TO INDIVIDUAL
Children and Adult Services,Childrens care,Third Party Payments,440001,Other Third Party Payments,03-Dec-2013,2675543-916846,561.08,REDACTED - PAYMENT TO INDIVIDUAL
Children and Adult Services,Childrens care,Third Party Payments,440001,Other Third Party Payments,03-Dec-2013,2675601-916830,582.66,REDACTED - PAYMENT TO INDIVIDUAL
Children and Adult Services,Childrens care,Third Party Payments,440028,Other Third Party Payments,03-Dec-2013,2675609-916385,706.23,REDACTED - PAYMENT TO INDIVIDUAL
Children and Adult Services,Childrens care,Third Party Payments,440005,Other Third Party Payments,03-Dec-2013,2675969-918463,850.61,REDACTED - PAYMENT TO INDIVIDUAL
Children and Adult Services,Childrens care,Supplies and Services,372009,Subscriptions,03-Dec-2013,2676071-LIC111383,"2,888.50",BRITISH ASSOC FOR ADOPTION & FOSTERING BAAF.
Children and Adult Services,Childrens care,Employees,080025,Agency Staff,03-Dec-2013,2676127-533022,"158,913.63",COMENSURA LTD.
Children and Adult Services,Childrens care,Third Party Payments,425040,Rendered by Voluntary Organisations,03-Dec-2013,2676214-2854,"3,128.40",FOSTER CARE SOLUTIONS LTD.
Children and Adult Services,Childrens care,Supplies and Services,384237,Miscellaneous Expenses,03-Dec-2013,2676317-3170,540.00,KEIRO GROUP.
Children and Adult Services,Childrens care,Transport,230005,Contract Hire,03-Dec-2013,2676351-1688,605.00,LOCAL TRANSPORT LTD.
Children and Adult Services,Childrens care,Third Party Payments,425041,Rendered by Voluntary Organisations,03-Dec-2013,2676354-10078570,"7,225.67",LONDON BOROUGH OF TOWER HAMLETS.
Children and Adult Services,Childrens care,Transport,230005,Contract Hire,03-Dec-2013,2676547-71265,578.00,SHOTTON PRIVATE HIRE.
Children and Adult Services,Early Intervention and Involvement,Supplies and Services,338035,Services,03-Dec-2013,2676030-SIN005191,"3,171.62",AWARD SCHEME LTD.
Children and Adult Services,Early Intervention and Involvement,Third Party Payments,479101,Purchase of Care,03-Dec-2013,2676122-3910001442,"9,173.00",CO DURHAM & DARLINGTON NHS FOUNDATION TRUST.
Children and Adult Services,Early Intervention and Involvement,Third Party Payments,479101,Purchase of Care,03-Dec-2013,2676122-3910001976,918.08,CO DURHAM & DARLINGTON NHS FOUNDATION TRUST.
Children and Adult Services,Early Intervention and Involvement,Third Party Payments,440037,Other Third Party Payments,03-Dec-2013,2676266-13457,660.00,HOUSE OF EDEN CHILDRENS NURSERY.
Children and Adult Services,Early Intervention and Involvement,Third Party Payments,440037,Other Third Party Payments,03-Dec-2013,2676266-13474,660.00,HOUSE OF EDEN CHILDRENS NURSERY.
Children and Adult Services,Early Intervention and Involvement,Premises,120009,Energy Costs,03-Dec-2013,2676437,703.44,NPOWER.
Children and Adult Services,Early Intervention and Involvement,Supplies and Services,384956,Miscellaneous Expenses,03-Dec-2013,2676469-2238118,566.01,PHONOGRAPHIC PERFORMANCE LTD (PPL).
Children and Adult Services,Education,Transport,230008,Contract Hire,03-Dec-2013,2675989-03,"1,140.00",A & P TAXIS.
Children and Adult Services,Education,Transport,230008,Contract Hire,03-Dec-2013,2675991-A220747,"1,360.00",A MURRAY TRAVEL.
Children and Adult Services,Education,Transport,230007,Contract Hire,03-Dec-2013,2675993-L38/SD,658.00,AABAT TAXIS.
Children and Adult Services,Education,Transport,230008,Contract Hire,03-Dec-2013,2676029-290111013,"1,100.00",AVALON TAXIS.
Children and Adult Services,Education,Transport,230007,Contract Hire,03-Dec-2013,2676029-2901113,600.00,AVALON TAXIS.
Children and Adult Services,Education,Transport,230008,Contract Hire,03-Dec-2013,2676048-1092,"1,780.00",BOBBY DOVE.
Children and Adult Services,Education,Transport,230008,Contract Hire,03-Dec-2013,2676048-1093,"1,449.00",BOBBY DOVE.
Children and Adult Services,Education,Transport,230008,Contract Hire,03-Dec-2013,2676065-BZ00077,"1,100.00",BREZ`S TAXIS.
Children and Adult Services,Education,Supplies and Services,338035,Services,03-Dec-2013,2676083-INV162116,720.00,CACHE.
Children and Adult Services,Education,Transport,230007,Contract Hire,03-Dec-2013,2676113-44037,"1,260.00",CJ GRIERSON.
Children and Adult Services,Education,Transport,230007,Contract Hire,03-Dec-2013,2676113-44038,"4,320.00",CJ GRIERSON.
Children and Adult Services,Education,Transfer Payments,510026,School Children,03-Dec-2013,2676175-260485,"1,188.48",DURHAM UNIVERSITY.
Children and Adult Services,Education,Premises,125009,Rents,03-Dec-2013,2676175-260486,"3,718.00",DURHAM UNIVERSITY.
Children and Adult Services,Education,Transport,235005,Public Transport,03-Dec-2013,2676235-36476,960.00,GO NORTH EAST LTD.
Children and Adult Services,Education,"Vehicles, Equipment, Furniture and Fittings",912701,Computer equipment,03-Dec-2013,2676281-DURH/0432,"97,753.60",INSPIREDSPACES DURHAM LTD.
Children and Adult Services,Education,Transport,230008,Contract Hire,03-Dec-2013,2676297-384,"1,520.00",JDS PRIVATE HIRE DURHAM.
Children and Adult Services,Education,Transport,230008,Contract Hire,03-Dec-2013,2676297-388,"1,216.00",JDS PRIVATE HIRE DURHAM.
Children and Adult Services,Education,Supplies and Services,372009,Subscriptions,03-Dec-2013,2676402-1314195,"2,418.35",NCER CIC.
Children and Adult Services,Education,Supplies and Services,338091,Services,03-Dec-2013,2676408-50056629,"3,969.00",NEW COLLEGE DURHAM.
Children and Adult Services,Education,Transport,230007,Contract Hire,03-Dec-2013,2676555-4266-11-13,"1,160.00",SIMON ELLIFF.
Children and Adult Services,Education,Transport,230006,Contract Hire,03-Dec-2013,2676555-F536-11-13,"2,584.00",SIMON ELLIFF.
Children and Adult Services,Education,Transport,230008,Contract Hire,03-Dec-2013,2676555-W132-11-13,960.00,SIMON ELLIFF.
Children and Adult Services,Education,Transport,230008,Contract Hire,03-Dec-2013,2676596-B638,555.00,TALBOTS TRAVEL LTD.
Children and Adult Services,Head of Adults,Supplies and Services,324117,Provisions,03-Dec-2013,2676020,"1,498.50",ASHBARTON CATERING.
Children and Adult Services,Head of Adults,Supplies and Services,328041,"Clothing, Uniforms and Laundry",03-Dec-2013,2676240-06/488900,604.90,GREENHAM TRADING LTD.
Children and Adult Services,Head of Adults,Premises,125009,Rents,03-Dec-2013,2676322-316731,782.46,K F LLP.
Children and Adult Services,Head of Adults,Premises,125009,Rents,03-Dec-2013,2676322-322737,782.50,K F LLP.
Children and Adult Services,Head of Adults,Supplies and Services,344033,Telephones,03-Dec-2013,2676419-12385903,"1,438.00",NIMANS LTD T/A ROCOM.
Children and Adult Services,Planning & Service Strategy,Employees,040149,"Recruitment, Instruction and Training",03-Dec-2013,2676269-0828,600.00,HSF TRAINING LTD.
Children and Adult Services,Public Health,Third Party Payments,460802,Contract Payments,03-Dec-2013,2676044-A83007/OCT/13,"4,291.44",BLACKHALL & PETERLEE PRACTICE.
Children and Adult Services,Public Health,Third Party Payments,460803,Contract Payments,03-Dec-2013,2676054-FKP88/JULY2013,630.52,BOOTS THE CHEMISTS LTD.
Children and Adult Services,Public Health,Third Party Payments,460803,Contract Payments,03-Dec-2013,2676055-FF604/JULY2013,"1,810.87",BOOTS THE CHEMISTS LTD.
Children and Adult Services,Public Health,Third Party Payments,460803,Contract Payments,03-Dec-2013,2676056-FL649/OCT/13,637.62,BOOTS THE CHEMISTS LTD.
Children and Adult Services,Public Health,Third Party Payments,460803,Contract Payments,03-Dec-2013,2676057,"3,132.93",BOOTS THE CHEMISTS LTD.
Children and Adult Services,Public Health,Third Party Payments,460803,Contract Payments,03-Dec-2013,2676100-MD,557.00,CENTRECHEM DISPENSING CHEMIST.
Children and Adult Services,Public Health,Third Party Payments,460803,Contract Payments,03-Dec-2013,2676123-FDR43/JULY2013,523.94,CO-OPERATIVE PHARMACY.
Children and Adult Services,Public Health,Third Party Payments,460803,Contract Payments,03-Dec-2013,2676166,532.30,DIXON & HALL LTD.
Children and Adult Services,Public Health,Third Party Payments,460803,Contract Payments,03-Dec-2013,2676167,"1,062.12",DIXON & HALL LTD.
Children and Adult Services,Public Health,Third Party Payments,460803,Contract Payments,03-Dec-2013,2676291-FEG57/OCT/13,770.77,J DINNING (LUMLEY) LTD T/A LUMLEY PHARMACY.
Children and Adult Services,Public Health,Third Party Payments,460803,Contract Payments,03-Dec-2013,2676404-111,"12,312.75",NECA (SERVICES) LTD.
Children and Adult Services,Public Health,Third Party Payments,460802,Contract Payments,03-Dec-2013,2676427-A83020/Q1/2013.,"3,491.65",NORTH HOUSE SURGERY.
Children and Adult Services,Public Health,Third Party Payments,460802,Contract Payments,03-Dec-2013,2676427-A83020/Q2/2013,"3,005.12",NORTH HOUSE SURGERY.
Children and Adult Services,Public Health,Supplies and Services,377015,County Durham Development,03-Dec-2013,2676453-8815,604.00,PA PROMOTIONS LTD.
Children and Adult Services,Public Health,Third Party Payments,460802,Contract Payments,03-Dec-2013,2676455,"1,354.03",PARK HOUSE SURGERY.
Children and Adult Services,Public Health,Third Party Payments,460803,Contract Payments,03-Dec-2013,2676546-FJW29/JULY/13,"2,287.02",SHOTTON PHARMACY.
Children and Adult Services,Public Health,Third Party Payments,460803,Contract Payments,03-Dec-2013,2676613-FA121/OCT/13,"1,184.53",TESCO PHARMACY.
Corporate Resources,Human Resources,Employees,040149,"Recruitment, Instruction and Training",03-Dec-2013,2676568,855.00,SOUTH TYNESIDE COLLEGE.
Corporate Resources,I.C.T. Services,Supplies and Services,384156,Miscellaneous Expenses,03-Dec-2013,2676187-131717,"1,126.62",EDMUNDSON ELECTRICAL LTD.
Corporate Resources,I.C.T. Services,Supplies and Services,332029,"Printing, Stationery and Gen Off Exps",03-Dec-2013,2676200-106629,801.50,ENCORE ENVELOPES LTD.
Corporate Resources,I.C.T. Services,Supplies and Services,332029,"Printing, Stationery and Gen Off Exps",03-Dec-2013,2676200-106665,"1,099.50",ENCORE ENVELOPES LTD.
Corporate Resources,I.C.T. Services,Supplies and Services,332029,"Printing, Stationery and Gen Off Exps",03-Dec-2013,2676259-67656,"1,493.00",HILLPRINT MEDIA LTD.
Corporate Resources,I.C.T. Services,Supplies and Services,332029,"Printing, Stationery and Gen Off Exps",03-Dec-2013,2676259-67673,670.00,HILLPRINT MEDIA LTD.
Corporate Resources,I.C.T. Services,Supplies and Services,332029,"Printing, Stationery and Gen Off Exps",03-Dec-2013,2676259-67709,625.00,HILLPRINT MEDIA LTD.
Corporate Resources,I.C.T. Services,Supplies and Services,332029,"Printing, Stationery and Gen Off Exps",03-Dec-2013,2676259-67807,938.00,HILLPRINT MEDIA LTD.
Corporate Resources,I.C.T. Services,Supplies and Services,332029,"Printing, Stationery and Gen Off Exps",03-Dec-2013,2676259-67926,"2,645.00",HILLPRINT MEDIA LTD.
Corporate Resources,I.C.T. Services,Supplies and Services,332029,"Printing, Stationery and Gen Off Exps",03-Dec-2013,2676259-68046,590.00,HILLPRINT MEDIA LTD.
Corporate Resources,I.C.T. Services,Stock,926900,Stock in hand-Inventory system,03-Dec-2013,2676279-1592410,"12,764.72",INSIGHT DIRECT (UK) LTD.
Corporate Resources,I.C.T. Services,Supplies and Services,344132,Telephones,03-Dec-2013,2676316-36287,649.00,KBR IT & NETWORKING SOLUTIONS.
Corporate Resources,I.C.T. Services,Supplies and Services,344014,Telephones,03-Dec-2013,2676439-55379086,"4,651.64",O2 (UK) LTD.
Corporate Resources,I.C.T. Services,Stock,926900,Stock in hand-Inventory system,03-Dec-2013,2676590-5131796.,"1,634.22",SUPPLIES TEAM LTD.
Corporate Resources,Legal & Democratic Services,Supplies and Services,340001,Postages,03-Dec-2013,2676516,"1,362.48",ROYAL MAIL GROUP PLC.
Corporate Resources,Legal & Democratic Services,Supplies and Services,372009,Subscriptions,03-Dec-2013,2676625,"2,937.60",THOMSON REUTERS.
Corporate Resources,Legal & Democratic Services,Supplies and Services,372009,Subscriptions,03-Dec-2013,2676685-50799257,905.00,WOLTERS KLUWER (UK) LTD.
Dedicated Schools Grant,Dedicated Schools Grant,Transport,230008,Contract Hire,03-Dec-2013,2676001-615517,"1,427.00",ALANS CABS.
Dedicated Schools Grant,Dedicated Schools Grant,Transfer Payments,510034,School Children,03-Dec-2013,2676430,"3,600.00",NORTH TYNESIDE COUNCIL.
Dedicated Schools Grant,Dedicated Schools Grant,Supplies and Services,304259,Equipment and Materials,03-Dec-2013,2676564-ISB4136,"17,430.00",SMARTBOX ASSISTIVE TECHNOLOGY LTD.
Dedicated Schools Grant,Dedicated Schools Grant,Income,710291,Other Grants and Contributions,03-Dec-2013,2676584-541197,500.00,STOCKTON ON TEES BOROUGH COUNCIL.
Dedicated Schools Grant,Dedicated Schools Grant,Supplies and Services,304421,Equipment and Materials,03-Dec-2013,2676654-460541,"1,307.28",UNITED CARLTON OFFICE SYSTEMS LTD.
Neighbourhood Services,Culture & Sport,Supplies and Services,338047,Services,03-Dec-2013,2676294,"1,000.00",JACKIE FIELDING.
Neighbourhood Services,Culture & Sport,Supplies and Services,324001,Provisions,03-Dec-2013,2676060-34163780,527.28,BRAKE BROS FOODSERVICE LTD.
Neighbourhood Services,Culture & Sport,Supplies and Services,384199,Miscellaneous Expenses,03-Dec-2013,2676128-UK11355,"3,000.00",COMPETITION LINE UK LTD.
Neighbourhood Services,Culture & Sport,Supplies and Services,338047,Services,03-Dec-2013,2676243-FBC668,600.00,GROWLING CLOWN.
Neighbourhood Services,Culture & Sport,Supplies and Services,338099,Services,03-Dec-2013,2676257-HBBATH25,700.00,HILARITY BITES COMEDY CLUB.
Neighbourhood Services,Culture & Sport,Construction Work,908109,Capital - Resurfacing,03-Dec-2013,2676346-LS046,"8,856.00",LIMONTA SMITH JV LTD.
Neighbourhood Services,Culture & Sport,"Vehicles, Equipment, Furniture and Fittings",912521,Purchase-furniture and fittings,03-Dec-2013,2676357-1811,"3,000.00",LOYAL GROVE LEISURE LLP.
Neighbourhood Services,Direct Services,Premises,125009,Rents,03-Dec-2013,2676209-129,"12,500.00",FINKLEGATE PROPERTIES LTD.
Neighbourhood Services,Direct Services,Supplies and Services,304221,Equipment and Materials,03-Dec-2013,2676268-B33/0061098,667.61,HOWDENS JOINERY LTD.
Neighbourhood Services,Direct Services,Supplies and Services,304221,Equipment and Materials,03-Dec-2013,2676268-B33/0061353,816.78,HOWDENS JOINERY LTD.
Neighbourhood Services,Direct Services,Third Party Payments,430100,Rendered by Private Contractors,03-Dec-2013,2676290-7855,"5,189.00",IWP DANSK LTD.
Neighbourhood Services,Direct Services,Supplies and Services,324117,Provisions,03-Dec-2013,2676308-O20321,"1,563.36",JR HOLLAND FOOD SERVICES LTD.
Neighbourhood Services,Direct Services,Supplies and Services,304259,Equipment and Materials,03-Dec-2013,2676372-1012097,"1,746.00",METALWASH LTD.
Neighbourhood Services,Direct Services,Third Party Payments,430100,Rendered by Private Contractors,03-Dec-2013,2676380-7135/90656829,804.03,MITIE PROPERTY SERVICES (UK) LTD.
Neighbourhood Services,Direct Services,Supplies and Services,304221,Equipment and Materials,03-Dec-2013,2676480-4120158312,546.85,PLUMBING TRADE SUPPLIES LTD.
Neighbourhood Services,Direct Services,Supplies and Services,304221,Equipment and Materials,03-Dec-2013,2676481-4120158214,901.06,PLUMBING TRADE SUPPLIES LTD.
Neighbourhood Services,Direct Services,Supplies and Services,304221,Equipment and Materials,03-Dec-2013,2676481-4120158229,546.85,PLUMBING TRADE SUPPLIES LTD.
Neighbourhood Services,Direct Services,Third Party Payments,430100,Rendered by Private Contractors,03-Dec-2013,2676509-2860,"4,339.00",RINGLAND SCAFFOLDING.
Neighbourhood Services,Direct Services,Premises,106099,Centrally Controlled Rep and Maint,03-Dec-2013,2676609-1275,637.50,TEESDALE COMMUNICATION & SECURITY.
Neighbourhood Services,Direct Services,Supplies and Services,304259,Equipment and Materials,03-Dec-2013,2676678-316452,"1,412.84",WICKSTEED LEISURE LTD.
Neighbourhood Services,Direct Services,Supplies and Services,304221,Equipment and Materials,03-Dec-2013,2676680-34539,847.53,WILLOWCRETE MFG CO LTD.
Neighbourhood Services,Direct Services,Supplies and Services,304221,Equipment and Materials,03-Dec-2013,2676680-34543,630.05,WILLOWCRETE MFG CO LTD.
Neighbourhood Services,Direct Services,Third Party Payments,430100,Rendered by Private Contractors,03-Dec-2013,2676686-201424,"14,516.74",WRAM FABRICATIONS LTD.
Neighbourhood Services,Projects and Business services,Third Party Payments,430119,Rendered by Private Contractors,03-Dec-2013,2676247-84909,"6,238.67",HARPERS ENVIRONMENTAL LTD.
Neighbourhood Services,Projects and Business services,Third Party Payments,430119,Rendered by Private Contractors,03-Dec-2013,2676247-84910,"1,091.84",HARPERS ENVIRONMENTAL LTD.
Neighbourhood Services,Technical Services,Supplies and Services,304221,Equipment and Materials,03-Dec-2013,2675999-18721216,"1,423.90",AGGREGATE INDUSTRIES UK LTD.
Neighbourhood Services,Technical Services,Supplies and Services,304221,Equipment and Materials,03-Dec-2013,2675999-18730786,500.00,AGGREGATE INDUSTRIES UK LTD.
Neighbourhood Services,Technical Services,Supplies and Services,304221,Equipment and Materials,03-Dec-2013,2675999-18766634,"2,879.12",AGGREGATE INDUSTRIES UK LTD.
Neighbourhood Services,Technical Services,Supplies and Services,304221,Equipment and Materials,03-Dec-2013,2675999-18766635,"1,380.66",AGGREGATE INDUSTRIES UK LTD.
Neighbourhood Services,Technical Services,Supplies and Services,304221,Equipment and Materials,03-Dec-2013,2675999-18766636,790.75,AGGREGATE INDUSTRIES UK LTD.
Neighbourhood Services,Technical Services,Supplies and Services,304221,Equipment and Materials,03-Dec-2013,2675999-18766638,"1,140.44",AGGREGATE INDUSTRIES UK LTD.
Neighbourhood Services,Technical Services,Supplies and Services,304221,Equipment and Materials,03-Dec-2013,2675999-18766639,"1,061.45",AGGREGATE INDUSTRIES UK LTD.
Neighbourhood Services,Technical Services,Supplies and Services,304221,Equipment and Materials,03-Dec-2013,2675999-18766640,964.80,AGGREGATE INDUSTRIES UK LTD.
Neighbourhood Services,Technical Services,Supplies and Services,304221,Equipment and Materials,03-Dec-2013,2675999-18799983,"2,193.07",AGGREGATE INDUSTRIES UK LTD.
Neighbourhood Services,Technical Services,Supplies and Services,304221,Equipment and Materials,03-Dec-2013,2675999-18878840,654.24,AGGREGATE INDUSTRIES UK LTD.
Neighbourhood Services,Technical Services,Supplies and Services,304221,Equipment and Materials,03-Dec-2013,2675999-18884950,866.40,AGGREGATE INDUSTRIES UK LTD.
Neighbourhood Services,Technical Services,Supplies and Services,304221,Equipment and Materials,03-Dec-2013,2675999-18884951,"1,166.32",AGGREGATE INDUSTRIES UK LTD.
Neighbourhood Services,Technical Services,Supplies and Services,304221,Equipment and Materials,03-Dec-2013,2675999-18890136,"1,990.92",AGGREGATE INDUSTRIES UK LTD.
Neighbourhood Services,Technical Services,Supplies and Services,304221,Equipment and Materials,03-Dec-2013,2675999-18890876,958.49,AGGREGATE INDUSTRIES UK LTD.
Neighbourhood Services,Technical Services,Supplies and Services,304221,Equipment and Materials,03-Dec-2013,2675999-18906009,"1,107.60",AGGREGATE INDUSTRIES UK LTD.
Neighbourhood Services,Technical Services,Supplies and Services,304221,Equipment and Materials,03-Dec-2013,2675999-18932359,"6,379.72",AGGREGATE INDUSTRIES UK LTD.
Neighbourhood Services,Technical Services,Supplies and Services,304221,Equipment and Materials,03-Dec-2013,2675999-18932364,"1,635.19",AGGREGATE INDUSTRIES UK LTD.
Neighbourhood Services,Technical Services,Supplies and Services,304221,Equipment and Materials,03-Dec-2013,2675999-18950009,672.96,AGGREGATE INDUSTRIES UK LTD.
Neighbourhood Services,Technical Services,Supplies and Services,304221,Equipment and Materials,03-Dec-2013,2675999-18950013,"1,727.52",AGGREGATE INDUSTRIES UK LTD.
Neighbourhood Services,Technical Services,Supplies and Services,304221,Equipment and Materials,03-Dec-2013,2675999-18956083,590.32,AGGREGATE INDUSTRIES UK LTD.
Neighbourhood Services,Technical Services,Supplies and Services,304221,Equipment and Materials,03-Dec-2013,2675999-18963893,"2,927.30",AGGREGATE INDUSTRIES UK LTD.
Neighbourhood Services,Technical Services,Supplies and Services,304221,Equipment and Materials,03-Dec-2013,2675999-18963895,"2,400.00",AGGREGATE INDUSTRIES UK LTD.
Neighbourhood Services,Technical Services,Supplies and Services,304221,Equipment and Materials,03-Dec-2013,2675999-18969542,871.60,AGGREGATE INDUSTRIES UK LTD.
Neighbourhood Services,Technical Services,Supplies and Services,304221,Equipment and Materials,03-Dec-2013,2675999-18969543,"1,448.14",AGGREGATE INDUSTRIES UK LTD.
Neighbourhood Services,Technical Services,Supplies and Services,304221,Equipment and Materials,03-Dec-2013,2675999-18969544,"3,614.40",AGGREGATE INDUSTRIES UK LTD.
Neighbourhood Services,Technical Services,Supplies and Services,304221,Equipment and Materials,03-Dec-2013,2675999-18969545,654.24,AGGREGATE INDUSTRIES UK LTD.
Neighbourhood Services,Technical Services,Supplies and Services,304221,Equipment and Materials,03-Dec-2013,2675999-18975588,772.80,AGGREGATE INDUSTRIES UK LTD.
Neighbourhood Services,Technical Services,Supplies and Services,304221,Equipment and Materials,03-Dec-2013,2675999-18975590,"2,014.95",AGGREGATE INDUSTRIES UK LTD.
Neighbourhood Services,Technical Services,Supplies and Services,304221,Equipment and Materials,03-Dec-2013,2675999-18975591,"1,016.06",AGGREGATE INDUSTRIES UK LTD.
Neighbourhood Services,Technical Services,Supplies and Services,304221,Equipment and Materials,03-Dec-2013,2675999-18975592,"1,962.00",AGGREGATE INDUSTRIES UK LTD.
Neighbourhood Services,Technical Services,Supplies and Services,304221,Equipment and Materials,03-Dec-2013,2675999-18982528,939.20,AGGREGATE INDUSTRIES UK LTD.
Neighbourhood Services,Technical Services,Supplies and Services,304221,Equipment and Materials,03-Dec-2013,2675999-18982529,"1,118.74",AGGREGATE INDUSTRIES UK LTD.
Neighbourhood Services,Technical Services,Supplies and Services,304221,Equipment and Materials,03-Dec-2013,2675999-18982533,"2,210.40",AGGREGATE INDUSTRIES UK LTD.
Neighbourhood Services,Technical Services,Supplies and Services,304221,Equipment and Materials,03-Dec-2013,2675999-18988788,939.20,AGGREGATE INDUSTRIES UK LTD.
Neighbourhood Services,Technical Services,Supplies and Services,304221,Equipment and Materials,03-Dec-2013,2675999-18988789,"1,616.50",AGGREGATE INDUSTRIES UK LTD.
Neighbourhood Services,Technical Services,Supplies and Services,304221,Equipment and Materials,03-Dec-2013,2675999-18996918,"1,284.66",AGGREGATE INDUSTRIES UK LTD.
Neighbourhood Services,Technical Services,Supplies and Services,304221,Equipment and Materials,03-Dec-2013,2675999-18996919,557.30,AGGREGATE INDUSTRIES UK LTD.
Neighbourhood Services,Technical Services,Supplies and Services,304221,Equipment and Materials,03-Dec-2013,2675999-18996921,"4,659.82",AGGREGATE INDUSTRIES UK LTD.
Neighbourhood Services,Technical Services,Supplies and Services,304221,Equipment and Materials,03-Dec-2013,2675999-18996922,547.12,AGGREGATE INDUSTRIES UK LTD.
Neighbourhood Services,Technical Services,Supplies and Services,304221,Equipment and Materials,03-Dec-2013,2675999-19003261,"1,224.88",AGGREGATE INDUSTRIES UK LTD.
Neighbourhood Services,Technical Services,Supplies and Services,304221,Equipment and Materials,03-Dec-2013,2675999-19003262,"4,148.88",AGGREGATE INDUSTRIES UK LTD.
Neighbourhood Services,Technical Services,Supplies and Services,304221,Equipment and Materials,03-Dec-2013,2675999-19003263,"1,582.15",AGGREGATE INDUSTRIES UK LTD.
Neighbourhood Services,Technical Services,Supplies and Services,304221,Equipment and Materials,03-Dec-2013,2675999-19003264,"1,170.59",AGGREGATE INDUSTRIES UK LTD.
Neighbourhood Services,Technical Services,Supplies and Services,304221,Equipment and Materials,03-Dec-2013,2675999-19008313,"1,099.20",AGGREGATE INDUSTRIES UK LTD.
Neighbourhood Services,Technical Services,Supplies and Services,304221,Equipment and Materials,03-Dec-2013,2675999-19008614,"2,366.80",AGGREGATE INDUSTRIES UK LTD.
Neighbourhood Services,Technical Services,Supplies and Services,304221,Equipment and Materials,03-Dec-2013,2675999-19008616,"1,112.12",AGGREGATE INDUSTRIES UK LTD.
Neighbourhood Services,Technical Services,Supplies and Services,304221,Equipment and Materials,03-Dec-2013,2675999-19014307,"1,026.00",AGGREGATE INDUSTRIES UK LTD.
Neighbourhood Services,Technical Services,Supplies and Services,304221,Equipment and Materials,03-Dec-2013,2675999-19014310,"1,163.88",AGGREGATE INDUSTRIES UK LTD.
Neighbourhood Services,Technical Services,Supplies and Services,304221,Equipment and Materials,03-Dec-2013,2675999-19014313,"1,343.30",AGGREGATE INDUSTRIES UK LTD.
Neighbourhood Services,Technical Services,Supplies and Services,304221,Equipment and Materials,03-Dec-2013,2675999-19020396,659.06,AGGREGATE INDUSTRIES UK LTD.
Neighbourhood Services,Technical Services,Supplies and Services,304221,Equipment and Materials,03-Dec-2013,2675999-19025969,838.30,AGGREGATE INDUSTRIES UK LTD.
Neighbourhood Services,Technical Services,Supplies and Services,304221,Equipment and Materials,03-Dec-2013,2676099-3006523193,742.50,CEMEX UK MATERIALS LTD.
Neighbourhood Services,Technical Services,Supplies and Services,304358,Equipment and Materials,03-Dec-2013,2676205-0000037003,852.50,EURO ENVIRONMENTAL GROUP.
Neighbourhood Services,Technical Services,Supplies and Services,304357,Equipment and Materials,03-Dec-2013,2676221-040813,698.73,GAP GROUP LTD.
Neighbourhood Services,Technical Services,Supplies and Services,304357,Equipment and Materials,03-Dec-2013,2676221-140713,914.65,GAP GROUP LTD.
Neighbourhood Services,Technical Services,Supplies and Services,304357,Equipment and Materials,03-Dec-2013,2676221-210713,693.73,GAP GROUP LTD.
Neighbourhood Services,Technical Services,Supplies and Services,304357,Equipment and Materials,03-Dec-2013,2676221-DCC01,"2,301.48",GAP GROUP LTD.
Neighbourhood Services,Technical Services,Supplies and Services,304357,Equipment and Materials,03-Dec-2013,2676221-DCC08,516.50,GAP GROUP LTD.
Neighbourhood Services,Technical Services,Supplies and Services,304357,Equipment and Materials,03-Dec-2013,2676221-DCC15,822.72,GAP GROUP LTD.
Neighbourhood Services,Technical Services,Supplies and Services,304357,Equipment and Materials,03-Dec-2013,2676221-DCC25,865.98,GAP GROUP LTD.
Neighbourhood Services,Technical Services,Supplies and Services,304358,Equipment and Materials,03-Dec-2013,2676229-9457,"2,398.00",GEORGE VARDY HAULAGE.
Neighbourhood Services,Technical Services,Stock,926900,Stock in hand-Inventory system,03-Dec-2013,2676240-06/488147,880.78,GREENHAM TRADING LTD.
Neighbourhood Services,Technical Services,Stock,926900,Stock in hand-Inventory system,03-Dec-2013,2676303-NI023489,"19,126.80",JOHN MACLEAN & SONS ELECTRICAL (DINGWALL) LTD.
Neighbourhood Services,Technical Services,Supplies and Services,304357,Equipment and Materials,03-Dec-2013,2676305-12126,637.56,JOHN R BUTTERFIELD LTD.
Neighbourhood Services,Technical Services,Supplies and Services,304358,Equipment and Materials,03-Dec-2013,2676305-14951,885.40,JOHN R BUTTERFIELD LTD.
Neighbourhood Services,Technical Services,Supplies and Services,304358,Equipment and Materials,03-Dec-2013,2676305-14986,975.00,JOHN R BUTTERFIELD LTD.
Neighbourhood Services,Technical Services,Supplies and Services,304358,Equipment and Materials,03-Dec-2013,2676305-14991,741.00,JOHN R BUTTERFIELD LTD.
Neighbourhood Services,Technical Services,Supplies and Services,304358,Equipment and Materials,03-Dec-2013,2676305-14993,834.90,JOHN R BUTTERFIELD LTD.
Neighbourhood Services,Technical Services,Supplies and Services,304358,Equipment and Materials,03-Dec-2013,2676305-15026,975.00,JOHN R BUTTERFIELD LTD.
Neighbourhood Services,Technical Services,Supplies and Services,304358,Equipment and Materials,03-Dec-2013,2676305-15027,"1,161.00",JOHN R BUTTERFIELD LTD.
Neighbourhood Services,Technical Services,Supplies and Services,304358,Equipment and Materials,03-Dec-2013,2676305-15029,741.00,JOHN R BUTTERFIELD LTD.
Neighbourhood Services,Technical Services,Supplies and Services,304358,Equipment and Materials,03-Dec-2013,2676305-15030,"1,095.50",JOHN R BUTTERFIELD LTD.
Neighbourhood Services,Technical Services,Supplies and Services,304358,Equipment and Materials,03-Dec-2013,2676305-15031,722.40,JOHN R BUTTERFIELD LTD.
Neighbourhood Services,Technical Services,Supplies and Services,304358,Equipment and Materials,03-Dec-2013,2676305-15032,718.80,JOHN R BUTTERFIELD LTD.
Neighbourhood Services,Technical Services,Supplies and Services,304358,Equipment and Materials,03-Dec-2013,2676305-15033,892.60,JOHN R BUTTERFIELD LTD.
Neighbourhood Services,Technical Services,Supplies and Services,304358,Equipment and Materials,03-Dec-2013,2676305-15038,596.40,JOHN R BUTTERFIELD LTD.
Neighbourhood Services,Technical Services,Supplies and Services,304358,Equipment and Materials,03-Dec-2013,2676305-15074,975.00,JOHN R BUTTERFIELD LTD.
Neighbourhood Services,Technical Services,Supplies and Services,304358,Equipment and Materials,03-Dec-2013,2676305-15075,"1,405.00",JOHN R BUTTERFIELD LTD.
Neighbourhood Services,Technical Services,Supplies and Services,304358,Equipment and Materials,03-Dec-2013,2676305-15076,558.00,JOHN R BUTTERFIELD LTD.
Neighbourhood Services,Technical Services,Supplies and Services,304358,Equipment and Materials,03-Dec-2013,2676305-15079,"1,110.50",JOHN R BUTTERFIELD LTD.
Neighbourhood Services,Technical Services,Supplies and Services,304358,Equipment and Materials,03-Dec-2013,2676305-15080,"1,117.80",JOHN R BUTTERFIELD LTD.
Neighbourhood Services,Technical Services,Supplies and Services,304358,Equipment and Materials,03-Dec-2013,2676305-15086,680.50,JOHN R BUTTERFIELD LTD.
Neighbourhood Services,Technical Services,Supplies and Services,304358,Equipment and Materials,03-Dec-2013,2676305-15087,770.20,JOHN R BUTTERFIELD LTD.
Neighbourhood Services,Technical Services,Supplies and Services,304358,Equipment and Materials,03-Dec-2013,2676305-15088,575.00,JOHN R BUTTERFIELD LTD.
Neighbourhood Services,Technical Services,Supplies and Services,304358,Equipment and Materials,03-Dec-2013,2676305-15116,975.00,JOHN R BUTTERFIELD LTD.
Neighbourhood Services,Technical Services,Supplies and Services,304358,Equipment and Materials,03-Dec-2013,2676305-15117,"1,161.00",JOHN R BUTTERFIELD LTD.
Neighbourhood Services,Technical Services,Supplies and Services,304358,Equipment and Materials,03-Dec-2013,2676305-15118,930.00,JOHN R BUTTERFIELD LTD.
Neighbourhood Services,Technical Services,Supplies and Services,304358,Equipment and Materials,03-Dec-2013,2676305-15119,"1,265.00",JOHN R BUTTERFIELD LTD.
Neighbourhood Services,Technical Services,Supplies and Services,304358,Equipment and Materials,03-Dec-2013,2676305-15121,892.60,JOHN R BUTTERFIELD LTD.
Neighbourhood Services,Technical Services,Supplies and Services,304358,Equipment and Materials,03-Dec-2013,2676305-15122,707.40,JOHN R BUTTERFIELD LTD.
Neighbourhood Services,Technical Services,Supplies and Services,304358,Equipment and Materials,03-Dec-2013,2676305-15124,711.00,JOHN R BUTTERFIELD LTD.
Neighbourhood Services,Technical Services,Supplies and Services,304358,Equipment and Materials,03-Dec-2013,2676305-15125,730.20,JOHN R BUTTERFIELD LTD.
Neighbourhood Services,Technical Services,Supplies and Services,304358,Equipment and Materials,03-Dec-2013,2676305-15126,860.80,JOHN R BUTTERFIELD LTD.
Neighbourhood Services,Technical Services,Supplies and Services,304358,Equipment and Materials,03-Dec-2013,2676305-15127,741.00,JOHN R BUTTERFIELD LTD.
Neighbourhood Services,Technical Services,Supplies and Services,304358,Equipment and Materials,03-Dec-2013,2676305-15157,990.00,JOHN R BUTTERFIELD LTD.
Neighbourhood Services,Technical Services,Supplies and Services,304358,Equipment and Materials,03-Dec-2013,2676305-15159,948.00,JOHN R BUTTERFIELD LTD.
Neighbourhood Services,Technical Services,Supplies and Services,304358,Equipment and Materials,03-Dec-2013,2676305-15160,"1,215.00",JOHN R BUTTERFIELD LTD.
Neighbourhood Services,Technical Services,Supplies and Services,304358,Equipment and Materials,03-Dec-2013,2676305-15163,714.60,JOHN R BUTTERFIELD LTD.
Neighbourhood Services,Technical Services,Supplies and Services,304358,Equipment and Materials,03-Dec-2013,2676305-15164,714.60,JOHN R BUTTERFIELD LTD.
Neighbourhood Services,Technical Services,Supplies and Services,304358,Equipment and Materials,03-Dec-2013,2676305-15165,834.40,JOHN R BUTTERFIELD LTD.
Neighbourhood Services,Technical Services,Supplies and Services,304358,Equipment and Materials,03-Dec-2013,2676305-15166,741.00,JOHN R BUTTERFIELD LTD.
Neighbourhood Services,Technical Services,Supplies and Services,304358,Equipment and Materials,03-Dec-2013,2676305-15167,777.00,JOHN R BUTTERFIELD LTD.
Neighbourhood Services,Technical Services,Stock,926900,Stock in hand-Inventory system,03-Dec-2013,2676309-STI391834,841.21,JT DOVE LTD.
Neighbourhood Services,Technical Services,Supplies and Services,384110,Miscellaneous Expenses,03-Dec-2013,2676336-F00706941,"1,747.20",LEEDS METROPOLITAN UNIVERSITY.
Neighbourhood Services,Technical Services,Supplies and Services,304221,Equipment and Materials,03-Dec-2013,2676365-ZBB0504549,668.60,MARSHALLS MONO LTD.
Neighbourhood Services,Technical Services,Construction Work,908109,Capital - Resurfacing,03-Dec-2013,2676374-4812,"37,982.10",MILES MACADAM LTD.
Neighbourhood Services,Technical Services,Construction Work,908109,Capital - Resurfacing,03-Dec-2013,2676374-4816,"31,762.44",MILES MACADAM LTD.
Neighbourhood Services,Technical Services,Construction Work,908112,Capital - Drainage,03-Dec-2013,2676416-4614599,552.02,NEWSQUEST (YORKSHIRE & NORTH EAST) LTD.
Neighbourhood Services,Technical Services,Supplies and Services,304337,Equipment and Materials,03-Dec-2013,2676433-DI20176764,"1,384.74",NORTHERN POWERGRID (NORTHEAST) LTD.
Neighbourhood Services,Technical Services,Stock,926900,Stock in hand-Inventory system,03-Dec-2013,2676434-0954559,"1,261.00",NORTHERN TOOLS & ACCESSORIES.
Neighbourhood Services,Technical Services,Stock,926900,Stock in hand-Inventory system,03-Dec-2013,2676434-0974817,620.00,NORTHERN TOOLS & ACCESSORIES.
Neighbourhood Services,Technical Services,Stock,926900,Stock in hand-Inventory system,03-Dec-2013,2676434-0977647,600.00,NORTHERN TOOLS & ACCESSORIES.
Neighbourhood Services,Technical Services,Premises,120009,Energy Costs,03-Dec-2013,2676437-NNO7HLND,"5,781.18",NPOWER.
Neighbourhood Services,Technical Services,Stock,926900,Stock in hand-Inventory system,03-Dec-2013,2676454-XL102993,975.00,PARK ELECTRICAL DISTRIBUTORS LTD.
Neighbourhood Services,Technical Services,Stock,926900,Stock in hand-Inventory system,03-Dec-2013,2676454-XL103074,"2,100.00",PARK ELECTRICAL DISTRIBUTORS LTD.
Neighbourhood Services,Technical Services,Stock,926900,Stock in hand-Inventory system,03-Dec-2013,2676454-XL103188,"1,250.00",PARK ELECTRICAL DISTRIBUTORS LTD.
Neighbourhood Services,Technical Services,Supplies and Services,304221,Equipment and Materials,03-Dec-2013,2676458-340,"1,308.00",PAUL BATSON T/A BATSON GROUNDWORKS & CONSTRUCTION.
Neighbourhood Services,Technical Services,Stock,926900,Stock in hand-Inventory system,03-Dec-2013,2676463-4044412,"3,426.92",USE (164993) PDT SEALING SYSTEMS LTD.
Neighbourhood Services,Technical Services,Supplies and Services,304358,Equipment and Materials,03-Dec-2013,2676543-2013107,"2,157.00",SHIREHAVEN LTD.
Neighbourhood Services,Technical Services,Supplies and Services,304221,Equipment and Materials,03-Dec-2013,2676585-053644,"1,193.36",STONEGRAVE AGGREGATES LTD.
Neighbourhood Services,Technical Services,Supplies and Services,304221,Equipment and Materials,03-Dec-2013,2676585-057593,"1,399.08",STONEGRAVE AGGREGATES LTD.
Neighbourhood Services,Technical Services,Stock,926900,Stock in hand-Inventory system,03-Dec-2013,2676624-N/IN110987,748.34,THOMAS OWEN & SONS (NEWCASTLE) LTD.
Neighbourhood Services,Technical Services,Stock,926900,Stock in hand-Inventory system,03-Dec-2013,2676624-N/IN110988,734.88,THOMAS OWEN & SONS (NEWCASTLE) LTD.
Neighbourhood Services,Technical Services,Stock,926900,Stock in hand-Inventory system,03-Dec-2013,2676624-N/IN111175,"1,845.70",THOMAS OWEN & SONS (NEWCASTLE) LTD.
Neighbourhood Services,Technical Services,Supplies and Services,304358,Equipment and Materials,03-Dec-2013,2676692-3626,"1,856.99",YOULL CONSTRUCTION LTD.
RED HRA,Housing Revenue Account,Supplies and Services,344033,Telephones,03-Dec-2013,2676082-12402723,797.50,CABLE & WIRELESS UK.
RED HRA,Housing Revenue Account,Premises,105003,HRA Repair & Maintenance,03-Dec-2013,2676380-183173,"12,640.95",MITIE PROPERTY SERVICES (UK) LTD.
RED HRA,Housing Revenue Account,Supplies and Services,342007,Computers and Communications,03-Dec-2013,2676688-DCC054,"1,475.00",WYNYARD IT & CONSULTANCY SERVICES LT.
RED HRA,HRA Capital,Construction Work,908105,Construction work,03-Dec-2013,2676377,552.00,SGS MIS ENVIRONMENTAL LTD.
RED HRA,HRA Capital,Construction Work,908105,Construction work,03-Dec-2013,2676695-29711,613.24,YWC GROUP LTD.
Regeneration & Economic Development,Economic Development and Housing,Supplies and Services,384700,Miscellaneous Expenses,03-Dec-2013,2676174-RED-12-2013-011,"1,425.60",DURHAM SCOUT COUNTY.
Regeneration & Economic Development,Economic Development and Housing,Supplies and Services,338029,Services,03-Dec-2013,2676315-1268,"8,950.00",KARENIC COMMUNICATIONS LTD.
Regeneration & Economic Development,Economic Development and Housing,Construction Work,908105,Construction work,03-Dec-2013,2676432-2000009934,"50,939.11",NORTHERN GAS NETWORKS LTD.
Regeneration & Economic Development,Economic Development and Housing,Premises,120009,Energy Costs,03-Dec-2013,2676437-NNO7HQVF,"1,577.80",NPOWER.
Regeneration & Economic Development,Economic Development and Housing,Premises,120009,Energy Costs,03-Dec-2013,2676437-NNO7HWGQ,"1,146.58",NPOWER.
Regeneration & Economic Development,Economic Development and Housing,Fees,901001,Internal fees,03-Dec-2013,2676627-SITRH/0005879,511.80,THREE RIVERS HOUSING ASSOCIATION LTD.
Regeneration & Economic Development,Economic Development and Housing,Supplies and Services,338066,Services,03-Dec-2013,2676639-OrderNo1322689,"3,032.76",TRAVELEX GLOBAL BUSINESS PAYMENTS LTD.
Regeneration & Economic Development,Economic Development and Housing,Supplies and Services,384071,Miscellaneous Expenses,03-Dec-2013,2676639-OrderNo1322690,855.44,TRAVELEX GLOBAL BUSINESS PAYMENTS LTD.
Regeneration & Economic Development,"Spatial Policy, Planning, Assets & Environment",Supplies and Services,336005,Advertising,03-Dec-2013,2676416-4614594,"1,128.87",NEWSQUEST (YORKSHIRE & NORTH EAST) LTD.
Regeneration & Economic Development,Transport and Contracted Services,Third Party Payments,430106,Rendered by Private Contractors,03-Dec-2013,2676017-105967,"104,341.23",ARRIVA NORTH EAST LTD.
Regeneration & Economic Development,Transport and Contracted Services,Construction Work,908105,Construction work,03-Dec-2013,2676080-20560,"2,804.01",BUS SHELTERS LTD.
Regeneration & Economic Development,Transport and Contracted Services,Supplies and Services,336005,Advertising,03-Dec-2013,2676416-4558166,897.04,NEWSQUEST (YORKSHIRE & NORTH EAST) LTD.
Regeneration & Economic Development,Transport and Contracted Services,Premises,120009,Energy Costs,03-Dec-2013,2676437-NNO7DBCN,838.74,NPOWER.
Regeneration & Economic Development,Transport and Contracted Services,Premises,120009,Energy Costs,03-Dec-2013,2676437-NNO7GS8F,814.24,NPOWER.
Regeneration & Economic Development,Transport and Contracted Services,Premises,120009,Energy Costs,03-Dec-2013,2676437-NNO7HRK5,814.24,NPOWER.
Assistant Chief Executive,Partnerships & Community Engagement Div.,Supplies and Services,384085,Miscellaneous Expenses,04-Dec-2013,226255-13,500.00,NORTH LODGE RESIDENTS ASSOCIATION.
Assistant Chief Executive,Partnerships & Community Engagement Div.,Supplies and Services,384085,Miscellaneous Expenses,04-Dec-2013,226274--13,500.00,SALVATION ARMY.
Assistant Chief Executive,Partnerships & Community Engagement Div.,Supplies and Services,384085,Miscellaneous Expenses,04-Dec-2013,226277-13,500.00,SHINCLIFFE PARISH COUNCIL.
Children and Adult Services,Childrens care,Income,710697,Other Grants and Contributions,04-Dec-2013,226158,565.00,HSTC.
Children and Adult Services,Childrens care,Third Party Payments,425041,Rendered by Voluntary Organisations,04-Dec-2013,226251-1800006716123,"2,897.26",NEWCASTLE UPON TYNE CITY COUNCIL.
Children and Adult Services,Commissioning inc Supporting People,Supplies and Services,384700,Miscellaneous Expenses,04-Dec-2013,226284-1-2013-080,"1,550.00",THE COMMUNITY CLUB.
Children and Adult Services,Commissioning inc Supporting People,Supplies and Services,372009,Subscriptions,04-Dec-2013,2676804-13006,"1,500.00",NETSWORK.
Children and Adult Services,Early Intervention and Involvement,Supplies and Services,384199,Miscellaneous Expenses,04-Dec-2013,226179-SSWC001MB,646.00,MASON & BONE PAINTING CONTRACTORS LTD.
Children and Adult Services,Education,Transport,230009,Contract Hire,04-Dec-2013,226080-10/2013/7283,522.00,COLLINS TAXIS.
Children and Adult Services,Education,Transport,230008,Contract Hire,04-Dec-2013,226281-1085,812.40,STATION TAXIS (SUNDERLAND).
Children and Adult Services,Education,Transport,235057,Public Transport,04-Dec-2013,2676728-405673,"4,310.16",CLICK TRAVEL LTD.
Children and Adult Services,Education,Supplies and Services,338094,Services,04-Dec-2013,2676736-3439,518.10,DEAN BANK & FERRYHILL LITERARY INSTITUTE.
Children and Adult Services,Education,"Vehicles, Equipment, Furniture and Fittings",912701,Computer equipment,04-Dec-2013,2676743-20120005804,"12,359.20",ECONOCOM PLC.
Children and Adult Services,Education,Supplies and Services,304259,Equipment and Materials,04-Dec-2013,2676749-961487,"1,083.25",GL ASSESSMENT LTD.
Children and Adult Services,Education,Supplies and Services,384700,Miscellaneous Expenses,04-Dec-2013,2676756,"10,500.00",HORDEN YOUTH & COMMUNITY ASSOCIATION.
Children and Adult Services,Education,Supplies and Services,384700,Miscellaneous Expenses,04-Dec-2013,2676820,"10,500.00",PARKSIDE & DISTRICT COMMUNITY ASSOCIATION.
Children and Adult Services,Education,"Vehicles, Equipment, Furniture and Fittings",912701,Computer equipment,04-Dec-2013,2676825-2201,"6,850.00",RE-MARKETING LTD.
Children and Adult Services,Education,"Vehicles, Equipment, Furniture and Fittings",912529,Purchase-equipment,04-Dec-2013,2676829,663.33,S & E ENTERPRISES T/A SOCCERWAVE UK.
Children and Adult Services,Education,Supplies and Services,384700,Miscellaneous Expenses,04-Dec-2013,2676839,"10,500.00",STANHOPE COMMUNITY CENTRE.
Children and Adult Services,Education,Supplies and Services,384700,Miscellaneous Expenses,04-Dec-2013,2676840-DCC01,"10,500.00",STANLEY COMMUNITY ASSOCIATION.
Children and Adult Services,Education,Premises,125009,Rents,04-Dec-2013,2676855-2808,"4,813.75",THE WORK PLACE (AYCLIFFE) LTD.
Children and Adult Services,Education,Employees,040001,"Recruitment, Instruction and Training",04-Dec-2013,2676861,607.50,TSL EDUCATION LTD.
Children and Adult Services,Head of Adults,Supplies and Services,304252,Equipment and Materials,04-Dec-2013,226062-J71,527.00,BEAMISH DECORATORS.
Children and Adult Services,Head of Adults,Income,720033,Fees and Charges,04-Dec-2013,226185-11-2013-067,"1,818.78",REDACTED - PAYMENT TO INDIVIDUAL
Children and Adult Services,Head of Adults,Premises,125009,Rents,04-Dec-2013,2676737,"17,696.34",DERWENTSIDE HOMES LTD.
Children and Adult Services,Public Health,Third Party Payments,460802,Contract Payments,04-Dec-2013,226077-A83036QTR2,550.00,CHASTLETON MEDICAL GROUP.
Children and Adult Services,Public Health,Third Party Payments,460802,Contract Payments,04-Dec-2013,226094-A83017/AUG/2013,"4,253.59",DR M PARTNERS.
Children and Adult Services,Public Health,Third Party Payments,460803,Contract Payments,04-Dec-2013,226138-FU165/OCT/13,"1,790.34",G WHITFIELD LTD.
Children and Adult Services,Public Health,Third Party Payments,460803,Contract Payments,04-Dec-2013,226168-FFC99/OCT/13,677.19,LLOYDS PHARMACY.
Children and Adult Services,Public Health,Third Party Payments,460803,Contract Payments,04-Dec-2013,226169-FHM85/OCT/13,"1,304.07",LLOYDS PHARMACY.
Children and Adult Services,Public Health,Third Party Payments,460803,Contract Payments,04-Dec-2013,226170-FXA93/OCT/13,"1,822.62",LLOYDS PHARMACY.
Children and Adult Services,Public Health,Third Party Payments,460803,Contract Payments,04-Dec-2013,226171-FRO810/OCT/13,772.55,LLOYDS PHARMACY.
Children and Adult Services,Public Health,Third Party Payments,460803,Contract Payments,04-Dec-2013,226172-FRR32/OCT/13,"1,582.55",LLOYDS PHARMACY.
Children and Adult Services,Public Health,Third Party Payments,460803,Contract Payments,04-Dec-2013,226181-FUH83/JUNE13,817.43,USE (167127) MEIKLES CHEMISTS.
Children and Adult Services,Public Health,Third Party Payments,460802,Contract Payments,04-Dec-2013,226262,"3,909.98",PELTON & FELLROSE MEDICAL GROUP.
Children and Adult Services,Public Health,Third Party Payments,460803,Contract Payments,04-Dec-2013,226269-2013021,"30,000.00",RELATE.
Children and Adult Services,Public Health,Third Party Payments,460803,Contract Payments,04-Dec-2013,226270-5507,"30,050.00",RELAX KIDS.
Children and Adult Services,Public Health,Third Party Payments,460803,Contract Payments,04-Dec-2013,2676708-FD49SEP2013,542.00,BOOTS THE CHEMISTS LTD.
Children and Adult Services,Public Health,Third Party Payments,460803,Contract Payments,04-Dec-2013,2676709,848.55,BOOTS THE CHEMISTS LTD.
Children and Adult Services,Public Health,Third Party Payments,460803,Contract Payments,04-Dec-2013,2676714-FF604/AUG13,915.19,BOOTS THE CHEMISTS LTD.
Children and Adult Services,Public Health,Third Party Payments,460802,Contract Payments,04-Dec-2013,2676715-8924,736.87,BOOTS THE CHEMISTS LTD.
Children and Adult Services,Public Health,Third Party Payments,460803,Contract Payments,04-Dec-2013,2676717-FNC75/AUG13,609.54,BOOTS THE CHEMISTS LTD.
Children and Adult Services,Public Health,Third Party Payments,460803,Contract Payments,04-Dec-2013,2676718-FA268/AUG/13,"1,007.72",BOWBURN PHARMACY.
Children and Adult Services,Public Health,Third Party Payments,460803,Contract Payments,04-Dec-2013,2676725-FJV36/AUG13,842.82,CHAMBERS CHEMIST.
Children and Adult Services,Public Health,Third Party Payments,460803,Contract Payments,04-Dec-2013,2676731,"1,940.08",CO-OPERATIVE PHARMACY.
Children and Adult Services,Public Health,Third Party Payments,460803,Contract Payments,04-Dec-2013,2676732-FDR43/AUG13,"1,073.45",CO-OPERATIVE PHARMACY.
Children and Adult Services,Public Health,Third Party Payments,460803,Contract Payments,04-Dec-2013,2676738-FLX61/AUG13,567.30,DIXON & HALL LTD.
Children and Adult Services,Public Health,Third Party Payments,460803,Contract Payments,04-Dec-2013,2676738,"1,867.46",DIXON & HALL LTD.
Children and Adult Services,Public Health,Third Party Payments,460803,Contract Payments,04-Dec-2013,2676753,"1,731.62",HANCOCK & AINSLEY CHEMIST LTD.
Children and Adult Services,Public Health,Third Party Payments,460803,Contract Payments,04-Dec-2013,2676832-FJW29/AUG13,"1,621.76",SHOTTON PHARMACY.
Children and Adult Services,Public Health,Third Party Payments,460803,Contract Payments,04-Dec-2013,2676848-FVH83/AUG13,653.32,T MEIKLE PHARMACY.
Corporate Resources,Corporate Finance,Supplies and Services,342051,Computers and Communications,04-Dec-2013,2676706-101250,"3,000.00",BEYOND SYSTEMS.
Corporate Resources,I.C.T. Services,Supplies and Services,352001,Conference Expenses,04-Dec-2013,2676816-964,517.57,OE CAM LLP.
Corporate Resources,I.C.T. Services,"Vehicles, Equipment, Furniture and Fittings",912701,Computer equipment,04-Dec-2013,2676836,"2,052.94",SOFTCAT LTD.
Dedicated Schools Grant,Dedicated Schools Grant,Third Party Payments,425005,Rendered by Voluntary Organisations,04-Dec-2013,226150-SIN047956,"15,975.60",HENSHAWS SOCIETY FOR THE BLIND.
Dedicated Schools Grant,Dedicated Schools Grant,Transfer Payments,510034,School Children,04-Dec-2013,2676779,900.00,LONGFIELD ACADEMY OF SPORT.
Dedicated Schools Grant,Dedicated Schools Grant,Transfer Payments,510034,School Children,04-Dec-2013,2676838,"1,800.00",ST BEDES CATHOLIC ACADEMY (LANCHESTER).
Dedicated Schools Grant,Dedicated Schools Grant,Transfer Payments,510034,School Children,04-Dec-2013,2676842,"1,125.00",STEPHENSON WAY COMMUNITY PRIMARY SCHOOL.
Dedicated Schools Grant,Dedicated Schools Grant,Transfer Payments,510034,School Children,04-Dec-2013,2676874,"3,450.00",WOODHAM ACADEMY.
Neighbourhood Services,Culture & Sport,Supplies and Services,338099,Services,04-Dec-2013,2676701-100269,"90,000.00",ARTICHOKE TRUST.
Neighbourhood Services,Culture & Sport,Supplies and Services,324117,Provisions,04-Dec-2013,2676722-EW54682572,889.10,CARLSBERG UK LTD.
Neighbourhood Services,Culture & Sport,Supplies and Services,324117,Provisions,04-Dec-2013,2676783-173364,557.30,MARK TONEY & CO LTD.
Neighbourhood Services,Culture & Sport,Supplies and Services,352001,Conference Expenses,04-Dec-2013,2676833-046,512.00,SJMK CONSULTING LTD T/A MY FIRST AID.
Neighbourhood Services,Direct Services,Third Party Payments,430100,Rendered by Private Contractors,04-Dec-2013,226117,"2,740.00",ENVIRONMENT AGENCY.
Neighbourhood Services,Direct Services,Transport,210057,Repair and Maintenance of Vehicles,04-Dec-2013,2676752,550.67,HAGS-SMP LTD.
Neighbourhood Services,Direct Services,Third Party Payments,430100,Rendered by Private Contractors,04-Dec-2013,2676723-020,842.09,CEILINGS DIRECT LTD.
Neighbourhood Services,Direct Services,Third Party Payments,430100,Rendered by Private Contractors,04-Dec-2013,2676734-15716,958.51,COUPE LINE LTD.
Neighbourhood Services,Direct Services,Supplies and Services,304259,Equipment and Materials,04-Dec-2013,2676755-67507,663.00,HEPSCOTT WATER SYSTEMS LTD.
Neighbourhood Services,Direct Services,Supplies and Services,304221,Equipment and Materials,04-Dec-2013,2676757-B33/0061097,753.51,HOWDENS JOINERY LTD.
Neighbourhood Services,Direct Services,Supplies and Services,304221,Equipment and Materials,04-Dec-2013,2676757-B33/0061270,940.17,HOWDENS JOINERY LTD.
Neighbourhood Services,Direct Services,Supplies and Services,304221,Equipment and Materials,04-Dec-2013,2676757-B33/0061510,671.28,HOWDENS JOINERY LTD.
Neighbourhood Services,Direct Services,Supplies and Services,304221,Equipment and Materials,04-Dec-2013,2676769-NQI40231,657.00,JT DOVE LTD.
Neighbourhood Services,Direct Services,Construction Work,908105,Construction work,04-Dec-2013,2676808-2586,"6,361.24",NORTHERN ENERGY CONNECTIONS LTD.
Neighbourhood Services,Direct Services,Third Party Payments,430100,Rendered by Private Contractors,04-Dec-2013,2676809-46752,"9,255.59",NORTHERN HOUSING CONSORTIUM LTD.
Neighbourhood Services,Direct Services,Supplies and Services,304221,Equipment and Materials,04-Dec-2013,2676823-INV199964,860.34,POINTER LTD.
Neighbourhood Services,Direct Services,Third Party Payments,430100,Rendered by Private Contractors,04-Dec-2013,2676841-R050012922,"1,085.00",STANNAH LIFT SERVICE LTD.
Neighbourhood Services,Direct Services,Supplies and Services,304221,Equipment and Materials,04-Dec-2013,2676847-JE00509/TL/EP,551.57,T MANNERS & SONS LTD.
Neighbourhood Services,Direct Services,Supplies and Services,304357,Equipment and Materials,04-Dec-2013,2676867-36230,750.00,W MARLEY AGRICULTURAL CONTRACTORS LTD.
Neighbourhood Services,Direct Services,Supplies and Services,304221,Equipment and Materials,04-Dec-2013,2676872-85991838,799.30,WOLSELEY UK LTD.
Neighbourhood Services,"Environment,Health & Consumer Protection",Supplies and Services,338013,Services,04-Dec-2013,2676831-WWB1050781,"2,921.80",SGS UNITED KINGDOM LTD.
Neighbourhood Services,Projects and Business services,Supplies and Services,304999,Equipment and Materials,04-Dec-2013,2676748-DVU01338,955.38,FUSION PROVIDA LTD.
Neighbourhood Services,Projects and Business services,Premises,120009,Energy Costs,04-Dec-2013,2676837-241558321/0002,989.68,SOUTHERN ELECTRIC.
Neighbourhood Services,Projects and Business services,Premises,120009,Energy Costs,04-Dec-2013,2676837-451557224/0006,515.18,SOUTHERN ELECTRIC.
Neighbourhood Services,Projects and Business services,Premises,120009,Energy Costs,04-Dec-2013,2676837-51556824/0002,"1,206.67",SOUTHERN ELECTRIC.
Neighbourhood Services,Technical Services,Supplies and Services,304221,Equipment and Materials,04-Dec-2013,2676698-18692785,932.54,AGGREGATE INDUSTRIES UK LTD.
Neighbourhood Services,Technical Services,Supplies and Services,304221,Equipment and Materials,04-Dec-2013,2676698-18696618,861.52,AGGREGATE INDUSTRIES UK LTD.
Neighbourhood Services,Technical Services,Supplies and Services,304221,Equipment and Materials,04-Dec-2013,2676698-18702496,"1,360.30",AGGREGATE INDUSTRIES UK LTD.
Neighbourhood Services,Technical Services,Supplies and Services,304221,Equipment and Materials,04-Dec-2013,2676698-18708926,"1,591.60",AGGREGATE INDUSTRIES UK LTD.
Neighbourhood Services,Technical Services,Supplies and Services,304221,Equipment and Materials,04-Dec-2013,2676698-18714901,"1,706.78",AGGREGATE INDUSTRIES UK LTD.
Neighbourhood Services,Technical Services,Supplies and Services,304221,Equipment and Materials,04-Dec-2013,2676698-18926706,642.08,AGGREGATE INDUSTRIES UK LTD.
Neighbourhood Services,Technical Services,Supplies and Services,304221,Equipment and Materials,04-Dec-2013,2676698-18996920,"1,961.42",AGGREGATE INDUSTRIES UK LTD.
Neighbourhood Services,Technical Services,Supplies and Services,304221,Equipment and Materials,04-Dec-2013,2676698-19028971,"1,096.80",AGGREGATE INDUSTRIES UK LTD.
Neighbourhood Services,Technical Services,Supplies and Services,304221,Equipment and Materials,04-Dec-2013,2676698-19028975,"2,020.00",AGGREGATE INDUSTRIES UK LTD.
Neighbourhood Services,Technical Services,Supplies and Services,304221,Equipment and Materials,04-Dec-2013,2676698-19028977,828.66,AGGREGATE INDUSTRIES UK LTD.
Neighbourhood Services,Technical Services,Supplies and Services,304221,Equipment and Materials,04-Dec-2013,2676698-19035022,"1,107.60",AGGREGATE INDUSTRIES UK LTD.
Neighbourhood Services,Technical Services,Supplies and Services,304221,Equipment and Materials,04-Dec-2013,2676698-19035026,599.70,AGGREGATE INDUSTRIES UK LTD.
Neighbourhood Services,Technical Services,Supplies and Services,304221,Equipment and Materials,04-Dec-2013,2676698-19041150,970.80,AGGREGATE INDUSTRIES UK LTD.
Neighbourhood Services,Technical Services,Supplies and Services,304221,Equipment and Materials,04-Dec-2013,2676698-19050521,657.36,AGGREGATE INDUSTRIES UK LTD.
Neighbourhood Services,Technical Services,Supplies and Services,304221,Equipment and Materials,04-Dec-2013,2676698-19050524,900.08,AGGREGATE INDUSTRIES UK LTD.
Neighbourhood Services,Technical Services,Supplies and Services,304221,Equipment and Materials,04-Dec-2013,2676698-19055294,655.28,AGGREGATE INDUSTRIES UK LTD.
Neighbourhood Services,Technical Services,Supplies and Services,304221,Equipment and Materials,04-Dec-2013,2676698-19055296,831.23,AGGREGATE INDUSTRIES UK LTD.
Neighbourhood Services,Technical Services,Supplies and Services,304221,Equipment and Materials,04-Dec-2013,2676698-19061222,"2,004.85",AGGREGATE INDUSTRIES UK LTD.
Neighbourhood Services,Technical Services,Supplies and Services,304357,Equipment and Materials,04-Dec-2013,2676720-NEW8101808,524.40,BURNT TREE GROUP LTD.
Neighbourhood Services,Technical Services,Supplies and Services,304357,Equipment and Materials,04-Dec-2013,2676720-NEW8101826,524.40,BURNT TREE GROUP LTD.
Neighbourhood Services,Technical Services,Supplies and Services,304357,Equipment and Materials,04-Dec-2013,2676720-NEW8101828,506.00,BURNT TREE GROUP LTD.
Neighbourhood Services,Technical Services,Supplies and Services,304357,Equipment and Materials,04-Dec-2013,2676720-NEW8103447,506.00,BURNT TREE GROUP LTD.
Neighbourhood Services,Technical Services,Supplies and Services,304357,Equipment and Materials,04-Dec-2013,2676720-NEW8103451,506.00,BURNT TREE GROUP LTD.
Neighbourhood Services,Technical Services,Stock,926900,Stock in hand-Inventory system,04-Dec-2013,2676746-OP/I274694,759.08,FLEMING & CO (MACHINERY) LTD.
Neighbourhood Services,Technical Services,Stock,926900,Stock in hand-Inventory system,04-Dec-2013,2676751-06/488792,"1,449.36",GREENHAM TRADING LTD.
Neighbourhood Services,Technical Services,Stock,926900,Stock in hand-Inventory system,04-Dec-2013,2676761-428678,"2,984.80",INSTARMAC GROUP PLC.
Neighbourhood Services,Technical Services,Supplies and Services,304358,Equipment and Materials,04-Dec-2013,2676762-5304513,"1,269.32",JA GILSON (AGRICULTURAL CONTRACTORS) LTD.
Neighbourhood Services,Technical Services,Supplies and Services,304358,Equipment and Materials,04-Dec-2013,2676762-5304514,"1,137.26",JA GILSON (AGRICULTURAL CONTRACTORS) LTD.
Neighbourhood Services,Technical Services,Supplies and Services,304358,Equipment and Materials,04-Dec-2013,2676762-5304515,"1,391.14",JA GILSON (AGRICULTURAL CONTRACTORS) LTD.
Neighbourhood Services,Technical Services,Supplies and Services,304358,Equipment and Materials,04-Dec-2013,2676765-14955,816.70,JOHN R BUTTERFIELD LTD.
Neighbourhood Services,Technical Services,Supplies and Services,304358,Equipment and Materials,04-Dec-2013,2676765-15158,948.00,JOHN R BUTTERFIELD LTD.
Neighbourhood Services,Technical Services,Supplies and Services,304221,Equipment and Materials,04-Dec-2013,2676769-CNI18431/D,"1,925.64",JT DOVE LTD.
Neighbourhood Services,Technical Services,Stock,926900,Stock in hand-Inventory system,04-Dec-2013,2676769-STI392562,527.61,JT DOVE LTD.
Neighbourhood Services,Technical Services,Third Party Payments,430100,Rendered by Private Contractors,04-Dec-2013,2676770-808,"4,500.00",KEVIN SNOWDON GROUNDWORKS LTD.
Neighbourhood Services,Technical Services,Third Party Payments,430100,Rendered by Private Contractors,04-Dec-2013,2676770-809,"4,500.00",KEVIN SNOWDON GROUNDWORKS LTD.
Neighbourhood Services,Technical Services,Supplies and Services,304358,Equipment and Materials,04-Dec-2013,2676770-811,567.00,KEVIN SNOWDON GROUNDWORKS LTD.
Neighbourhood Services,Technical Services,Supplies and Services,304358,Equipment and Materials,04-Dec-2013,2676770-812,"1,496.50",KEVIN SNOWDON GROUNDWORKS LTD.
Neighbourhood Services,Technical Services,Supplies and Services,304221,Equipment and Materials,04-Dec-2013,2676772-9030012800,626.00,LAFARGE TARMAC TRADING LTD.
Neighbourhood Services,Technical Services,Supplies and Services,304221,Equipment and Materials,04-Dec-2013,2676772-9030296365,560.80,LAFARGE TARMAC TRADING LTD.
Neighbourhood Services,Technical Services,Supplies and Services,304221,Equipment and Materials,04-Dec-2013,2676772-9030319129,742.60,LAFARGE TARMAC TRADING LTD.
Neighbourhood Services,Technical Services,Stock,926900,Stock in hand-Inventory system,04-Dec-2013,2676786-001/74339,"2,590.00",MH SOUTHERN & CO LTD.
Neighbourhood Services,Technical Services,Third Party Payments,430100,Rendered by Private Contractors,04-Dec-2013,2676803-NC17/C235/BW,"5,062.88",NEDCO CONTRACTS (NE) LTD.
Neighbourhood Services,Technical Services,Third Party Payments,430100,Rendered by Private Contractors,04-Dec-2013,2676818-SIN3010972,"10,388.22",OWEN PUGH CONTRACTS LTD.
Neighbourhood Services,Technical Services,Stock,926900,Stock in hand-Inventory system,04-Dec-2013,2676819-XL101283,"3,132.00",PARK ELECTRICAL DISTRIBUTORS LTD.
Neighbourhood Services,Technical Services,Stock,926900,Stock in hand-Inventory system,04-Dec-2013,2676819-XL103119,"1,390.30",PARK ELECTRICAL DISTRIBUTORS LTD.
Neighbourhood Services,Technical Services,Stock,926900,Stock in hand-Inventory system,04-Dec-2013,2676846-0969511,"1,887.90",T CROSSLING & CO LTD.
Neighbourhood Services,Technical Services,Stock,926900,Stock in hand-Inventory system,04-Dec-2013,2676846-0977622,638.40,T CROSSLING & CO LTD.
Neighbourhood Services,Technical Services,Supplies and Services,304221,Equipment and Materials,04-Dec-2013,2676860-23397,525.00,TODDS HIGHWAY MAINTENANCE LTD.
Neighbourhood Services,Technical Services,Supplies and Services,304358,Equipment and Materials,04-Dec-2013,2676876-3620,984.00,YOULL CONSTRUCTION LTD.
RED HRA,Housing Revenue Account,Supplies and Services,340001,Postages,04-Dec-2013,2676828,604.79,ROYAL MAIL GROUP PLC.
RED HRA,HRA Capital,Other Expenses,914001,Other capital expenses,04-Dec-2013,2676863-URI125,755.00,UNIQUE RESINS LTD T/A METFLEX SYSTEMS.
RED HRA,HRA Centrally Managed,Creditors,952191,Creditor-HRA-rents-refunds,04-Dec-2013,226195,706.16,REDACTED - PAYMENT TO INDIVIDUAL
RED HRA,HRA Centrally Managed,Supplies and Services,384999,Miscellaneous Expenses,04-Dec-2013,226220,844.14,REDACTED - PAYMENT TO INDIVIDUAL
RED HRA,HRA Centrally Managed,Supplies and Services,384999,Miscellaneous Expenses,04-Dec-2013,226223,"1,103.96",REDACTED - PAYMENT TO INDIVIDUAL
Regeneration & Economic Development,Economic Development and Housing,Other Expenses,914006,Tenants Allowances,04-Dec-2013,226239-RED-11-2013-215,"4,675.73",REDACTED - PAYMENT TO INDIVIDUAL
Regeneration & Economic Development,Economic Development and Housing,Cap Exp on Grants & Other Financial Assistance (REFCUS),918401,Capital grants,04-Dec-2013,2676699-RED-11-2013-177,"2,172.00",ALAN LEE & SON.
Regeneration & Economic Development,Economic Development and Housing,Supplies and Services,384899,Miscellaneous Expenses,04-Dec-2013,2676703,598.50,BARNARD CASTLE TOWN COUNCIL.
Regeneration & Economic Development,Economic Development and Housing,Supplies and Services,368008,Incentives to Industrialists,04-Dec-2013,2676767-EN002-0112988,"5,000.00",JONES LANG LASALLE.
Regeneration & Economic Development,Economic Development and Housing,Construction Work,908105,Construction work,04-Dec-2013,2676771-A50345-2,"3,944.49",KIER SERVICES LTD.
Regeneration & Economic Development,Economic Development and Housing,Supplies and Services,384700,Miscellaneous Expenses,04-Dec-2013,2676830-RED-12-2013-022,"48,000.00",SEAHAM HARBOUR CIC.
Regeneration & Economic Development,Economic Development and Housing,Fees,901001,Internal fees,04-Dec-2013,2676858-SITRH/0005862,561.60,THREE RIVERS HOUSING ASSOCIATION LTD.
Regeneration & Economic Development,Economic Development and Housing,Cap Exp on Grants & Other Financial Assistance (REFCUS),918401,Capital grants,04-Dec-2013,2676859-RED-11-2013-179,"1,385.00",THYSSENKRUPP ENCASA LTD.
Regeneration & Economic Development,Economic Development and Housing,Cap Exp on Grants & Other Financial Assistance (REFCUS),918401,Capital grants,04-Dec-2013,2676859-RED-11-2013-180,"4,265.00",THYSSENKRUPP ENCASA LTD.
Regeneration & Economic Development,Economic Development and Housing,Cap Exp on Grants & Other Financial Assistance (REFCUS),918401,Capital grants,04-Dec-2013,2676859-RED-11-2013-181,"1,815.00",THYSSENKRUPP ENCASA LTD.
Regeneration & Economic Development,"Spatial Policy, Planning, Assets & Environment",Income,720190,Fees and Charges,04-Dec-2013,226263-RED-11-2013-192,780.00,PENRITH FARMERS & KIDDS LAND AGENCY.
Regeneration & Economic Development,Transport and Contracted Services,Construction Work,908105,Construction work,04-Dec-2013,2676721-NO20884,820.00,BUS SHELTERS LTD.
Assistant Chief Executive,Partnerships & Community Engagement Div.,Transfer Payments,525030,Other,05-Dec-2013,2678830-007,"4,345.00",SACRISTON COLLIERY CRICKET CLUB.
Children and Adult Services,Childrens care,Transfer Payments,515201,Social Services Clients,05-Dec-2013,2676896-1383523H,510.00,REDACTED - PAYMENT TO INDIVIDUAL
Children and Adult Services,Childrens care,Transfer Payments,515201,Social Services Clients,05-Dec-2013,2676898-1383959H,"1,232.00",REDACTED - PAYMENT TO INDIVIDUAL
Children and Adult Services,Childrens care,Transfer Payments,515201,Social Services Clients,05-Dec-2013,2676917-1384093H,"1,110.00",REDACTED - PAYMENT TO INDIVIDUAL
Children and Adult Services,Childrens care,Transfer Payments,515201,Social Services Clients,05-Dec-2013,2676918-1383154H,"1,485.00",REDACTED - PAYMENT TO INDIVIDUAL
Children and Adult Services,Childrens care,Transfer Payments,515201,Social Services Clients,05-Dec-2013,2676923-1384722H,"2,048.00",REDACTED - PAYMENT TO INDIVIDUAL
Children and Adult Services,Childrens care,Transfer Payments,515201,Social Services Clients,05-Dec-2013,2676927-1383323H,978.00,REDACTED - PAYMENT TO INDIVIDUAL
Children and Adult Services,Childrens care,Transfer Payments,515201,Social Services Clients,05-Dec-2013,2676942-1385033H,630.00,REDACTED - PAYMENT TO INDIVIDUAL
Children and Adult Services,Childrens care,Transfer Payments,515201,Social Services Clients,05-Dec-2013,2676949-1385594H,900.00,REDACTED - PAYMENT TO INDIVIDUAL
Children and Adult Services,Childrens care,Transfer Payments,515201,Social Services Clients,05-Dec-2013,2676988-1384549H,572.00,REDACTED - PAYMENT TO INDIVIDUAL
Children and Adult Services,Childrens care,Transfer Payments,515201,Social Services Clients,05-Dec-2013,2676990-1383978H,"1,204.00",REDACTED - PAYMENT TO INDIVIDUAL
Children and Adult Services,Childrens care,Transfer Payments,515201,Social Services Clients,05-Dec-2013,2677000-1384005H,"1,328.00",REDACTED - PAYMENT TO INDIVIDUAL
Children and Adult Services,Childrens care,Transfer Payments,515201,Social Services Clients,05-Dec-2013,2677075-1383364H,720.00,REDACTED - PAYMENT TO INDIVIDUAL
Children and Adult Services,Childrens care,Transfer Payments,515201,Social Services Clients,05-Dec-2013,2677126-1383413H,"1,260.00",REDACTED - PAYMENT TO INDIVIDUAL
Children and Adult Services,Childrens care,Transfer Payments,515201,Social Services Clients,05-Dec-2013,2677142-1384611H,664.00,REDACTED - PAYMENT TO INDIVIDUAL
Children and Adult Services,Childrens care,Transfer Payments,515201,Social Services Clients,05-Dec-2013,2677172-1383261H,960.00,REDACTED - PAYMENT TO INDIVIDUAL
Children and Adult Services,Childrens care,Transfer Payments,515201,Social Services Clients,05-Dec-2013,2677224-1383352H,540.00,REDACTED - PAYMENT TO INDIVIDUAL
Children and Adult Services,Childrens care,Transfer Payments,515201,Social Services Clients,05-Dec-2013,2677253-1383416H,960.00,REDACTED - PAYMENT TO INDIVIDUAL
Children and Adult Services,Childrens care,Transfer Payments,515201,Social Services Clients,05-Dec-2013,2677338-1382508H,510.00,REDACTED - PAYMENT TO INDIVIDUAL
Children and Adult Services,Childrens care,Transfer Payments,515201,Social Services Clients,05-Dec-2013,2677338-1382509H,996.00,REDACTED - PAYMENT TO INDIVIDUAL
Children and Adult Services,Childrens care,Transfer Payments,515201,Social Services Clients,05-Dec-2013,2677340-1382902H,"1,024.00",REDACTED - PAYMENT TO INDIVIDUAL
Children and Adult Services,Childrens care,Transfer Payments,515201,Social Services Clients,05-Dec-2013,2677413-1382320H,510.00,REDACTED - PAYMENT TO INDIVIDUAL
Children and Adult Services,Childrens care,Transfer Payments,515201,Social Services Clients,05-Dec-2013,2677413-1382480H,510.00,REDACTED - PAYMENT TO INDIVIDUAL
Children and Adult Services,Childrens care,Transfer Payments,515201,Social Services Clients,05-Dec-2013,2677426-1384053H,646.00,REDACTED - PAYMENT TO INDIVIDUAL
Children and Adult Services,Childrens care,Transfer Payments,515201,Social Services Clients,05-Dec-2013,2677519-1384668H,"1,200.00",REDACTED - PAYMENT TO INDIVIDUAL
Children and Adult Services,Childrens care,Transfer Payments,515201,Social Services Clients,05-Dec-2013,2677521-1383601H,"1,920.00",REDACTED - PAYMENT TO INDIVIDUAL
Children and Adult Services,Childrens care,Third Party Payments,472101,Purchase of Care,05-Dec-2013,2677530-1382389H,887.21,CAREWATCH (DURHAM & EASINGTON) FASTFLOW ACC.
Children and Adult Services,Childrens care,Third Party Payments,440062,Other Third Party Payments,05-Dec-2013,2677548-1386117H,"2,816.88",CASTLE CARE TEESDALE LTD.
Children and Adult Services,Childrens care,Transfer Payments,515201,Social Services Clients,05-Dec-2013,2677570-1384185H,"5,340.00",REDACTED - PAYMENT TO INDIVIDUAL
Children and Adult Services,Childrens care,Transfer Payments,515201,Social Services Clients,05-Dec-2013,2677581-1385286H,592.50,REDACTED - PAYMENT TO INDIVIDUAL
Children and Adult Services,Childrens care,Third Party Payments,440062,Other Third Party Payments,05-Dec-2013,2677621-1382511H,"1,131.20",COMFORT CALL LTD.
Children and Adult Services,Childrens care,Third Party Payments,440062,Other Third Party Payments,05-Dec-2013,2677621-1382887H,809.57,COMFORT CALL LTD.
Children and Adult Services,Childrens care,Third Party Payments,440062,Other Third Party Payments,05-Dec-2013,2677621-1383022H,"1,430.61",COMFORT CALL LTD.
Children and Adult Services,Childrens care,Third Party Payments,440062,Other Third Party Payments,05-Dec-2013,2677672-1384450H,"1,097.91",DALE CARE LTD.
Children and Adult Services,Childrens care,Third Party Payments,440062,Other Third Party Payments,05-Dec-2013,2677672-1385748H,"1,863.12",DALE CARE LTD.
Children and Adult Services,Childrens care,Transfer Payments,515201,Social Services Clients,05-Dec-2013,2677675-1383170H,615.00,REDACTED - PAYMENT TO INDIVIDUAL
Children and Adult Services,Childrens care,Transfer Payments,515202,Social Services Clients,05-Dec-2013,2677682-1383712H,"1,144.00",REDACTED - PAYMENT TO INDIVIDUAL
Children and Adult Services,Childrens care,Transfer Payments,515201,Social Services Clients,05-Dec-2013,2677699-1383370H,784.00,REDACTED - PAYMENT TO INDIVIDUAL
Children and Adult Services,Childrens care,Transfer Payments,515201,Social Services Clients,05-Dec-2013,2677849-1383050H,"1,144.00",REDACTED - PAYMENT TO INDIVIDUAL
Children and Adult Services,Childrens care,Third Party Payments,440062,Other Third Party Payments,05-Dec-2013,2677900-1385830H,"1,140.00",REDACTED - PAYMENT TO INDIVIDUAL
Children and Adult Services,Childrens care,Third Party Payments,440062,Other Third Party Payments,05-Dec-2013,2677900-1385831H,"1,140.00",REDACTED - PAYMENT TO INDIVIDUAL
Children and Adult Services,Childrens care,Transfer Payments,515201,Social Services Clients,05-Dec-2013,2677912-1382765H,"1,114.00",REDACTED - PAYMENT TO INDIVIDUAL
Children and Adult Services,Childrens care,Transfer Payments,515201,Social Services Clients,05-Dec-2013,2677933-1385111H,660.00,REDACTED - PAYMENT TO INDIVIDUAL
Children and Adult Services,Childrens care,Transfer Payments,515201,Social Services Clients,05-Dec-2013,2678045-1383996H,540.00,REDACTED - PAYMENT TO INDIVIDUAL
Children and Adult Services,Childrens care,Transfer Payments,515201,Social Services Clients,05-Dec-2013,2678051-1384655H,600.00,REDACTED - PAYMENT TO INDIVIDUAL
Children and Adult Services,Childrens care,Transfer Payments,515201,Social Services Clients,05-Dec-2013,2678159-1383238H,600.00,REDACTED - PAYMENT TO INDIVIDUAL
Children and Adult Services,Childrens care,Transfer Payments,515201,Social Services Clients,05-Dec-2013,2678177-1384689H,630.00,REDACTED - PAYMENT TO INDIVIDUAL
Children and Adult Services,Childrens care,Transfer Payments,515201,Social Services Clients,05-Dec-2013,2678206-1383243H,555.00,REDACTED - PAYMENT TO INDIVIDUAL
Children and Adult Services,Childrens care,Transfer Payments,515201,Social Services Clients,05-Dec-2013,2678240-1382471H,600.00,REDACTED - PAYMENT TO INDIVIDUAL
Children and Adult Services,Childrens care,Transfer Payments,515201,Social Services Clients,05-Dec-2013,2678291-1384981H,"1,920.00",REDACTED - PAYMENT TO INDIVIDUAL
Children and Adult Services,Childrens care,Transfer Payments,515201,Social Services Clients,05-Dec-2013,2678395-1383592H,525.00,REDACTED - PAYMENT TO INDIVIDUAL
Children and Adult Services,Childrens care,Transfer Payments,515201,Social Services Clients,05-Dec-2013,2678422-1384197H,962.00,REDACTED - PAYMENT TO INDIVIDUAL
Children and Adult Services,Childrens care,Transfer Payments,515201,Social Services Clients,05-Dec-2013,2678500-1383481H,"1,038.00",REDACTED - PAYMENT TO INDIVIDUAL
Children and Adult Services,Childrens care,Transfer Payments,515202,Social Services Clients,05-Dec-2013,2678533-1383102H,918.00,REDACTED - PAYMENT TO INDIVIDUAL
Children and Adult Services,Childrens care,Transfer Payments,515201,Social Services Clients,05-Dec-2013,2678535-1382689H,"1,338.00",REDACTED - PAYMENT TO INDIVIDUAL
Children and Adult Services,Childrens care,Transfer Payments,515201,Social Services Clients,05-Dec-2013,2678582-1384181H,600.00,REDACTED - PAYMENT TO INDIVIDUAL
Children and Adult Services,Childrens care,Transfer Payments,515201,Social Services Clients,05-Dec-2013,2678645-1383524H,"3,132.00",REDACTED - PAYMENT TO INDIVIDUAL
Children and Adult Services,Childrens care,Transfer Payments,515201,Social Services Clients,05-Dec-2013,2678754-1384019H,542.00,REDACTED - PAYMENT TO INDIVIDUAL
Children and Adult Services,Childrens care,Transfer Payments,515201,Social Services Clients,05-Dec-2013,2678824-1383973H,600.00,REDACTED - PAYMENT TO INDIVIDUAL
Children and Adult Services,Childrens care,Transfer Payments,515201,Social Services Clients,05-Dec-2013,2678856-1383447H,632.00,REDACTED - PAYMENT TO INDIVIDUAL
Children and Adult Services,Childrens care,Third Party Payments,472101,Purchase of Care,05-Dec-2013,2678910-1383191H,765.21,SOCIAL RESOURCE CENTRE LTD.
Children and Adult Services,Childrens care,Transfer Payments,515201,Social Services Clients,05-Dec-2013,2679148-1382951H,692.00,REDACTED - PAYMENT TO INDIVIDUAL
Children and Adult Services,Commissioning inc Supporting People,Third Party Payments,479111,Purchase of Care,05-Dec-2013,2677611-3910002051,"16,379.50",CO DURHAM & DARLINGTON NHS FOUNDATION TRUST.
Children and Adult Services,Commissioning inc Supporting People,Third Party Payments,472113,Purchase of Care,05-Dec-2013,2677672-1379738H,991.72,DALE CARE LTD.
Children and Adult Services,Commissioning inc Supporting People,Third Party Payments,472113,Purchase of Care,05-Dec-2013,2677672-1383380H,696.32,DALE CARE LTD.
Children and Adult Services,Commissioning inc Supporting People,Third Party Payments,472113,Purchase of Care,05-Dec-2013,2677672-1383736H,960.08,DALE CARE LTD.
Children and Adult Services,Commissioning inc Supporting People,Third Party Payments,479101,Purchase of Care,05-Dec-2013,2677752-195/14/1218,"5,000.00",DISC LTD.
Children and Adult Services,Early Intervention and Involvement,Supplies and Services,338035,Services,05-Dec-2013,2677422-SIN006047,"2,266.67",AWARD SCHEME LTD.
Children and Adult Services,Education,Transport,230007,Contract Hire,05-Dec-2013,2676889-A1DCC/505,897.37,A1 TAXIS.
Children and Adult Services,Education,Transport,230007,Contract Hire,05-Dec-2013,2676895-27,"1,040.00",AALPHA TAXIS.
Children and Adult Services,Education,Transport,230008,Contract Hire,05-Dec-2013,2676899-11/2/13,"1,180.00",ABA TAXIS.
Children and Adult Services,Education,Transport,230007,Contract Hire,05-Dec-2013,2676905-540,"1,360.00",AC TAXIS.
Children and Adult Services,Education,Transport,230007,Contract Hire,05-Dec-2013,2676905-541,"1,200.00",AC TAXIS.
Children and Adult Services,Education,Transport,230008,Contract Hire,05-Dec-2013,2677371-38,"1,360.00",ANDY CABS.
Children and Adult Services,Education,Transport,230008,Contract Hire,05-Dec-2013,2677451-393,"1,504.04",BEELINE MINI BUSES.
Children and Adult Services,Education,Transport,230008,Contract Hire,05-Dec-2013,2677451-394,"1,425.00",BEELINE MINI BUSES.
Children and Adult Services,Education,Transport,230008,Contract Hire,05-Dec-2013,2677452-10,"1,600.00",BEELINE PRIVATE HIRE.
Children and Adult Services,Education,Transport,230008,Contract Hire,05-Dec-2013,2677452-1,"1,693.71",BEELINE PRIVATE HIRE.
Children and Adult Services,Education,Transport,230008,Contract Hire,05-Dec-2013,2677452-9,"1,065.00",BEELINE PRIVATE HIRE.
Children and Adult Services,Education,Transport,230008,Contract Hire,05-Dec-2013,2677453-26,"1,520.00",BEELINE TAXIS.
Children and Adult Services,Education,Transport,230007,Contract Hire,05-Dec-2013,2677454-DJ42261113,"5,040.00",BELL BROTHERS TRAVEL.
Children and Adult Services,Education,Transport,230008,Contract Hire,05-Dec-2013,2677477-77,700.00,BL TAXIS.
Children and Adult Services,Education,Transport,230008,Contract Hire,05-Dec-2013,2677501-1113,"2,430.48",BRIAN WAKE.
Children and Adult Services,Education,Transport,230007,Contract Hire,05-Dec-2013,2677502-0397,675.40,BRIANS MINIBUSES.
Children and Adult Services,Education,Transport,230007,Contract Hire,05-Dec-2013,2677549-74,"1,500.00",CASTLE CARS.
Children and Adult Services,Education,Transport,230008,Contract Hire,05-Dec-2013,2677591-016/2013,"1,260.00",CHRIS`S TAXI.
Children and Adult Services,Education,Transport,230007,Contract Hire,05-Dec-2013,2677597-44100,"1,400.00",CJ GRIERSON.
Children and Adult Services,Education,Transport,230007,Contract Hire,05-Dec-2013,2677597-44101,"4,800.00",CJ GRIERSON.
Children and Adult Services,Education,Transport,230008,Contract Hire,05-Dec-2013,2677628-221,"1,864.00",CONNORS MINI BUSES.
Children and Adult Services,Education,Transport,230008,Contract Hire,05-Dec-2013,2677628-222,"1,724.63",CONNORS MINI BUSES.
Children and Adult Services,Education,Transport,230008,Contract Hire,05-Dec-2013,2677628-223,"1,399.54",CONNORS MINI BUSES.
Children and Adult Services,Education,Transport,230008,Contract Hire,05-Dec-2013,2677628-224,"1,842.43",CONNORS MINI BUSES.
Children and Adult Services,Education,Transport,230008,Contract Hire,05-Dec-2013,2677628-225,"1,427.05",CONNORS MINI BUSES.
Children and Adult Services,Education,Transport,230008,Contract Hire,05-Dec-2013,2677666-38,"1,340.00",D CROOK.
Children and Adult Services,Education,Transport,230008,Contract Hire,05-Dec-2013,2677668-1293,"1,400.00",DA TAXIS.
Children and Adult Services,Education,Transport,230008,Contract Hire,05-Dec-2013,2677668-1294,"1,744.20",DA TAXIS.
Children and Adult Services,Education,Transport,230008,Contract Hire,05-Dec-2013,2677668-1295,"1,400.00",DA TAXIS.
Children and Adult Services,Education,Transport,230008,Contract Hire,05-Dec-2013,2677669-039,"1,652.50",DA TRAVEL.
Children and Adult Services,Education,Transport,230008,Contract Hire,05-Dec-2013,2677669-040,"1,287.00",DA TRAVEL.
Children and Adult Services,Education,Transport,230008,Contract Hire,05-Dec-2013,2677691-2016,"1,525.20",DAVES MINIBUSES.
Children and Adult Services,Education,Transport,230008,Contract Hire,05-Dec-2013,2677691-2017,"1,598.00",DAVES MINIBUSES.
Children and Adult Services,Education,Transport,230008,Contract Hire,05-Dec-2013,2677691-2018,"1,428.80",DAVES MINIBUSES.
Children and Adult Services,Education,Transport,230008,Contract Hire,05-Dec-2013,2677691-2019,"1,307.96",DAVES MINIBUSES.
Children and Adult Services,Education,Transport,230008,Contract Hire,05-Dec-2013,2677691-2020,799.00,DAVES MINIBUSES.
Children and Adult Services,Education,Transport,230008,Contract Hire,05-Dec-2013,2677718-1113-001,"1,300.00",DCM TAXIS.
Children and Adult Services,Education,Transport,230008,Contract Hire,05-Dec-2013,2677756-A1202/39,"2,914.22",DMG PRIVATE HIRE.
Children and Adult Services,Education,Transport,230007,Contract Hire,05-Dec-2013,2677786-D02,622.80,DUNCAN G CUMMINGS T/A DC TAXIS.
Children and Adult Services,Education,Transport,230007,Contract Hire,05-Dec-2013,2677786-D2,612.00,DUNCAN G CUMMINGS T/A DC TAXIS.
Children and Adult Services,Education,Supplies and Services,384199,Miscellaneous Expenses,05-Dec-2013,2677800-0000031816,"5,248.00",EAST DURHAM COLLEGE.
Children and Adult Services,Education,Transport,230008,Contract Hire,05-Dec-2013,2677850-0576,"1,499.80",EN ROUTE TRAVEL.
Children and Adult Services,Education,Transport,230007,Contract Hire,05-Dec-2013,2677890-0277,847.20,FMR SILVA PITA.
Children and Adult Services,Education,Transport,230007,Contract Hire,05-Dec-2013,2677920-15906,"11,900.00",GARNETTS LTD (COACHES).
Children and Adult Services,Education,Transport,230007,Contract Hire,05-Dec-2013,2677920-15907,"7,740.00",GARNETTS LTD (COACHES).
Children and Adult Services,Education,Transport,230007,Contract Hire,05-Dec-2013,2677920-15908,"17,780.00",GARNETTS LTD (COACHES).
Children and Adult Services,Education,Transport,230007,Contract Hire,05-Dec-2013,2677920-15910,"3,180.00",GARNETTS LTD (COACHES).
Children and Adult Services,Education,Transport,230007,Contract Hire,05-Dec-2013,2677920-15914,"2,322.00",GARNETTS LTD (COACHES).
Children and Adult Services,Education,Transport,230007,Contract Hire,05-Dec-2013,2677920-15925,"2,641.00",GARNETTS LTD (COACHES).
Children and Adult Services,Education,Transport,230007,Contract Hire,05-Dec-2013,2677920-15928,"4,142.00",GARNETTS LTD (COACHES).
Children and Adult Services,Education,Transport,230007,Contract Hire,05-Dec-2013,2677926-1070,978.80,GEM TRAVEL.
Children and Adult Services,Education,Transport,230007,Contract Hire,05-Dec-2013,2677926-1072,"2,437.32",GEM TRAVEL.
Children and Adult Services,Education,Transport,230008,Contract Hire,05-Dec-2013,2677986-14,"2,035.00",HENRYS TAXIS.
Children and Adult Services,Education,Transport,230008,Contract Hire,05-Dec-2013,2678004-82-29/11/13,"1,176.00",HORNDALE AJ`S TAXIS.
Children and Adult Services,Education,Transport,230008,Contract Hire,05-Dec-2013,2678033-628,988.00,J YOUNG T/A VIP TAXIS.
Children and Adult Services,Education,Transport,230007,Contract Hire,05-Dec-2013,2678033-629-29/11/13,750.00,J YOUNG T/A VIP TAXIS.
Children and Adult Services,Education,Transport,230008,Contract Hire,05-Dec-2013,2678033-631-29/11/13,"2,000.00",J YOUNG T/A VIP TAXIS.
Children and Adult Services,Education,Transport,230007,Contract Hire,05-Dec-2013,2678033-632,"1,320.00",J YOUNG T/A VIP TAXIS.
Children and Adult Services,Education,Transport,230008,Contract Hire,05-Dec-2013,2678033-633,"2,014.00",J YOUNG T/A VIP TAXIS.
Children and Adult Services,Education,Transport,230008,Contract Hire,05-Dec-2013,2678033-634,"1,300.00",J YOUNG T/A VIP TAXIS.
Children and Adult Services,Education,Transport,230007,Contract Hire,05-Dec-2013,2678033-635,800.00,J YOUNG T/A VIP TAXIS.
Children and Adult Services,Education,Transport,230008,Contract Hire,05-Dec-2013,2678033-636,"1,680.00",J YOUNG T/A VIP TAXIS.
Children and Adult Services,Education,Transport,230008,Contract Hire,05-Dec-2013,2678068-398,"2,375.00",JDS PRIVATE HIRE DURHAM.
Children and Adult Services,Education,Transport,230008,Contract Hire,05-Dec-2013,2678068-402,"1,520.00",JDS PRIVATE HIRE DURHAM.
Children and Adult Services,Education,Transport,230008,Contract Hire,05-Dec-2013,2678068-403,874.00,JDS PRIVATE HIRE DURHAM.
Children and Adult Services,Education,Transport,230008,Contract Hire,05-Dec-2013,2678068-404,"1,444.00",JDS PRIVATE HIRE DURHAM.
Children and Adult Services,Education,Transport,230008,Contract Hire,05-Dec-2013,2678068-406,"1,216.00",JDS PRIVATE HIRE DURHAM.
Children and Adult Services,Education,Transport,230008,Contract Hire,05-Dec-2013,2678068-407,"1,356.60",JDS PRIVATE HIRE DURHAM.
Children and Adult Services,Education,Transport,230008,Contract Hire,05-Dec-2013,2678068-408,"1,040.00",JDS PRIVATE HIRE DURHAM.
Children and Adult Services,Education,Transport,230008,Contract Hire,05-Dec-2013,2678077-2217,"1,729.20",JEFF ANDERSON COACHES LTD.
Children and Adult Services,Education,Transport,230008,Contract Hire,05-Dec-2013,2678077-2218,"1,869.20",JEFF ANDERSON COACHES LTD.
Children and Adult Services,Education,Transport,230008,Contract Hire,05-Dec-2013,2678077-2219,"1,909.20",JEFF ANDERSON COACHES LTD.
Children and Adult Services,Education,Transport,230008,Contract Hire,05-Dec-2013,2678094-29/11/13A,"1,400.00",JL EBDON.
Children and Adult Services,Education,Transport,230008,Contract Hire,05-Dec-2013,2678094-29/11/13D,"2,250.00",JL EBDON.
Children and Adult Services,Education,Transport,230007,Contract Hire,05-Dec-2013,2678096-2013/29,"1,508.00",JM HUMBLE COACH HIRE.
Children and Adult Services,Education,Transport,230008,Contract Hire,05-Dec-2013,2678132-52,"1,660.00",JOHNS TAXIS (CHESTER LE STREET).
Children and Adult Services,Education,Transport,230008,Contract Hire,05-Dec-2013,2678163-21,"1,400.00",K & B TAXIS.
Children and Adult Services,Education,Transport,230008,Contract Hire,05-Dec-2013,2678201-11113,"1,560.00",KEVIN EDMUNDSON.
Children and Adult Services,Education,Transport,230008,Contract Hire,05-Dec-2013,2678215-3-29/11/13,"1,810.00",L & R PRIVATE HIRE.
Children and Adult Services,Education,Transport,230008,Contract Hire,05-Dec-2013,2678232-1011,"1,400.00",LD TAXIS.
Children and Adult Services,Education,Transport,230008,Contract Hire,05-Dec-2013,2678245-056,"2,106.00",LEE`S TAXIS.
Children and Adult Services,Education,Transport,230008,Contract Hire,05-Dec-2013,2678245-057,"1,540.00",LEE`S TAXIS.
Children and Adult Services,Education,Transport,230008,Contract Hire,05-Dec-2013,2678245-058,930.00,LEE`S TAXIS.
Children and Adult Services,Education,Transport,230008,Contract Hire,05-Dec-2013,2678285-52-29/11/13,"1,660.00",LORRAINES TAXIS.
Children and Adult Services,Education,Transport,230008,Contract Hire,05-Dec-2013,2678285-53,"1,760.00",LORRAINES TAXIS.
Children and Adult Services,Education,Transport,230008,Contract Hire,05-Dec-2013,2678306-48,"2,640.00",M BUTCHER.
Children and Adult Services,Education,Transport,230008,Contract Hire,05-Dec-2013,2678350-381113,"1,292.00",MARKS TAXIS.
Children and Adult Services,Education,Transport,230007,Contract Hire,05-Dec-2013,2678391-MCD111/11/2013,"1,240.00",MCDONALD TRAVEL.
Children and Adult Services,Education,Transport,230008,Contract Hire,05-Dec-2013,2678391-MCD113/11/2013,"2,180.00",MCDONALD TRAVEL.
Children and Adult Services,Education,Transport,230008,Contract Hire,05-Dec-2013,2678391-MCD114/11/2013,"1,980.00",MCDONALD TRAVEL.
Children and Adult Services,Education,Transport,230009,Contract Hire,05-Dec-2013,2678427-7280003,572.00,MISS KA SUTHERLAND T/A FERRYHILL TRAVEL TAXI & MINIBUS HIRE.
Children and Adult Services,Education,Transport,230008,Contract Hire,05-Dec-2013,2678427-N071003,"2,231.25",MISS KA SUTHERLAND T/A FERRYHILL TRAVEL TAXI & MINIBUS HIRE.
Children and Adult Services,Education,Transport,230008,Contract Hire,05-Dec-2013,2678427-W101003,"1,380.00",MISS KA SUTHERLAND T/A FERRYHILL TRAVEL TAXI & MINIBUS HIRE.
Children and Adult Services,Education,Transport,230008,Contract Hire,05-Dec-2013,2678429-KDC011113,"2,520.00",MJ TIMNEY.
Children and Adult Services,Education,Transport,230008,Contract Hire,05-Dec-2013,2678432-366,"2,200.00",MOLLYS TAXIS.
Children and Adult Services,Education,Transport,230008,Contract Hire,05-Dec-2013,2678432-372,"1,596.00",MOLLYS TAXIS.
Children and Adult Services,Education,Transport,230008,Contract Hire,05-Dec-2013,2678432-373,"2,310.00",MOLLYS TAXIS.
Children and Adult Services,Education,Transport,230008,Contract Hire,05-Dec-2013,2678448-BRECK11-13,"2,541.00",MR CT WALKER T/A COLIN`S TAXIS.
Children and Adult Services,Education,Transport,230008,Contract Hire,05-Dec-2013,2678448-ELH11-13,"1,686.00",MR CT WALKER T/A COLIN`S TAXIS.
Children and Adult Services,Education,Transport,230008,Contract Hire,05-Dec-2013,2678448-MEAD11-13,"2,431.00",MR CT WALKER T/A COLIN`S TAXIS.
Children and Adult Services,Education,Transport,230008,Contract Hire,05-Dec-2013,2678448-WAL111-13,"2,797.20",MR CT WALKER T/A COLIN`S TAXIS.
Children and Adult Services,Education,Transport,230008,Contract Hire,05-Dec-2013,2678448-WAL211-13,"2,280.00",MR CT WALKER T/A COLIN`S TAXIS.
Children and Adult Services,Education,Transport,230008,Contract Hire,05-Dec-2013,2678448-WINDS11-13,"2,797.20",MR CT WALKER T/A COLIN`S TAXIS.
Children and Adult Services,Education,Transport,230008,Contract Hire,05-Dec-2013,2678449-118-29/11/13,"1,890.00",MR D KEMP T/A ACE EXECUTIVE.
Children and Adult Services,Education,Transport,230006,Contract Hire,05-Dec-2013,2678450-43,672.00,MR DAVID CULLEN.
Children and Adult Services,Education,Transport,230007,Contract Hire,05-Dec-2013,2678452-113,760.00,MR DEREK HENDERSON.
Children and Adult Services,Education,Transport,230008,Contract Hire,05-Dec-2013,2678456-023,"1,356.00",MR GN ROBBINS T/A GNR MINIBUS HIRE.
Children and Adult Services,Education,Transport,230008,Contract Hire,05-Dec-2013,2678456-024,"2,085.00",MR GN ROBBINS T/A GNR MINIBUS HIRE.
Children and Adult Services,Education,Transport,230006,Contract Hire,05-Dec-2013,2678473-NOV-02,"1,610.00",MR JR BLYTH T/A JRB TAXIS.
Children and Adult Services,Education,Transport,230008,Contract Hire,05-Dec-2013,2678476-A039/11/13,"1,824.00",MR M ALLISON.
Children and Adult Services,Education,Transport,230008,Contract Hire,05-Dec-2013,2678476-N053/11/13,"1,520.00",MR M ALLISON.
Children and Adult Services,Education,Transport,230008,Contract Hire,05-Dec-2013,2678476-N081/11/13,"1,330.00",MR M ALLISON.
Children and Adult Services,Education,Transport,230008,Contract Hire,05-Dec-2013,2678493-AA255,"2,220.00",MR T GUNN.
Children and Adult Services,Education,Transport,230006,Contract Hire,05-Dec-2013,2678501-29,"1,600.00",MRS ANNE BOWMAN T/A ANNES CARS.
Children and Adult Services,Education,Transport,230008,Contract Hire,05-Dec-2013,2678579-113,"1,520.00",N FORBES.
Children and Adult Services,Education,Supplies and Services,384199,Miscellaneous Expenses,05-Dec-2013,2679064-2234,"1,562.00",TINARTS.
Children and Adult Services,Education,Transport,230007,Contract Hire,05-Dec-2013,2679134-4390,812.00,WEARDALE PRIVATE HIRE.
Children and Adult Services,Education,Transport,230007,Contract Hire,05-Dec-2013,2679134-4391,"4,053.00",WEARDALE PRIVATE HIRE.
Children and Adult Services,Education,Transport,230007,Contract Hire,05-Dec-2013,2679134-4392,"3,863.79",WEARDALE PRIVATE HIRE.
Children and Adult Services,Education,Transport,230006,Contract Hire,05-Dec-2013,2679134-4394,"1,812.72",WEARDALE PRIVATE HIRE.
Children and Adult Services,Education,Transport,230006,Contract Hire,05-Dec-2013,2679139-1113,"2,317.00",WEST AUCKLAND TOWN TRAVEL (WATT).
Children and Adult Services,Financing-Adult Services,Debtors,930024,Debtor-free nursing care,05-Dec-2013,2677657-2136251,533.27,CROFT HOUSE RESIDENTIAL HOME.
Children and Adult Services,Financing-Adult Services,Debtors,930024,Debtor-free nursing care,05-Dec-2013,2678007-2129947,"1,380.22",HUNDENS PARK CARE CENTRE.
Children and Adult Services,Financing-Adult Services,Debtors,930024,Debtor-free nursing care,05-Dec-2013,2678208-2134092,604.40,KIMBLESWORTH NURSING HOME.
Children and Adult Services,Financing-Adult Services,Debtors,930024,Debtor-free nursing care,05-Dec-2013,2678270-2134652,548.95,LINDISFARNE.
Children and Adult Services,Financing-Adult Services,Debtors,930024,Debtor-free nursing care,05-Dec-2013,2678335-2136265,"1,803.69",MARIA MALLABAND NURSING HOMES LTD.
Children and Adult Services,Financing-Adult Services,Debtors,930024,Debtor-free nursing care,05-Dec-2013,2678669-2133483,"2,274.22",PARKLANDS RESIDENTIAL HOME.
Children and Adult Services,Financing-Adult Services,Debtors,930024,Debtor-free nursing care,05-Dec-2013,2678763-2133845,604.40,RAYSON HOMES LTD.
Children and Adult Services,Financing-Adult Services,Debtors,930024,Debtor-free nursing care,05-Dec-2013,2678783-2134848,"3,732.86",RICHMOND COURT.
Children and Adult Services,Financing-Adult Services,Debtors,930024,Debtor-free nursing care,05-Dec-2013,2678937-2133651,501.90,ST MARYS NURSING HOME.
Children and Adult Services,Financing-Adult Services,Debtors,930024,Debtor-free nursing care,05-Dec-2013,2678946-2134701,"1,097.90",STANLEY PARK CARE CENTRE.
Children and Adult Services,Financing-Adult Services,Debtors,930024,Debtor-free nursing care,05-Dec-2013,2678994-2132998,"1,176.32",TAMARIS HEALTHCARE LTD.
Children and Adult Services,Financing-Adult Services,Debtors,930024,Debtor-free nursing care,05-Dec-2013,2678994-2133015,604.40,TAMARIS HEALTHCARE LTD.
Children and Adult Services,Financing-Adult Services,Debtors,930024,Debtor-free nursing care,05-Dec-2013,2679000-2133220,604.40,TAMARIS HEALTHCARE LTD.
Children and Adult Services,Financing-Adult Services,Debtors,930024,Debtor-free nursing care,05-Dec-2013,2679000-2133266,604.40,TAMARIS HEALTHCARE LTD.
Children and Adult Services,Financing-Adult Services,Debtors,930024,Debtor-free nursing care,05-Dec-2013,2679017-2133790,517.58,TENLANDS NURSING HOME.
Children and Adult Services,Financing-Adult Services,Debtors,930024,Debtor-free nursing care,05-Dec-2013,2679118-2133544,768.53,VILLAGE NURSING HOME.
Children and Adult Services,Financing-Adult Services,Debtors,930024,Debtor-free nursing care,05-Dec-2013,2679141-2133748,"1,693.90",WEST LODGE HOMES.
Children and Adult Services,Head of Adults,Third Party Payments,470101,Purchase of Care,05-Dec-2013,2676880-2124569,"6,031.16",3 RED ADMIRAL COURT.
Children and Adult Services,Head of Adults,Third Party Payments,470101,Purchase of Care,05-Dec-2013,2676880-2129485,"6,031.16",3 RED ADMIRAL COURT.
Children and Adult Services,Head of Adults,Third Party Payments,470101,Purchase of Care,05-Dec-2013,2676880-2134298,"6,031.16",3 RED ADMIRAL COURT.
Children and Adult Services,Head of Adults,Third Party Payments,472101,Purchase of Care,05-Dec-2013,2676881-1379555H,548.96,360 HEALTHCARE LTD.
Children and Adult Services,Head of Adults,Third Party Payments,472101,Purchase of Care,05-Dec-2013,2676881-1379968H,517.52,360 HEALTHCARE LTD.
Children and Adult Services,Head of Adults,Third Party Payments,472101,Purchase of Care,05-Dec-2013,2676881-1380156H,859.48,360 HEALTHCARE LTD.
Children and Adult Services,Head of Adults,Third Party Payments,472101,Purchase of Care,05-Dec-2013,2676881-1380209H,"1,035.08",360 HEALTHCARE LTD.
Children and Adult Services,Head of Adults,Third Party Payments,472101,Purchase of Care,05-Dec-2013,2676881-1380648H,"1,214.36",360 HEALTHCARE LTD.
Children and Adult Services,Head of Adults,Third Party Payments,472101,Purchase of Care,05-Dec-2013,2676881-1380657H,"1,596.96",360 HEALTHCARE LTD.
Children and Adult Services,Head of Adults,Third Party Payments,472101,Purchase of Care,05-Dec-2013,2676881-1380693H,543.43,360 HEALTHCARE LTD.
Children and Adult Services,Head of Adults,Third Party Payments,472101,Purchase of Care,05-Dec-2013,2676881-1382322H,815.12,360 HEALTHCARE LTD.
Children and Adult Services,Head of Adults,Third Party Payments,472101,Purchase of Care,05-Dec-2013,2676881-1382447H,565.60,360 HEALTHCARE LTD.
Children and Adult Services,Head of Adults,Third Party Payments,472101,Purchase of Care,05-Dec-2013,2676881-1382493H,709.76,360 HEALTHCARE LTD.
Children and Adult Services,Head of Adults,Third Party Payments,472101,Purchase of Care,05-Dec-2013,2676881-1382705H,510.16,360 HEALTHCARE LTD.
Children and Adult Services,Head of Adults,Third Party Payments,472101,Purchase of Care,05-Dec-2013,2676881-1382950H,632.12,360 HEALTHCARE LTD.
Children and Adult Services,Head of Adults,Third Party Payments,472101,Purchase of Care,05-Dec-2013,2676881-1383042H,"1,127.48",360 HEALTHCARE LTD.
Children and Adult Services,Head of Adults,Third Party Payments,472101,Purchase of Care,05-Dec-2013,2676881-1383301H,"1,337.26",360 HEALTHCARE LTD.
Children and Adult Services,Head of Adults,Third Party Payments,472101,Purchase of Care,05-Dec-2013,2676881-1383438H,953.76,360 HEALTHCARE LTD.
Children and Adult Services,Head of Adults,Third Party Payments,472101,Purchase of Care,05-Dec-2013,2676881-1383545H,831.76,360 HEALTHCARE LTD.
Children and Adult Services,Head of Adults,Third Party Payments,472101,Purchase of Care,05-Dec-2013,2676881-1383624H,635.84,360 HEALTHCARE LTD.
Children and Adult Services,Head of Adults,Third Party Payments,472101,Purchase of Care,05-Dec-2013,2676881-1384411H,"1,231.00",360 HEALTHCARE LTD.
Children and Adult Services,Head of Adults,Third Party Payments,472101,Purchase of Care,05-Dec-2013,2676881-1384899H,621.04,360 HEALTHCARE LTD.
Children and Adult Services,Head of Adults,Third Party Payments,472101,Purchase of Care,05-Dec-2013,2676881-1385476H,658.00,360 HEALTHCARE LTD.
Children and Adult Services,Head of Adults,Third Party Payments,472101,Purchase of Care,05-Dec-2013,2676881-1385480H,554.50,360 HEALTHCARE LTD.
Children and Adult Services,Head of Adults,Third Party Payments,472101,Purchase of Care,05-Dec-2013,2676881-1385569H,909.38,360 HEALTHCARE LTD.
Children and Adult Services,Head of Adults,Third Party Payments,472101,Purchase of Care,05-Dec-2013,2676881-1385769H,931.56,360 HEALTHCARE LTD.
Children and Adult Services,Head of Adults,Third Party Payments,472101,Purchase of Care,05-Dec-2013,2676881-1385839H,598.86,360 HEALTHCARE LTD.
Children and Adult Services,Head of Adults,Third Party Payments,472101,Purchase of Care,05-Dec-2013,2676881-1385867H,"1,059.10",360 HEALTHCARE LTD.
Children and Adult Services,Head of Adults,Third Party Payments,472101,Purchase of Care,05-Dec-2013,2676881-1385946H,621.04,360 HEALTHCARE LTD.
Children and Adult Services,Head of Adults,Third Party Payments,470101,Purchase of Care,05-Dec-2013,2676883-2134277,"6,397.60",368 THE RIDGE.
Children and Adult Services,Head of Adults,Third Party Payments,470101,Purchase of Care,05-Dec-2013,2676886-2132543,"1,792.92",A CHARLES THOMAS (CARE) LTD.
Children and Adult Services,Head of Adults,Third Party Payments,470101,Purchase of Care,05-Dec-2013,2676886-2132544,"1,792.92",A CHARLES THOMAS (CARE) LTD.
Children and Adult Services,Head of Adults,Third Party Payments,470101,Purchase of Care,05-Dec-2013,2676886-2132545,"1,792.92",A CHARLES THOMAS (CARE) LTD.
Children and Adult Services,Head of Adults,Third Party Payments,470101,Purchase of Care,05-Dec-2013,2676886-2132546,"1,792.92",A CHARLES THOMAS (CARE) LTD.
Children and Adult Services,Head of Adults,Third Party Payments,470101,Purchase of Care,05-Dec-2013,2676886-2132547,"1,792.92",A CHARLES THOMAS (CARE) LTD.
Children and Adult Services,Head of Adults,Third Party Payments,470101,Purchase of Care,05-Dec-2013,2676886-2132586,"1,792.92",A CHARLES THOMAS (CARE) LTD.
Children and Adult Services,Head of Adults,Third Party Payments,470101,Purchase of Care,05-Dec-2013,2676886-2132703,"1,792.92",A CHARLES THOMAS (CARE) LTD.
Children and Adult Services,Head of Adults,Third Party Payments,470101,Purchase of Care,05-Dec-2013,2676886-2132704,"1,792.92",A CHARLES THOMAS (CARE) LTD.
Children and Adult Services,Head of Adults,Third Party Payments,470101,Purchase of Care,05-Dec-2013,2676886-2132705,832.42,A CHARLES THOMAS (CARE) LTD.
Children and Adult Services,Head of Adults,Third Party Payments,470101,Purchase of Care,05-Dec-2013,2676886-2132706,"1,792.92",A CHARLES THOMAS (CARE) LTD.
Children and Adult Services,Head of Adults,Third Party Payments,470101,Purchase of Care,05-Dec-2013,2676886-2132707,"1,792.92",A CHARLES THOMAS (CARE) LTD.
Children and Adult Services,Head of Adults,Third Party Payments,470101,Purchase of Care,05-Dec-2013,2676886-2132708,"1,792.92",A CHARLES THOMAS (CARE) LTD.
Children and Adult Services,Head of Adults,Third Party Payments,470101,Purchase of Care,05-Dec-2013,2676886-2132709,"1,792.92",A CHARLES THOMAS (CARE) LTD.
Children and Adult Services,Head of Adults,Third Party Payments,470101,Purchase of Care,05-Dec-2013,2676886-2132710,"1,792.92",A CHARLES THOMAS (CARE) LTD.
Children and Adult Services,Head of Adults,Third Party Payments,474101,Purchase of Care,05-Dec-2013,2676886-2133518,"1,882.44",A CHARLES THOMAS (CARE) LTD.
Children and Adult Services,Head of Adults,Third Party Payments,474101,Purchase of Care,05-Dec-2013,2676886-2133616,"1,882.44",A CHARLES THOMAS (CARE) LTD.
Children and Adult Services,Head of Adults,Third Party Payments,474101,Purchase of Care,05-Dec-2013,2676886-2133622,"1,882.44",A CHARLES THOMAS (CARE) LTD.
Children and Adult Services,Head of Adults,Third Party Payments,474101,Purchase of Care,05-Dec-2013,2676886-2133631,"1,882.44",A CHARLES THOMAS (CARE) LTD.
Children and Adult Services,Head of Adults,Third Party Payments,474101,Purchase of Care,05-Dec-2013,2676886-2133635,"1,882.44",A CHARLES THOMAS (CARE) LTD.
Children and Adult Services,Head of Adults,Third Party Payments,474101,Purchase of Care,05-Dec-2013,2676886-2133686,"1,882.44",A CHARLES THOMAS (CARE) LTD.
Children and Adult Services,Head of Adults,Third Party Payments,474101,Purchase of Care,05-Dec-2013,2676886-2133688,"1,882.44",A CHARLES THOMAS (CARE) LTD.
Children and Adult Services,Head of Adults,Third Party Payments,474101,Purchase of Care,05-Dec-2013,2676886-2133690,"1,882.44",A CHARLES THOMAS (CARE) LTD.
Children and Adult Services,Head of Adults,Third Party Payments,474101,Purchase of Care,05-Dec-2013,2676886-2133692,"1,882.44",A CHARLES THOMAS (CARE) LTD.
Children and Adult Services,Head of Adults,Third Party Payments,474101,Purchase of Care,05-Dec-2013,2676886-2133694,"1,882.44",A CHARLES THOMAS (CARE) LTD.
Children and Adult Services,Head of Adults,Third Party Payments,474101,Purchase of Care,05-Dec-2013,2676886-2133699,"1,882.44",A CHARLES THOMAS (CARE) LTD.
Children and Adult Services,Head of Adults,Third Party Payments,474101,Purchase of Care,05-Dec-2013,2676886-2133701,"1,882.44",A CHARLES THOMAS (CARE) LTD.
Children and Adult Services,Head of Adults,Third Party Payments,474101,Purchase of Care,05-Dec-2013,2676886-2133703,"1,882.44",A CHARLES THOMAS (CARE) LTD.
Children and Adult Services,Head of Adults,Third Party Payments,474101,Purchase of Care,05-Dec-2013,2676886-2133706,"1,882.44",A CHARLES THOMAS (CARE) LTD.
Children and Adult Services,Head of Adults,Third Party Payments,474101,Purchase of Care,05-Dec-2013,2676886-2134030,513.26,A CHARLES THOMAS (CARE) LTD.
Children and Adult Services,Head of Adults,Third Party Payments,474101,Purchase of Care,05-Dec-2013,2676886-2136071,"1,075.68",A CHARLES THOMAS (CARE) LTD.
Children and Adult Services,Head of Adults,Third Party Payments,474101,Purchase of Care,05-Dec-2013,2676886-2136080,"1,680.75",A CHARLES THOMAS (CARE) LTD.
Children and Adult Services,Head of Adults,Transport,230005,Contract Hire,05-Dec-2013,2676892-AA847,"1,155.00",AA MINIBUS HIRE.
Children and Adult Services,Head of Adults,Third Party Payments,474101,Purchase of Care,05-Dec-2013,2676900-2133978,"2,303.28",ABBEYMOOR CLINIC.
Children and Adult Services,Head of Adults,Third Party Payments,470101,Purchase of Care,05-Dec-2013,2676901-2131761,744.21,ABBEYVALE.
Children and Adult Services,Head of Adults,Third Party Payments,470101,Purchase of Care,05-Dec-2013,2676901-2131762,"1,894.36",ABBEYVALE.
Children and Adult Services,Head of Adults,Third Party Payments,470101,Purchase of Care,05-Dec-2013,2676901-2131763,"1,894.36",ABBEYVALE.
Children and Adult Services,Head of Adults,Third Party Payments,470101,Purchase of Care,05-Dec-2013,2676901-2131764,"1,894.36",ABBEYVALE.
Children and Adult Services,Head of Adults,Third Party Payments,470101,Purchase of Care,05-Dec-2013,2676901-2131765,"1,894.36",ABBEYVALE.
Children and Adult Services,Head of Adults,Third Party Payments,470101,Purchase of Care,05-Dec-2013,2676901-2131766,"1,894.36",ABBEYVALE.
Children and Adult Services,Head of Adults,Third Party Payments,470101,Purchase of Care,05-Dec-2013,2676901-2131767,"1,894.36",ABBEYVALE.
Children and Adult Services,Head of Adults,Third Party Payments,470101,Purchase of Care,05-Dec-2013,2676901-2131768,"1,894.36",ABBEYVALE.
Children and Adult Services,Head of Adults,Third Party Payments,470101,Purchase of Care,05-Dec-2013,2676901-2131769,"1,894.36",ABBEYVALE.
Children and Adult Services,Head of Adults,Third Party Payments,470101,Purchase of Care,05-Dec-2013,2676901-2131770,"1,894.36",ABBEYVALE.
Children and Adult Services,Head of Adults,Third Party Payments,470101,Purchase of Care,05-Dec-2013,2676901-2131771,"1,894.36",ABBEYVALE.
Children and Adult Services,Head of Adults,Third Party Payments,470101,Purchase of Care,05-Dec-2013,2676901-2131772,"1,894.36",ABBEYVALE.
Children and Adult Services,Head of Adults,Third Party Payments,470101,Purchase of Care,05-Dec-2013,2676901-2131773,"1,954.36",ABBEYVALE.
Children and Adult Services,Head of Adults,Third Party Payments,470101,Purchase of Care,05-Dec-2013,2676901-2131774,"1,894.36",ABBEYVALE.
Children and Adult Services,Head of Adults,Third Party Payments,470101,Purchase of Care,05-Dec-2013,2676901-2131775,"1,894.36",ABBEYVALE.
Children and Adult Services,Head of Adults,Third Party Payments,470101,Purchase of Care,05-Dec-2013,2676901-2131776,"1,894.36",ABBEYVALE.
Children and Adult Services,Head of Adults,Third Party Payments,470101,Purchase of Care,05-Dec-2013,2676901-2131777,"1,894.36",ABBEYVALE.
Children and Adult Services,Head of Adults,Third Party Payments,470101,Purchase of Care,05-Dec-2013,2676901-2131778,"1,894.36",ABBEYVALE.
Children and Adult Services,Head of Adults,Third Party Payments,470101,Purchase of Care,05-Dec-2013,2676901-2131779,"1,894.36",ABBEYVALE.
Children and Adult Services,Head of Adults,Third Party Payments,470101,Purchase of Care,05-Dec-2013,2676901-2134152,"2,400.00",ABBEYVALE.
Children and Adult Services,Head of Adults,Third Party Payments,470101,Purchase of Care,05-Dec-2013,2676901-2134180,"1,390.00",ABBEYVALE.
Children and Adult Services,Head of Adults,Third Party Payments,470101,Purchase of Care,05-Dec-2013,2676901-2134181,"2,500.00",ABBEYVALE.
Children and Adult Services,Head of Adults,Third Party Payments,470101,Purchase of Care,05-Dec-2013,2676901-2134182,"2,400.00",ABBEYVALE.
Children and Adult Services,Head of Adults,Third Party Payments,470101,Purchase of Care,05-Dec-2013,2676901-2134183,"2,400.00",ABBEYVALE.
Children and Adult Services,Head of Adults,Third Party Payments,470101,Purchase of Care,05-Dec-2013,2676901-2134184,"2,400.00",ABBEYVALE.
Children and Adult Services,Head of Adults,Third Party Payments,470101,Purchase of Care,05-Dec-2013,2676901-2134185,"1,894.36",ABBEYVALE.
Children and Adult Services,Head of Adults,Third Party Payments,470101,Purchase of Care,05-Dec-2013,2676901-2134186,"2,400.00",ABBEYVALE.
Children and Adult Services,Head of Adults,Third Party Payments,470101,Purchase of Care,05-Dec-2013,2676901-2134187,"2,400.00",ABBEYVALE.
Children and Adult Services,Head of Adults,Third Party Payments,471101,Purchase of Care,05-Dec-2013,2676901-2135107,"1,964.28",ABBEYVALE.
Children and Adult Services,Head of Adults,Third Party Payments,471101,Purchase of Care,05-Dec-2013,2676901-2135108,"1,964.28",ABBEYVALE.
Children and Adult Services,Head of Adults,Third Party Payments,471101,Purchase of Care,05-Dec-2013,2676901-2135124,"1,964.28",ABBEYVALE.
Children and Adult Services,Head of Adults,Third Party Payments,471101,Purchase of Care,05-Dec-2013,2676901-2135125,"1,964.28",ABBEYVALE.
Children and Adult Services,Head of Adults,Third Party Payments,471101,Purchase of Care,05-Dec-2013,2676901-2135126,"1,964.28",ABBEYVALE.
Children and Adult Services,Head of Adults,Third Party Payments,471101,Purchase of Care,05-Dec-2013,2676901-2135127,"1,964.28",ABBEYVALE.
Children and Adult Services,Head of Adults,Third Party Payments,471101,Purchase of Care,05-Dec-2013,2676901-2135128,"1,964.28",ABBEYVALE.
Children and Adult Services,Head of Adults,Third Party Payments,471101,Purchase of Care,05-Dec-2013,2676901-2135129,"1,964.28",ABBEYVALE.
Children and Adult Services,Head of Adults,Third Party Payments,471101,Purchase of Care,05-Dec-2013,2676901-2135130,"1,964.28",ABBEYVALE.
Children and Adult Services,Head of Adults,Third Party Payments,471101,Purchase of Care,05-Dec-2013,2676901-2135131,"1,964.28",ABBEYVALE.
Children and Adult Services,Head of Adults,Third Party Payments,471101,Purchase of Care,05-Dec-2013,2676901-2135132,"1,683.66",ABBEYVALE.
Children and Adult Services,Head of Adults,Third Party Payments,470101,Purchase of Care,05-Dec-2013,2676901-2136136,"1,082.49",ABBEYVALE.
Children and Adult Services,Head of Adults,Third Party Payments,471101,Purchase of Care,05-Dec-2013,2676901-2136137,841.83,ABBEYVALE.
Children and Adult Services,Head of Adults,Third Party Payments,470101,Purchase of Care,05-Dec-2013,2676902-2132453,"1,792.92",ABBOTTS COURT CARE HOME.
Children and Adult Services,Head of Adults,Third Party Payments,470101,Purchase of Care,05-Dec-2013,2676902-2132454,"1,792.92",ABBOTTS COURT CARE HOME.
Children and Adult Services,Head of Adults,Third Party Payments,470101,Purchase of Care,05-Dec-2013,2676902-2132502,"1,792.92",ABBOTTS COURT CARE HOME.
Children and Adult Services,Head of Adults,Third Party Payments,470101,Purchase of Care,05-Dec-2013,2676902-2132503,"1,792.92",ABBOTTS COURT CARE HOME.
Children and Adult Services,Head of Adults,Third Party Payments,470101,Purchase of Care,05-Dec-2013,2676902-2132514,"1,792.92",ABBOTTS COURT CARE HOME.
Children and Adult Services,Head of Adults,Third Party Payments,470101,Purchase of Care,05-Dec-2013,2676902-2132515,"1,792.92",ABBOTTS COURT CARE HOME.
Children and Adult Services,Head of Adults,Third Party Payments,470101,Purchase of Care,05-Dec-2013,2676902-2132516,"1,792.92",ABBOTTS COURT CARE HOME.
Children and Adult Services,Head of Adults,Third Party Payments,470101,Purchase of Care,05-Dec-2013,2676902-2132533,"1,792.92",ABBOTTS COURT CARE HOME.
Children and Adult Services,Head of Adults,Third Party Payments,470101,Purchase of Care,05-Dec-2013,2676902-2132651,"1,792.92",ABBOTTS COURT CARE HOME.
Children and Adult Services,Head of Adults,Third Party Payments,471101,Purchase of Care,05-Dec-2013,2676902-2135587,"1,863.80",ABBOTTS COURT CARE HOME.
Children and Adult Services,Head of Adults,Third Party Payments,471101,Purchase of Care,05-Dec-2013,2676902-2135607,"1,863.80",ABBOTTS COURT CARE HOME.
Children and Adult Services,Head of Adults,Third Party Payments,471101,Purchase of Care,05-Dec-2013,2676902-2135608,"1,863.80",ABBOTTS COURT CARE HOME.
Children and Adult Services,Head of Adults,Third Party Payments,471101,Purchase of Care,05-Dec-2013,2676902-2135609,"1,863.80",ABBOTTS COURT CARE HOME.
Children and Adult Services,Head of Adults,Third Party Payments,471101,Purchase of Care,05-Dec-2013,2676902-2135610,"1,863.80",ABBOTTS COURT CARE HOME.
Children and Adult Services,Head of Adults,Third Party Payments,471101,Purchase of Care,05-Dec-2013,2676902-2135611,"1,863.80",ABBOTTS COURT CARE HOME.
Children and Adult Services,Head of Adults,Third Party Payments,471101,Purchase of Care,05-Dec-2013,2676902-2135612,"1,863.80",ABBOTTS COURT CARE HOME.
Children and Adult Services,Head of Adults,Third Party Payments,471101,Purchase of Care,05-Dec-2013,2676902-2135663,"1,863.80",ABBOTTS COURT CARE HOME.
Children and Adult Services,Head of Adults,Third Party Payments,471101,Purchase of Care,05-Dec-2013,2676902-2135664,"1,863.80",ABBOTTS COURT CARE HOME.
Children and Adult Services,Head of Adults,Third Party Payments,471101,Purchase of Care,05-Dec-2013,2676902-2135665,"1,863.80",ABBOTTS COURT CARE HOME.
Children and Adult Services,Head of Adults,Third Party Payments,471101,Purchase of Care,05-Dec-2013,2676902-2135667,"1,863.80",ABBOTTS COURT CARE HOME.
Children and Adult Services,Head of Adults,Third Party Payments,471101,Purchase of Care,05-Dec-2013,2676902-2135862,"1,863.80",ABBOTTS COURT CARE HOME.
Children and Adult Services,Head of Adults,Third Party Payments,470101,Purchase of Care,05-Dec-2013,2676902-2135863,"1,792.92",ABBOTTS COURT CARE HOME.
Children and Adult Services,Head of Adults,Third Party Payments,470101,Purchase of Care,05-Dec-2013,2676906-1379504H,"2,933.48",ACCEPT CARE LTD.
Children and Adult Services,Head of Adults,Third Party Payments,478101,Purchase of Care,05-Dec-2013,2676906-1379667H,"4,672.80",ACCEPT CARE LTD.
Children and Adult Services,Head of Adults,Third Party Payments,478101,Purchase of Care,05-Dec-2013,2676906-1379810H,"2,596.00",ACCEPT CARE LTD.
Children and Adult Services,Head of Adults,Third Party Payments,478101,Purchase of Care,05-Dec-2013,2676906-1379871H,"1,440.80",ACCEPT CARE LTD.
Children and Adult Services,Head of Adults,Third Party Payments,478101,Purchase of Care,05-Dec-2013,2676906-1380126H,"4,594.92",ACCEPT CARE LTD.
Children and Adult Services,Head of Adults,Third Party Payments,478101,Purchase of Care,05-Dec-2013,2676906-1380159H,880.00,ACCEPT CARE LTD.
Children and Adult Services,Head of Adults,Third Party Payments,478101,Purchase of Care,05-Dec-2013,2676906-1380164H,"1,056.00",ACCEPT CARE LTD.
Children and Adult Services,Head of Adults,Third Party Payments,478101,Purchase of Care,05-Dec-2013,2676906-1380241H,"1,540.00",ACCEPT CARE LTD.
Children and Adult Services,Head of Adults,Third Party Payments,478101,Purchase of Care,05-Dec-2013,2676906-1380274H,"5,153.08",ACCEPT CARE LTD.
Children and Adult Services,Head of Adults,Third Party Payments,478101,Purchase of Care,05-Dec-2013,2676906-1380285H,"3,634.40",ACCEPT CARE LTD.
Children and Adult Services,Head of Adults,Third Party Payments,478101,Purchase of Care,05-Dec-2013,2676906-1380396H,616.00,ACCEPT CARE LTD.
Children and Adult Services,Head of Adults,Third Party Payments,478101,Purchase of Care,05-Dec-2013,2676906-1380603H,"5,866.96",ACCEPT CARE LTD.
Children and Adult Services,Head of Adults,Third Party Payments,478101,Purchase of Care,05-Dec-2013,2676906-1380831H,770.00,ACCEPT CARE LTD.
Children and Adult Services,Head of Adults,Third Party Payments,478101,Purchase of Care,05-Dec-2013,2676906-1380837H,"8,138.46",ACCEPT CARE LTD.
Children and Adult Services,Head of Adults,Third Party Payments,478101,Purchase of Care,05-Dec-2013,2676906-1380845H,"1,760.00",ACCEPT CARE LTD.
Children and Adult Services,Head of Adults,Third Party Payments,478101,Purchase of Care,05-Dec-2013,2676906-1380861H,"2,609.00",ACCEPT CARE LTD.
Children and Adult Services,Head of Adults,Third Party Payments,472101,Purchase of Care,05-Dec-2013,2676906-1380926H,"3,964.00",ACCEPT CARE LTD.
Children and Adult Services,Head of Adults,Third Party Payments,478101,Purchase of Care,05-Dec-2013,2676906-1380943H,"4,776.64",ACCEPT CARE LTD.
Children and Adult Services,Head of Adults,Third Party Payments,478101,Purchase of Care,05-Dec-2013,2676906-1381044H,"5,373.72",ACCEPT CARE LTD.
Children and Adult Services,Head of Adults,Third Party Payments,478101,Purchase of Care,05-Dec-2013,2676906-1381079H,"3,582.48",ACCEPT CARE LTD.
Children and Adult Services,Head of Adults,Third Party Payments,478101,Purchase of Care,05-Dec-2013,2676906-1381120H,"1,635.52",ACCEPT CARE LTD.
Children and Adult Services,Head of Adults,Third Party Payments,478101,Purchase of Care,05-Dec-2013,2676906-1381141H,"3,997.84",ACCEPT CARE LTD.
Children and Adult Services,Head of Adults,Third Party Payments,478101,Purchase of Care,05-Dec-2013,2676906-1381256H,"7,762.04",ACCEPT CARE LTD.
Children and Adult Services,Head of Adults,Third Party Payments,478101,Purchase of Care,05-Dec-2013,2676906-1381260H,"11,889.68",ACCEPT CARE LTD.
Children and Adult Services,Head of Adults,Third Party Payments,478101,Purchase of Care,05-Dec-2013,2676906-1381270H,"1,144.00",ACCEPT CARE LTD.
Children and Adult Services,Head of Adults,Third Party Payments,478101,Purchase of Care,05-Dec-2013,2676906-1381367H,"4,636.00",ACCEPT CARE LTD.
Children and Adult Services,Head of Adults,Third Party Payments,478101,Purchase of Care,05-Dec-2013,2676906-1381373H,"6,541.92",ACCEPT CARE LTD.
Children and Adult Services,Head of Adults,Third Party Payments,478101,Purchase of Care,05-Dec-2013,2676906-1381467H,"3,830.40",ACCEPT CARE LTD.
Children and Adult Services,Head of Adults,Third Party Payments,472101,Purchase of Care,05-Dec-2013,2676906-1381897H,672.00,ACCEPT CARE LTD.
Children and Adult Services,Head of Adults,Third Party Payments,478101,Purchase of Care,05-Dec-2013,2676906-1382039H,"5,700.00",ACCEPT CARE LTD.
Children and Adult Services,Head of Adults,Third Party Payments,478101,Purchase of Care,05-Dec-2013,2676906-1382294H,756.00,ACCEPT CARE LTD.
Children and Adult Services,Head of Adults,Third Party Payments,478101,Purchase of Care,05-Dec-2013,2676906-1382297H,"1,012.00",ACCEPT CARE LTD.
Children and Adult Services,Head of Adults,Third Party Payments,478101,Purchase of Care,05-Dec-2013,2676906-1382313H,"1,108.00",ACCEPT CARE LTD.
Children and Adult Services,Head of Adults,Third Party Payments,478101,Purchase of Care,05-Dec-2013,2676906-1382609H,"6,905.36",ACCEPT CARE LTD.
Children and Adult Services,Head of Adults,Third Party Payments,478101,Purchase of Care,05-Dec-2013,2676906-1382808H,"4,815.58",ACCEPT CARE LTD.
Children and Adult Services,Head of Adults,Third Party Payments,478101,Purchase of Care,05-Dec-2013,2676906-1382882H,990.00,ACCEPT CARE LTD.
Children and Adult Services,Head of Adults,Third Party Payments,478101,Purchase of Care,05-Dec-2013,2676906-1382909H,"4,120.00",ACCEPT CARE LTD.
Children and Adult Services,Head of Adults,Third Party Payments,478101,Purchase of Care,05-Dec-2013,2676906-1383355H,"3,816.12",ACCEPT CARE LTD.
Children and Adult Services,Head of Adults,Third Party Payments,478101,Purchase of Care,05-Dec-2013,2676906-1383362H,"1,661.44",ACCEPT CARE LTD.
Children and Adult Services,Head of Adults,Third Party Payments,478101,Purchase of Care,05-Dec-2013,2676906-1384889H,"1,114.00",ACCEPT CARE LTD.
Children and Adult Services,Head of Adults,Third Party Payments,478101,Purchase of Care,05-Dec-2013,2676906-1386479H,"3,318.56",ACCEPT CARE LTD.
Children and Adult Services,Head of Adults,Transfer Payments,515201,Social Services Clients,05-Dec-2013,2676908-1382354H,687.70,REDACTED - PAYMENT TO INDIVIDUAL
Children and Adult Services,Head of Adults,Transfer Payments,515201,Social Services Clients,05-Dec-2013,2676910-1384961H,817.20,REDACTED - PAYMENT TO INDIVIDUAL
Children and Adult Services,Head of Adults,Transfer Payments,515201,Social Services Clients,05-Dec-2013,2676912-1384264H,513.84,REDACTED - PAYMENT TO INDIVIDUAL
Children and Adult Services,Head of Adults,Transfer Payments,515209,Social Services Clients,05-Dec-2013,2676913-1379759D,540.00,REDACTED - PAYMENT TO INDIVIDUAL
Children and Adult Services,Head of Adults,Transfer Payments,515201,Social Services Clients,05-Dec-2013,2676922-1383251H,611.92,REDACTED - PAYMENT TO INDIVIDUAL
Children and Adult Services,Head of Adults,Transfer Payments,515201,Social Services Clients,05-Dec-2013,2676925-1381274H,630.00,REDACTED - PAYMENT TO INDIVIDUAL
Children and Adult Services,Head of Adults,Transfer Payments,515201,Social Services Clients,05-Dec-2013,2676929-1383389H,"1,266.00",REDACTED - PAYMENT TO INDIVIDUAL
Children and Adult Services,Head of Adults,Transfer Payments,515201,Social Services Clients,05-Dec-2013,2676930-1381465H,817.20,REDACTED - PAYMENT TO INDIVIDUAL
Children and Adult Services,Head of Adults,Transfer Payments,515201,Social Services Clients,05-Dec-2013,2676933-1382794H,506.40,REDACTED - PAYMENT TO INDIVIDUAL
Children and Adult Services,Head of Adults,Transfer Payments,515201,Social Services Clients,05-Dec-2013,2676934-1379989H,672.80,REDACTED - PAYMENT TO INDIVIDUAL
Children and Adult Services,Head of Adults,Transfer Payments,515201,Social Services Clients,05-Dec-2013,2676935-1384353H,"2,289.36",REDACTED - PAYMENT TO INDIVIDUAL
Children and Adult Services,Head of Adults,Transfer Payments,515201,Social Services Clients,05-Dec-2013,2676937-1382734H,839.92,REDACTED - PAYMENT TO INDIVIDUAL
Children and Adult Services,Head of Adults,Transfer Payments,515201,Social Services Clients,05-Dec-2013,2676939-1382819H,"1,223.80",REDACTED - PAYMENT TO INDIVIDUAL
Children and Adult Services,Head of Adults,Transfer Payments,515201,Social Services Clients,05-Dec-2013,2676940-1382557H,721.32,REDACTED - PAYMENT TO INDIVIDUAL
Children and Adult Services,Head of Adults,Transfer Payments,515201,Social Services Clients,05-Dec-2013,2676944-1380095H,"1,319.71",REDACTED - PAYMENT TO INDIVIDUAL
Children and Adult Services,Head of Adults,Transfer Payments,515201,Social Services Clients,05-Dec-2013,2676945-1381696H,516.96,REDACTED - PAYMENT TO INDIVIDUAL
Children and Adult Services,Head of Adults,Transfer Payments,515201,Social Services Clients,05-Dec-2013,2676947-1379985H,998.80,REDACTED - PAYMENT TO INDIVIDUAL
Children and Adult Services,Head of Adults,Transfer Payments,515201,Social Services Clients,05-Dec-2013,2676948-1382639H,706.86,REDACTED - PAYMENT TO INDIVIDUAL
Children and Adult Services,Head of Adults,Transfer Payments,515201,Social Services Clients,05-Dec-2013,2676950-1380563H,"1,076.12",REDACTED - PAYMENT TO INDIVIDUAL
Children and Adult Services,Head of Adults,Transfer Payments,515201,Social Services Clients,05-Dec-2013,2676951-1382711H,590.80,REDACTED - PAYMENT TO INDIVIDUAL
Children and Adult Services,Head of Adults,Transfer Payments,515201,Social Services Clients,05-Dec-2013,2676952-1384976H,"2,542.40",REDACTED - PAYMENT TO INDIVIDUAL
Children and Adult Services,Head of Adults,Transfer Payments,515201,Social Services Clients,05-Dec-2013,2676954-1381100H,"1,508.24",REDACTED - PAYMENT TO INDIVIDUAL
Children and Adult Services,Head of Adults,Transfer Payments,515201,Social Services Clients,05-Dec-2013,2676957-1382008H,544.80,REDACTED - PAYMENT TO INDIVIDUAL
Children and Adult Services,Head of Adults,Transfer Payments,515201,Social Services Clients,05-Dec-2013,2676958-1382534H,"1,620.16",REDACTED - PAYMENT TO INDIVIDUAL
Children and Adult Services,Head of Adults,Transfer Payments,515201,Social Services Clients,05-Dec-2013,2676962-1383733H,604.88,REDACTED - PAYMENT TO INDIVIDUAL
Children and Adult Services,Head of Adults,Transfer Payments,515201,Social Services Clients,05-Dec-2013,2676963-1383406H,696.32,REDACTED - PAYMENT TO INDIVIDUAL
Children and Adult Services,Head of Adults,Transfer Payments,515201,Social Services Clients,05-Dec-2013,2676964-1385526H,675.20,REDACTED - PAYMENT TO INDIVIDUAL
Children and Adult Services,Head of Adults,Transfer Payments,515201,Social Services Clients,05-Dec-2013,2676967-1381664H,621.04,REDACTED - PAYMENT TO INDIVIDUAL
Children and Adult Services,Head of Adults,Transfer Payments,515201,Social Services Clients,05-Dec-2013,2676968-1380244H,"1,360.96",REDACTED - PAYMENT TO INDIVIDUAL
Children and Adult Services,Head of Adults,Transfer Payments,515209,Social Services Clients,05-Dec-2013,2676970-1384016D,"2,520.00",REDACTED - PAYMENT TO INDIVIDUAL
Children and Adult Services,Head of Adults,Transfer Payments,515201,Social Services Clients,05-Dec-2013,2676970-1384016H,500.00,REDACTED - PAYMENT TO INDIVIDUAL
Children and Adult Services,Head of Adults,Transfer Payments,515201,Social Services Clients,05-Dec-2013,2676971-1382219H,"1,814.60",REDACTED - PAYMENT TO INDIVIDUAL
Children and Adult Services,Head of Adults,Transfer Payments,515201,Social Services Clients,05-Dec-2013,2676973-1380198H,664.64,REDACTED - PAYMENT TO INDIVIDUAL
Children and Adult Services,Head of Adults,Transfer Payments,515201,Social Services Clients,05-Dec-2013,2676974-1381026H,590.80,REDACTED - PAYMENT TO INDIVIDUAL
Children and Adult Services,Head of Adults,Transfer Payments,515201,Social Services Clients,05-Dec-2013,2676975-1381155H,"1,287.12",REDACTED - PAYMENT TO INDIVIDUAL
Children and Adult Services,Head of Adults,Transfer Payments,515201,Social Services Clients,05-Dec-2013,2676977-1383696H,780.72,REDACTED - PAYMENT TO INDIVIDUAL
Children and Adult Services,Head of Adults,Transfer Payments,515209,Social Services Clients,05-Dec-2013,2676982-1381964D,640.00,REDACTED - PAYMENT TO INDIVIDUAL
Children and Adult Services,Head of Adults,Transfer Payments,515201,Social Services Clients,05-Dec-2013,2676984-1381938H,908.00,REDACTED - PAYMENT TO INDIVIDUAL
Children and Adult Services,Head of Adults,Transfer Payments,515201,Social Services Clients,05-Dec-2013,2676986-1384987H,908.00,REDACTED - PAYMENT TO INDIVIDUAL
Children and Adult Services,Head of Adults,Transfer Payments,515201,Social Services Clients,05-Dec-2013,2676989-1381102H,621.04,REDACTED - PAYMENT TO INDIVIDUAL
Children and Adult Services,Head of Adults,Transfer Payments,515201,Social Services Clients,05-Dec-2013,2676991-1380719H,"1,362.00",REDACTED - PAYMENT TO INDIVIDUAL
Children and Adult Services,Head of Adults,Transfer Payments,515201,Social Services Clients,05-Dec-2013,2676994-1382097H,975.92,REDACTED - PAYMENT TO INDIVIDUAL
Children and Adult Services,Head of Adults,Transfer Payments,515201,Social Services Clients,05-Dec-2013,2676995-1381564H,"1,770.60",REDACTED - PAYMENT TO INDIVIDUAL
Children and Adult Services,Head of Adults,Transfer Payments,515201,Social Services Clients,05-Dec-2013,2676996-1379984H,"1,645.80",REDACTED - PAYMENT TO INDIVIDUAL
Children and Adult Services,Head of Adults,Transfer Payments,515201,Social Services Clients,05-Dec-2013,2677002-1382960H,723.72,REDACTED - PAYMENT TO INDIVIDUAL
Children and Adult Services,Head of Adults,Transfer Payments,515201,Social Services Clients,05-Dec-2013,2677004-1383336H,907.32,REDACTED - PAYMENT TO INDIVIDUAL
Children and Adult Services,Head of Adults,Transfer Payments,515201,Social Services Clients,05-Dec-2013,2677005-1382558H,678.72,REDACTED - PAYMENT TO INDIVIDUAL
Children and Adult Services,Head of Adults,Transfer Payments,515201,Social Services Clients,05-Dec-2013,2677008-1380737H,726.40,REDACTED - PAYMENT TO INDIVIDUAL
Children and Adult Services,Head of Adults,Transfer Payments,515201,Social Services Clients,05-Dec-2013,2677009-1382988H,637.60,REDACTED - PAYMENT TO INDIVIDUAL
Children and Adult Services,Head of Adults,Transfer Payments,515201,Social Services Clients,05-Dec-2013,2677010-1380920H,632.40,REDACTED - PAYMENT TO INDIVIDUAL
Children and Adult Services,Head of Adults,Transfer Payments,515201,Social Services Clients,05-Dec-2013,2677011-1383162H,583.76,REDACTED - PAYMENT TO INDIVIDUAL
Children and Adult Services,Head of Adults,Transfer Payments,515201,Social Services Clients,05-Dec-2013,2677012-1383732H,604.88,REDACTED - PAYMENT TO INDIVIDUAL
Children and Adult Services,Head of Adults,Transfer Payments,515201,Social Services Clients,05-Dec-2013,2677013-1381509H,618.92,REDACTED - PAYMENT TO INDIVIDUAL
Children and Adult Services,Head of Adults,Transfer Payments,515201,Social Services Clients,05-Dec-2013,2677019-1384979H,949.52,REDACTED - PAYMENT TO INDIVIDUAL
Children and Adult Services,Head of Adults,Transfer Payments,515201,Social Services Clients,05-Dec-2013,2677020-1382181H,590.80,REDACTED - PAYMENT TO INDIVIDUAL
Children and Adult Services,Head of Adults,Transfer Payments,515201,Social Services Clients,05-Dec-2013,2677022-1385212H,"2,031.64",REDACTED - PAYMENT TO INDIVIDUAL
Children and Adult Services,Head of Adults,Transfer Payments,515201,Social Services Clients,05-Dec-2013,2677023-1382991H,681.00,REDACTED - PAYMENT TO INDIVIDUAL
Children and Adult Services,Head of Adults,Transfer Payments,515201,Social Services Clients,05-Dec-2013,2677024-1384905H,594.00,REDACTED - PAYMENT TO INDIVIDUAL
Children and Adult Services,Head of Adults,Transfer Payments,515201,Social Services Clients,05-Dec-2013,2677025-1385646H,"3,627.04",REDACTED - PAYMENT TO INDIVIDUAL
Children and Adult Services,Head of Adults,Transfer Payments,515201,Social Services Clients,05-Dec-2013,2677027-1383456H,717.40,REDACTED - PAYMENT TO INDIVIDUAL
Children and Adult Services,Head of Adults,Transfer Payments,515201,Social Services Clients,05-Dec-2013,2677029-1384944H,801.80,REDACTED - PAYMENT TO INDIVIDUAL
Children and Adult Services,Head of Adults,Transfer Payments,515201,Social Services Clients,05-Dec-2013,2677030-1380986H,976.12,REDACTED - PAYMENT TO INDIVIDUAL
Children and Adult Services,Head of Adults,Transfer Payments,515201,Social Services Clients,05-Dec-2013,2677032-1380862H,675.20,REDACTED - PAYMENT TO INDIVIDUAL
Children and Adult Services,Head of Adults,Transfer Payments,515201,Social Services Clients,05-Dec-2013,2677034-1382867H,"1,747.92",REDACTED - PAYMENT TO INDIVIDUAL
Children and Adult Services,Head of Adults,Transfer Payments,515201,Social Services Clients,05-Dec-2013,2677035-1385021H,"2,743.00",REDACTED - PAYMENT TO INDIVIDUAL
Children and Adult Services,Head of Adults,Transfer Payments,515201,Social Services Clients,05-Dec-2013,2677037-1381941H,"1,055.00",REDACTED - PAYMENT TO INDIVIDUAL
Children and Adult Services,Head of Adults,Transfer Payments,515201,Social Services Clients,05-Dec-2013,2677038-1383842H,527.52,REDACTED - PAYMENT TO INDIVIDUAL
Children and Adult Services,Head of Adults,Transfer Payments,515201,Social Services Clients,05-Dec-2013,2677039-1384317H,794.52,REDACTED - PAYMENT TO INDIVIDUAL
Children and Adult Services,Head of Adults,Transfer Payments,515201,Social Services Clients,05-Dec-2013,2677042-1381316H,833.44,REDACTED - PAYMENT TO INDIVIDUAL
Children and Adult Services,Head of Adults,Transfer Payments,515201,Social Services Clients,05-Dec-2013,2677045-1383637H,766.64,REDACTED - PAYMENT TO INDIVIDUAL
Children and Adult Services,Head of Adults,Transfer Payments,515201,Social Services Clients,05-Dec-2013,2677046-1381707H,550.80,REDACTED - PAYMENT TO INDIVIDUAL
Children and Adult Services,Head of Adults,Transfer Payments,515201,Social Services Clients,05-Dec-2013,2677048-1383826H,812.36,REDACTED - PAYMENT TO INDIVIDUAL
Children and Adult Services,Head of Adults,Transfer Payments,515201,Social Services Clients,05-Dec-2013,2677049-1384217H,"1,006.16",REDACTED - PAYMENT TO INDIVIDUAL
Children and Adult Services,Head of Adults,Transfer Payments,515201,Social Services Clients,05-Dec-2013,2677051-1383222H,"1,120.00",REDACTED - PAYMENT TO INDIVIDUAL
Children and Adult Services,Head of Adults,Transfer Payments,515201,Social Services Clients,05-Dec-2013,2677055-1383067H,928.40,REDACTED - PAYMENT TO INDIVIDUAL
Children and Adult Services,Head of Adults,Transfer Payments,515201,Social Services Clients,05-Dec-2013,2677056-1382980H,597.84,REDACTED - PAYMENT TO INDIVIDUAL
Children and Adult Services,Head of Adults,Transfer Payments,515201,Social Services Clients,05-Dec-2013,2677057-1380545H,"2,484.00",REDACTED - PAYMENT TO INDIVIDUAL
Children and Adult Services,Head of Adults,Transfer Payments,515201,Social Services Clients,05-Dec-2013,2677058-1380727H,838.20,REDACTED - PAYMENT TO INDIVIDUAL
Children and Adult Services,Head of Adults,Transfer Payments,515209,Social Services Clients,05-Dec-2013,2677059-1380835D,855.20,REDACTED - PAYMENT TO INDIVIDUAL
Children and Adult Services,Head of Adults,Transfer Payments,515201,Social Services Clients,05-Dec-2013,2677061-1385122H,839.92,REDACTED - PAYMENT TO INDIVIDUAL
Children and Adult Services,Head of Adults,Transfer Payments,515201,Social Services Clients,05-Dec-2013,2677063-1379716H,998.80,REDACTED - PAYMENT TO INDIVIDUAL
Children and Adult Services,Head of Adults,Transfer Payments,515201,Social Services Clients,05-Dec-2013,2677068-1381308H,869.60,REDACTED - PAYMENT TO INDIVIDUAL
Children and Adult Services,Head of Adults,Transfer Payments,515201,Social Services Clients,05-Dec-2013,2677070-1383075H,"1,944.00",REDACTED - PAYMENT TO INDIVIDUAL
Children and Adult Services,Head of Adults,Transfer Payments,515201,Social Services Clients,05-Dec-2013,2677071-1380409H,675.20,REDACTED - PAYMENT TO INDIVIDUAL
Children and Adult Services,Head of Adults,Transfer Payments,515201,Social Services Clients,05-Dec-2013,2677072-1379712H,516.96,REDACTED - PAYMENT TO INDIVIDUAL
Children and Adult Services,Head of Adults,Transfer Payments,515201,Social Services Clients,05-Dec-2013,2677073-1379663H,828.56,REDACTED - PAYMENT TO INDIVIDUAL
Children and Adult Services,Head of Adults,Transfer Payments,515201,Social Services Clients,05-Dec-2013,2677074-1381244H,624.24,REDACTED - PAYMENT TO INDIVIDUAL
Children and Adult Services,Head of Adults,Transfer Payments,515201,Social Services Clients,05-Dec-2013,2677078-1380669H,"1,582.52",REDACTED - PAYMENT TO INDIVIDUAL
Children and Adult Services,Head of Adults,Transfer Payments,515201,Social Services Clients,05-Dec-2013,2677079-1384754H,569.28,REDACTED - PAYMENT TO INDIVIDUAL
Children and Adult Services,Head of Adults,Transfer Payments,515201,Social Services Clients,05-Dec-2013,2677080-1380038H,669.64,REDACTED - PAYMENT TO INDIVIDUAL
Children and Adult Services,Head of Adults,Transfer Payments,515201,Social Services Clients,05-Dec-2013,2677081-1384649H,"1,434.80",REDACTED - PAYMENT TO INDIVIDUAL
Children and Adult Services,Head of Adults,Transfer Payments,515201,Social Services Clients,05-Dec-2013,2677082-1385740H,745.52,REDACTED - PAYMENT TO INDIVIDUAL
Children and Adult Services,Head of Adults,Transfer Payments,515201,Social Services Clients,05-Dec-2013,2677083-1381036H,643.44,REDACTED - PAYMENT TO INDIVIDUAL
Children and Adult Services,Head of Adults,Transfer Payments,515201,Social Services Clients,05-Dec-2013,2677085-1380979H,681.00,REDACTED - PAYMENT TO INDIVIDUAL
Children and Adult Services,Head of Adults,Transfer Payments,515201,Social Services Clients,05-Dec-2013,2677087-1382812H,"2,115.32",REDACTED - PAYMENT TO INDIVIDUAL
Children and Adult Services,Head of Adults,Transfer Payments,515209,Social Services Clients,05-Dec-2013,2677089-1380707D,500.00,REDACTED - PAYMENT TO INDIVIDUAL
Children and Adult Services,Head of Adults,Transfer Payments,515201,Social Services Clients,05-Dec-2013,2677089-1380707H,506.40,REDACTED - PAYMENT TO INDIVIDUAL
Children and Adult Services,Head of Adults,Transfer Payments,515201,Social Services Clients,05-Dec-2013,2677090-1385776H,506.40,REDACTED - PAYMENT TO INDIVIDUAL
Children and Adult Services,Head of Adults,Transfer Payments,515201,Social Services Clients,05-Dec-2013,2677093-1381827H,865.04,REDACTED - PAYMENT TO INDIVIDUAL
Children and Adult Services,Head of Adults,Transfer Payments,515201,Social Services Clients,05-Dec-2013,2677094-1381984H,"1,872.76",REDACTED - PAYMENT TO INDIVIDUAL
Children and Adult Services,Head of Adults,Transfer Payments,515201,Social Services Clients,05-Dec-2013,2677097-1384538H,"1,657.12",REDACTED - PAYMENT TO INDIVIDUAL
Children and Adult Services,Head of Adults,Transfer Payments,515201,Social Services Clients,05-Dec-2013,2677099-1382761H,"1,669.00",REDACTED - PAYMENT TO INDIVIDUAL
Children and Adult Services,Head of Adults,Transfer Payments,515201,Social Services Clients,05-Dec-2013,2677101-1379877H,506.40,REDACTED - PAYMENT TO INDIVIDUAL
Children and Adult Services,Head of Adults,Transfer Payments,515201,Social Services Clients,05-Dec-2013,2677102-1383094H,844.00,REDACTED - PAYMENT TO INDIVIDUAL
Children and Adult Services,Head of Adults,Transfer Payments,515201,Social Services Clients,05-Dec-2013,2677107-1385404H,590.20,REDACTED - PAYMENT TO INDIVIDUAL
Children and Adult Services,Head of Adults,Transfer Payments,515201,Social Services Clients,05-Dec-2013,2677108-1384559H,889.72,REDACTED - PAYMENT TO INDIVIDUAL
Children and Adult Services,Head of Adults,Transfer Payments,515201,Social Services Clients,05-Dec-2013,2677110-1381943H,"1,297.64",REDACTED - PAYMENT TO INDIVIDUAL
Children and Adult Services,Head of Adults,Transfer Payments,515209,Social Services Clients,05-Dec-2013,2677114-1381054D,775.20,REDACTED - PAYMENT TO INDIVIDUAL
Children and Adult Services,Head of Adults,Transfer Payments,515201,Social Services Clients,05-Dec-2013,2677116-1379729H,"2,420.04",REDACTED - PAYMENT TO INDIVIDUAL
Children and Adult Services,Head of Adults,Transfer Payments,515201,Social Services Clients,05-Dec-2013,2677117-1379511H,817.20,REDACTED - PAYMENT TO INDIVIDUAL
Children and Adult Services,Head of Adults,Transfer Payments,515201,Social Services Clients,05-Dec-2013,2677118-1380785H,780.72,REDACTED - PAYMENT TO INDIVIDUAL
Children and Adult Services,Head of Adults,Transfer Payments,515201,Social Services Clients,05-Dec-2013,2677120-1384866H,"1,362.00",REDACTED - PAYMENT TO INDIVIDUAL
Children and Adult Services,Head of Adults,Transfer Payments,515201,Social Services Clients,05-Dec-2013,2677122-1384345H,"2,451.60",REDACTED - PAYMENT TO INDIVIDUAL
Children and Adult Services,Head of Adults,Transfer Payments,515201,Social Services Clients,05-Dec-2013,2677124-1384747H,885.32,REDACTED - PAYMENT TO INDIVIDUAL
Children and Adult Services,Head of Adults,Transfer Payments,515201,Social Services Clients,05-Dec-2013,2677127-1385489H,506.40,REDACTED - PAYMENT TO INDIVIDUAL
Children and Adult Services,Head of Adults,Transfer Payments,515201,Social Services Clients,05-Dec-2013,2677131-1385993H,"1,962.00",REDACTED - PAYMENT TO INDIVIDUAL
Children and Adult Services,Head of Adults,Transfer Payments,515201,Social Services Clients,05-Dec-2013,2677133-1384169H,840.48,REDACTED - PAYMENT TO INDIVIDUAL
Children and Adult Services,Head of Adults,Transfer Payments,515201,Social Services Clients,05-Dec-2013,2677135-1380848H,"1,223.80",REDACTED - PAYMENT TO INDIVIDUAL
Children and Adult Services,Head of Adults,Transfer Payments,515201,Social Services Clients,05-Dec-2013,2677138-1384288H,696.32,REDACTED - PAYMENT TO INDIVIDUAL
Children and Adult Services,Head of Adults,Transfer Payments,515201,Social Services Clients,05-Dec-2013,2677143-1382130H,624.24,REDACTED - PAYMENT TO INDIVIDUAL
Children and Adult Services,Head of Adults,Transfer Payments,515201,Social Services Clients,05-Dec-2013,2677144-1384750H,646.96,REDACTED - PAYMENT TO INDIVIDUAL
Children and Adult Services,Head of Adults,Transfer Payments,515201,Social Services Clients,05-Dec-2013,2677145-1383612H,"1,353.00",REDACTED - PAYMENT TO INDIVIDUAL
Children and Adult Services,Head of Adults,Transfer Payments,515201,Social Services Clients,05-Dec-2013,2677145-1383613H,798.48,REDACTED - PAYMENT TO INDIVIDUAL
Children and Adult Services,Head of Adults,Transfer Payments,515209,Social Services Clients,05-Dec-2013,2677146-1382839D,"2,400.00",REDACTED - PAYMENT TO INDIVIDUAL
Children and Adult Services,Head of Adults,Transfer Payments,515201,Social Services Clients,05-Dec-2013,2677146-1382839H,"2,088.40",REDACTED - PAYMENT TO INDIVIDUAL
Children and Adult Services,Head of Adults,Transfer Payments,515201,Social Services Clients,05-Dec-2013,2677147-1383012H,675.20,REDACTED - PAYMENT TO INDIVIDUAL
Children and Adult Services,Head of Adults,Transfer Payments,515201,Social Services Clients,05-Dec-2013,2677148-1385399H,798.28,REDACTED - PAYMENT TO INDIVIDUAL
Children and Adult Services,Head of Adults,Third Party Payments,470101,Purchase of Care,05-Dec-2013,2677149-1379993D,692.32,REDACTED - PAYMENT TO INDIVIDUAL
Children and Adult Services,Head of Adults,Transfer Payments,515201,Social Services Clients,05-Dec-2013,2677152-1384131H,"1,362.00",REDACTED - PAYMENT TO INDIVIDUAL
Children and Adult Services,Head of Adults,Transfer Payments,515201,Social Services Clients,05-Dec-2013,2677153-1382246H,817.20,REDACTED - PAYMENT TO INDIVIDUAL
Children and Adult Services,Head of Adults,Transfer Payments,515201,Social Services Clients,05-Dec-2013,2677154-1385729H,"1,389.92",REDACTED - PAYMENT TO INDIVIDUAL
Children and Adult Services,Head of Adults,Transfer Payments,515201,Social Services Clients,05-Dec-2013,2677157-1382855H,601.36,REDACTED - PAYMENT TO INDIVIDUAL
Children and Adult Services,Head of Adults,Transfer Payments,515201,Social Services Clients,05-Dec-2013,2677158-1382056H,548.60,REDACTED - PAYMENT TO INDIVIDUAL
Children and Adult Services,Head of Adults,Transfer Payments,515201,Social Services Clients,05-Dec-2013,2677161-1383326H,510.16,REDACTED - PAYMENT TO INDIVIDUAL
Children and Adult Services,Head of Adults,Transfer Payments,515201,Social Services Clients,05-Dec-2013,2677163-1380111H,"6,832.60",REDACTED - PAYMENT TO INDIVIDUAL
Children and Adult Services,Head of Adults,Transfer Payments,515209,Social Services Clients,05-Dec-2013,2677164-1382517D,706.32,REDACTED - PAYMENT TO INDIVIDUAL
Children and Adult Services,Head of Adults,Transfer Payments,515201,Social Services Clients,05-Dec-2013,2677164-1382517H,675.20,REDACTED - PAYMENT TO INDIVIDUAL
Children and Adult Services,Head of Adults,Transfer Payments,515201,Social Services Clients,05-Dec-2013,2677166-1385045H,731.48,REDACTED - PAYMENT TO INDIVIDUAL
Children and Adult Services,Head of Adults,Transfer Payments,515201,Social Services Clients,05-Dec-2013,2677167-1381068H,759.60,REDACTED - PAYMENT TO INDIVIDUAL
Children and Adult Services,Head of Adults,Transfer Payments,515201,Social Services Clients,05-Dec-2013,2677168-1384983H,854.56,REDACTED - PAYMENT TO INDIVIDUAL
Children and Adult Services,Head of Adults,Transfer Payments,515201,Social Services Clients,05-Dec-2013,2677170-1382820H,"1,838.72",REDACTED - PAYMENT TO INDIVIDUAL
Children and Adult Services,Head of Adults,Transfer Payments,515201,Social Services Clients,05-Dec-2013,2677174-1379584H,908.00,REDACTED - PAYMENT TO INDIVIDUAL
Children and Adult Services,Head of Adults,Transfer Payments,515209,Social Services Clients,05-Dec-2013,2677178-1381719D,"1,600.00",REDACTED - PAYMENT TO INDIVIDUAL
Children and Adult Services,Head of Adults,Transfer Payments,515201,Social Services Clients,05-Dec-2013,2677180-1381183H,919.36,REDACTED - PAYMENT TO INDIVIDUAL
Children and Adult Services,Head of Adults,Transfer Payments,515201,Social Services Clients,05-Dec-2013,2677182-1379552H,"1,739.20",REDACTED - PAYMENT TO INDIVIDUAL
Children and Adult Services,Head of Adults,Transfer Payments,515201,Social Services Clients,05-Dec-2013,2677185-1384486H,611.92,REDACTED - PAYMENT TO INDIVIDUAL
Children and Adult Services,Head of Adults,Transfer Payments,515201,Social Services Clients,05-Dec-2013,2677186-1383827H,675.20,REDACTED - PAYMENT TO INDIVIDUAL
Children and Adult Services,Head of Adults,Transfer Payments,515201,Social Services Clients,05-Dec-2013,2677189-1384350H,548.60,REDACTED - PAYMENT TO INDIVIDUAL
Children and Adult Services,Head of Adults,Transfer Payments,515201,Social Services Clients,05-Dec-2013,2677190-1381322H,633.00,REDACTED - PAYMENT TO INDIVIDUAL
Children and Adult Services,Head of Adults,Transfer Payments,515201,Social Services Clients,05-Dec-2013,2677192-1384247H,839.92,REDACTED - PAYMENT TO INDIVIDUAL
Children and Adult Services,Head of Adults,Transfer Payments,515201,Social Services Clients,05-Dec-2013,2677193-1382568H,976.12,REDACTED - PAYMENT TO INDIVIDUAL
Children and Adult Services,Head of Adults,Transfer Payments,515209,Social Services Clients,05-Dec-2013,2677195-1381559D,"1,663.40",REDACTED - PAYMENT TO INDIVIDUAL
Children and Adult Services,Head of Adults,Transfer Payments,515201,Social Services Clients,05-Dec-2013,2677196-1381358H,738.52,REDACTED - PAYMENT TO INDIVIDUAL
Children and Adult Services,Head of Adults,Transfer Payments,515201,Social Services Clients,05-Dec-2013,2677200-1382713H,512.64,REDACTED - PAYMENT TO INDIVIDUAL
Children and Adult Services,Head of Adults,Transfer Payments,515201,Social Services Clients,05-Dec-2013,2677202-1380381H,544.80,REDACTED - PAYMENT TO INDIVIDUAL
Children and Adult Services,Head of Adults,Transfer Payments,515201,Social Services Clients,05-Dec-2013,2677204-1384670H,726.40,REDACTED - PAYMENT TO INDIVIDUAL
Children and Adult Services,Head of Adults,Transfer Payments,515201,Social Services Clients,05-Dec-2013,2677205-1382089H,709.76,REDACTED - PAYMENT TO INDIVIDUAL
Children and Adult Services,Head of Adults,Transfer Payments,515209,Social Services Clients,05-Dec-2013,2677206-1382122D,"1,481.60",REDACTED - PAYMENT TO INDIVIDUAL
Children and Adult Services,Head of Adults,Transfer Payments,515201,Social Services Clients,05-Dec-2013,2677206-1382122H,681.00,REDACTED - PAYMENT TO INDIVIDUAL
Children and Adult Services,Head of Adults,Transfer Payments,515201,Social Services Clients,05-Dec-2013,2677215-1384844H,727.96,REDACTED - PAYMENT TO INDIVIDUAL
Children and Adult Services,Head of Adults,Transfer Payments,515201,Social Services Clients,05-Dec-2013,2677216-1385754H,552.12,REDACTED - PAYMENT TO INDIVIDUAL
Children and Adult Services,Head of Adults,Transfer Payments,515201,Social Services Clients,05-Dec-2013,2677217-1384429H,998.80,REDACTED - PAYMENT TO INDIVIDUAL
Children and Adult Services,Head of Adults,Transfer Payments,515201,Social Services Clients,05-Dec-2013,2677218-1381703H,547.00,REDACTED - PAYMENT TO INDIVIDUAL
Children and Adult Services,Head of Adults,Transfer Payments,515201,Social Services Clients,05-Dec-2013,2677219-1382032H,"1,316.60",REDACTED - PAYMENT TO INDIVIDUAL
Children and Adult Services,Head of Adults,Transfer Payments,515201,Social Services Clients,05-Dec-2013,2677221-1381771H,"2,380.00",REDACTED - PAYMENT TO INDIVIDUAL
Children and Adult Services,Head of Adults,Transfer Payments,515201,Social Services Clients,05-Dec-2013,2677222-1385161H,607.50,REDACTED - PAYMENT TO INDIVIDUAL
Children and Adult Services,Head of Adults,Transfer Payments,515201,Social Services Clients,05-Dec-2013,2677223-1382170H,844.00,REDACTED - PAYMENT TO INDIVIDUAL
Children and Adult Services,Head of Adults,Transfer Payments,515201,Social Services Clients,05-Dec-2013,2677229-1384541H,527.52,REDACTED - PAYMENT TO INDIVIDUAL
Children and Adult Services,Head of Adults,Transfer Payments,515201,Social Services Clients,05-Dec-2013,2677230-1381482H,"1,366.60",REDACTED - PAYMENT TO INDIVIDUAL
Children and Adult Services,Head of Adults,Transfer Payments,515201,Social Services Clients,05-Dec-2013,2677232-1384478H,590.80,REDACTED - PAYMENT TO INDIVIDUAL
Children and Adult Services,Head of Adults,Transfer Payments,515201,Social Services Clients,05-Dec-2013,2677235-1382187H,661.12,REDACTED - PAYMENT TO INDIVIDUAL
Children and Adult Services,Head of Adults,Transfer Payments,515201,Social Services Clients,05-Dec-2013,2677236-1384332H,"1,477.00",REDACTED - PAYMENT TO INDIVIDUAL
Children and Adult Services,Head of Adults,Transfer Payments,515201,Social Services Clients,05-Dec-2013,2677237-1385986H,"2,624.80",REDACTED - PAYMENT TO INDIVIDUAL
Children and Adult Services,Head of Adults,Transfer Payments,515201,Social Services Clients,05-Dec-2013,2677240-1382048H,"1,266.00",REDACTED - PAYMENT TO INDIVIDUAL
Children and Adult Services,Head of Adults,Transfer Payments,515201,Social Services Clients,05-Dec-2013,2677243-1382754H,862.60,REDACTED - PAYMENT TO INDIVIDUAL
Children and Adult Services,Head of Adults,Transfer Payments,515201,Social Services Clients,05-Dec-2013,2677244-1380942H,907.32,REDACTED - PAYMENT TO INDIVIDUAL
Children and Adult Services,Head of Adults,Transfer Payments,515201,Social Services Clients,05-Dec-2013,2677245-1384244H,"1,218.24",REDACTED - PAYMENT TO INDIVIDUAL
Children and Adult Services,Head of Adults,Transfer Payments,515201,Social Services Clients,05-Dec-2013,2677246-1380569H,"1,498.20",REDACTED - PAYMENT TO INDIVIDUAL
Children and Adult Services,Head of Adults,Transfer Payments,515201,Social Services Clients,05-Dec-2013,2677249-1379874H,726.40,REDACTED - PAYMENT TO INDIVIDUAL
Children and Adult Services,Head of Adults,Transfer Payments,515201,Social Services Clients,05-Dec-2013,2677251-1381852H,590.80,REDACTED - PAYMENT TO INDIVIDUAL
Children and Adult Services,Head of Adults,Transfer Payments,515201,Social Services Clients,05-Dec-2013,2677251-1385330H,862.60,REDACTED - PAYMENT TO INDIVIDUAL
Children and Adult Services,Head of Adults,Transfer Payments,515201,Social Services Clients,05-Dec-2013,2677254-1382131H,703.72,REDACTED - PAYMENT TO INDIVIDUAL
Children and Adult Services,Head of Adults,Transfer Payments,515201,Social Services Clients,05-Dec-2013,2677255-1383713H,"1,271.20",REDACTED - PAYMENT TO INDIVIDUAL
Children and Adult Services,Head of Adults,Transfer Payments,515201,Social Services Clients,05-Dec-2013,2677257-1381126H,681.00,REDACTED - PAYMENT TO INDIVIDUAL
Children and Adult Services,Head of Adults,Transfer Payments,515201,Social Services Clients,05-Dec-2013,2677259-1382226H,635.60,REDACTED - PAYMENT TO INDIVIDUAL
Children and Adult Services,Head of Adults,Transfer Payments,515201,Social Services Clients,05-Dec-2013,2677261-1383994H,"1,297.64",REDACTED - PAYMENT TO INDIVIDUAL
Children and Adult Services,Head of Adults,Transfer Payments,515201,Social Services Clients,05-Dec-2013,2677262-1383850H,548.52,REDACTED - PAYMENT TO INDIVIDUAL
Children and Adult Services,Head of Adults,Transfer Payments,515201,Social Services Clients,05-Dec-2013,2677263-1381083H,618.92,REDACTED - PAYMENT TO INDIVIDUAL
Children and Adult Services,Head of Adults,Transfer Payments,515201,Social Services Clients,05-Dec-2013,2677264-1380257H,"1,452.80",REDACTED - PAYMENT TO INDIVIDUAL
Children and Adult Services,Head of Adults,Transfer Payments,515201,Social Services Clients,05-Dec-2013,2677269-1380300H,643.24,REDACTED - PAYMENT TO INDIVIDUAL
Children and Adult Services,Head of Adults,Third Party Payments,470101,Purchase of Care,05-Dec-2013,2677269-1380301D,522.56,REDACTED - PAYMENT TO INDIVIDUAL
Children and Adult Services,Head of Adults,Transfer Payments,515201,Social Services Clients,05-Dec-2013,2677270-1383077H,675.20,REDACTED - PAYMENT TO INDIVIDUAL
Children and Adult Services,Head of Adults,Transfer Payments,515201,Social Services Clients,05-Dec-2013,2677273-1380306H,580.24,REDACTED - PAYMENT TO INDIVIDUAL
Children and Adult Services,Head of Adults,Transfer Payments,515201,Social Services Clients,05-Dec-2013,2677274-1379793H,"2,360.80",REDACTED - PAYMENT TO INDIVIDUAL
Children and Adult Services,Head of Adults,Transfer Payments,515201,Social Services Clients,05-Dec-2013,2677275-1383450H,727.96,REDACTED - PAYMENT TO INDIVIDUAL
Children and Adult Services,Head of Adults,Transfer Payments,515209,Social Services Clients,05-Dec-2013,2677277-1380489D,533.20,REDACTED - PAYMENT TO INDIVIDUAL
Children and Adult Services,Head of Adults,Transfer Payments,515201,Social Services Clients,05-Dec-2013,2677278-1385442H,908.00,REDACTED - PAYMENT TO INDIVIDUAL
Children and Adult Services,Head of Adults,Transfer Payments,515201,Social Services Clients,05-Dec-2013,2677279-1385857H,746.41,REDACTED - PAYMENT TO INDIVIDUAL
Children and Adult Services,Head of Adults,Transfer Payments,515201,Social Services Clients,05-Dec-2013,2677282-1385083H,771.80,REDACTED - PAYMENT TO INDIVIDUAL
Children and Adult Services,Head of Adults,Transfer Payments,515201,Social Services Clients,05-Dec-2013,2677285-1379416H,621.04,REDACTED - PAYMENT TO INDIVIDUAL
Children and Adult Services,Head of Adults,Transfer Payments,515209,Social Services Clients,05-Dec-2013,2677286-1382758D,"1,814.88",REDACTED - PAYMENT TO INDIVIDUAL
Children and Adult Services,Head of Adults,Transfer Payments,515201,Social Services Clients,05-Dec-2013,2677286-1382758H,"1,448.64",REDACTED - PAYMENT TO INDIVIDUAL
Children and Adult Services,Head of Adults,Transfer Payments,515201,Social Services Clients,05-Dec-2013,2677287-1382114H,621.04,REDACTED - PAYMENT TO INDIVIDUAL
Children and Adult Services,Head of Adults,Transfer Payments,515201,Social Services Clients,05-Dec-2013,2677288-1380382H,600.00,REDACTED - PAYMENT TO INDIVIDUAL
Children and Adult Services,Head of Adults,Transfer Payments,515201,Social Services Clients,05-Dec-2013,2677292-1385041H,601.36,REDACTED - PAYMENT TO INDIVIDUAL
Children and Adult Services,Head of Adults,Transfer Payments,515201,Social Services Clients,05-Dec-2013,2677294-1383674H,635.60,REDACTED - PAYMENT TO INDIVIDUAL
Children and Adult Services,Head of Adults,Transfer Payments,515201,Social Services Clients,05-Dec-2013,2677295-1382051H,"1,413.72",REDACTED - PAYMENT TO INDIVIDUAL
Children and Adult Services,Head of Adults,Third Party Payments,470101,Purchase of Care,05-Dec-2013,2677296-2131582,"1,864.56",ACOMB COURT.
Children and Adult Services,Head of Adults,Third Party Payments,473101,Purchase of Care,05-Dec-2013,2677297-1385024D,513.92,ACORN GRANGE NURSING HOME.
Children and Adult Services,Head of Adults,Third Party Payments,473101,Purchase of Care,05-Dec-2013,2677297-1385267D,664.80,ACORN GRANGE NURSING HOME.
Children and Adult Services,Head of Adults,Third Party Payments,473101,Purchase of Care,05-Dec-2013,2677297-1385560D,522.92,ACORN GRANGE NURSING HOME.
Children and Adult Services,Head of Adults,Third Party Payments,473101,Purchase of Care,05-Dec-2013,2677297-1385640D,531.96,ACORN GRANGE NURSING HOME.
Children and Adult Services,Head of Adults,Third Party Payments,473101,Purchase of Care,05-Dec-2013,2677297-1386437D,575.85,ACORN GRANGE NURSING HOME.
Children and Adult Services,Head of Adults,Third Party Payments,470101,Purchase of Care,05-Dec-2013,2677297-2132413,"1,792.92",ACORN GRANGE NURSING HOME.
Children and Adult Services,Head of Adults,Third Party Payments,470101,Purchase of Care,05-Dec-2013,2677297-2132414,"1,792.92",ACORN GRANGE NURSING HOME.
Children and Adult Services,Head of Adults,Third Party Payments,470101,Purchase of Care,05-Dec-2013,2677297-2132415,"1,792.92",ACORN GRANGE NURSING HOME.
Children and Adult Services,Head of Adults,Third Party Payments,470101,Purchase of Care,05-Dec-2013,2677297-2132416,"1,792.92",ACORN GRANGE NURSING HOME.
Children and Adult Services,Head of Adults,Third Party Payments,470101,Purchase of Care,05-Dec-2013,2677297-2132417,"1,792.92",ACORN GRANGE NURSING HOME.
Children and Adult Services,Head of Adults,Third Party Payments,470101,Purchase of Care,05-Dec-2013,2677297-2132418,"1,792.92",ACORN GRANGE NURSING HOME.
Children and Adult Services,Head of Adults,Third Party Payments,470101,Purchase of Care,05-Dec-2013,2677297-2132420,"1,792.92",ACORN GRANGE NURSING HOME.
Children and Adult Services,Head of Adults,Third Party Payments,470101,Purchase of Care,05-Dec-2013,2677297-2132421,640.32,ACORN GRANGE NURSING HOME.
Children and Adult Services,Head of Adults,Third Party Payments,470101,Purchase of Care,05-Dec-2013,2677297-2132422,"1,792.92",ACORN GRANGE NURSING HOME.
Children and Adult Services,Head of Adults,Third Party Payments,470101,Purchase of Care,05-Dec-2013,2677297-2132423,"1,792.92",ACORN GRANGE NURSING HOME.
Children and Adult Services,Head of Adults,Third Party Payments,470101,Purchase of Care,05-Dec-2013,2677297-2132424,"1,792.92",ACORN GRANGE NURSING HOME.
Children and Adult Services,Head of Adults,Third Party Payments,470101,Purchase of Care,05-Dec-2013,2677297-2132425,"1,792.92",ACORN GRANGE NURSING HOME.
Children and Adult Services,Head of Adults,Third Party Payments,470101,Purchase of Care,05-Dec-2013,2677297-2132426,"1,792.92",ACORN GRANGE NURSING HOME.
Children and Adult Services,Head of Adults,Third Party Payments,470101,Purchase of Care,05-Dec-2013,2677297-2132427,"1,792.92",ACORN GRANGE NURSING HOME.
Children and Adult Services,Head of Adults,Third Party Payments,470101,Purchase of Care,05-Dec-2013,2677297-2132428,"1,792.92",ACORN GRANGE NURSING HOME.
Children and Adult Services,Head of Adults,Third Party Payments,470101,Purchase of Care,05-Dec-2013,2677297-2132429,"1,792.92",ACORN GRANGE NURSING HOME.
Children and Adult Services,Head of Adults,Third Party Payments,470101,Purchase of Care,05-Dec-2013,2677297-2132430,"1,792.92",ACORN GRANGE NURSING HOME.
Children and Adult Services,Head of Adults,Third Party Payments,470101,Purchase of Care,05-Dec-2013,2677297-2132431,"1,792.92",ACORN GRANGE NURSING HOME.
Children and Adult Services,Head of Adults,Third Party Payments,471101,Purchase of Care,05-Dec-2013,2677297-2135558,"1,863.80",ACORN GRANGE NURSING HOME.
Children and Adult Services,Head of Adults,Third Party Payments,471101,Purchase of Care,05-Dec-2013,2677297-2135559,"1,863.80",ACORN GRANGE NURSING HOME.
Children and Adult Services,Head of Adults,Third Party Payments,471101,Purchase of Care,05-Dec-2013,2677297-2135560,"1,863.80",ACORN GRANGE NURSING HOME.
Children and Adult Services,Head of Adults,Third Party Payments,471101,Purchase of Care,05-Dec-2013,2677297-2135561,"1,863.80",ACORN GRANGE NURSING HOME.
Children and Adult Services,Head of Adults,Third Party Payments,471101,Purchase of Care,05-Dec-2013,2677297-2135562,"1,863.80",ACORN GRANGE NURSING HOME.
Children and Adult Services,Head of Adults,Third Party Payments,471101,Purchase of Care,05-Dec-2013,2677297-2135563,"1,863.80",ACORN GRANGE NURSING HOME.
Children and Adult Services,Head of Adults,Third Party Payments,471101,Purchase of Care,05-Dec-2013,2677297-2135564,"1,863.80",ACORN GRANGE NURSING HOME.
Children and Adult Services,Head of Adults,Third Party Payments,471101,Purchase of Care,05-Dec-2013,2677297-2135565,"1,863.80",ACORN GRANGE NURSING HOME.
Children and Adult Services,Head of Adults,Third Party Payments,471101,Purchase of Care,05-Dec-2013,2677297-2135566,532.51,ACORN GRANGE NURSING HOME.
Children and Adult Services,Head of Adults,Third Party Payments,471101,Purchase of Care,05-Dec-2013,2677297-2135571,"1,863.80",ACORN GRANGE NURSING HOME.
Children and Adult Services,Head of Adults,Third Party Payments,471101,Purchase of Care,05-Dec-2013,2677297-2135572,"1,863.80",ACORN GRANGE NURSING HOME.
Children and Adult Services,Head of Adults,Third Party Payments,471101,Purchase of Care,05-Dec-2013,2677297-2135573,"1,863.80",ACORN GRANGE NURSING HOME.
Children and Adult Services,Head of Adults,Third Party Payments,471101,Purchase of Care,05-Dec-2013,2677297-2135574,"1,863.80",ACORN GRANGE NURSING HOME.
Children and Adult Services,Head of Adults,Third Party Payments,471101,Purchase of Care,05-Dec-2013,2677297-2135575,"1,863.80",ACORN GRANGE NURSING HOME.
Children and Adult Services,Head of Adults,Third Party Payments,471101,Purchase of Care,05-Dec-2013,2677297-2135576,"1,863.80",ACORN GRANGE NURSING HOME.
Children and Adult Services,Head of Adults,Third Party Payments,471101,Purchase of Care,05-Dec-2013,2677297-2135577,"1,863.80",ACORN GRANGE NURSING HOME.
Children and Adult Services,Head of Adults,Third Party Payments,471101,Purchase of Care,05-Dec-2013,2677297-2135578,"1,863.80",ACORN GRANGE NURSING HOME.
Children and Adult Services,Head of Adults,Third Party Payments,471101,Purchase of Care,05-Dec-2013,2677297-2135579,"1,863.80",ACORN GRANGE NURSING HOME.
Children and Adult Services,Head of Adults,Third Party Payments,471101,Purchase of Care,05-Dec-2013,2677297-2135580,"1,863.80",ACORN GRANGE NURSING HOME.
Children and Adult Services,Head of Adults,Third Party Payments,471101,Purchase of Care,05-Dec-2013,2677297-2136157,865.33,ACORN GRANGE NURSING HOME.
Children and Adult Services,Head of Adults,Transfer Payments,515201,Social Services Clients,05-Dec-2013,2677299-1379467H,786.32,REDACTED - PAYMENT TO INDIVIDUAL
Children and Adult Services,Head of Adults,Transfer Payments,515201,Social Services Clients,05-Dec-2013,2677299-1383491H,"1,547.40",REDACTED - PAYMENT TO INDIVIDUAL
Children and Adult Services,Head of Adults,Transfer Payments,515201,Social Services Clients,05-Dec-2013,2677300-1384152H,"3,374.44",REDACTED - PAYMENT TO INDIVIDUAL
Children and Adult Services,Head of Adults,Transfer Payments,515209,Social Services Clients,05-Dec-2013,2677301-1382922D,"1,160.00",REDACTED - PAYMENT TO INDIVIDUAL
Children and Adult Services,Head of Adults,Third Party Payments,474101,Purchase of Care,05-Dec-2013,2677307-2134769,"1,897.00",ADMIRAL COURT.
Children and Adult Services,Head of Adults,Third Party Payments,474101,Purchase of Care,05-Dec-2013,2677307-2134774,"1,897.00",ADMIRAL COURT.
Children and Adult Services,Head of Adults,Third Party Payments,471101,Purchase of Care,05-Dec-2013,2677307-2135377,"1,897.00",ADMIRAL COURT.
Children and Adult Services,Head of Adults,Transfer Payments,515201,Social Services Clients,05-Dec-2013,2677312-1379844H,552.92,REDACTED - PAYMENT TO INDIVIDUAL
Children and Adult Services,Head of Adults,Transfer Payments,515201,Social Services Clients,05-Dec-2013,2677316-1380212H,678.72,REDACTED - PAYMENT TO INDIVIDUAL
Children and Adult Services,Head of Adults,Transfer Payments,515201,Social Services Clients,05-Dec-2013,2677319-1380889H,576.00,REDACTED - PAYMENT TO INDIVIDUAL
Children and Adult Services,Head of Adults,Transfer Payments,515201,Social Services Clients,05-Dec-2013,2677321-1383023H,981.76,REDACTED - PAYMENT TO INDIVIDUAL
Children and Adult Services,Head of Adults,Transfer Payments,515201,Social Services Clients,05-Dec-2013,2677323-1381132H,"1,012.80",REDACTED - PAYMENT TO INDIVIDUAL
Children and Adult Services,Head of Adults,Transfer Payments,515201,Social Services Clients,05-Dec-2013,2677326-1384704H,"2,118.20",REDACTED - PAYMENT TO INDIVIDUAL
Children and Adult Services,Head of Adults,Transfer Payments,515201,Social Services Clients,05-Dec-2013,2677328-1382799H,982.72,REDACTED - PAYMENT TO INDIVIDUAL
Children and Adult Services,Head of Adults,Transfer Payments,515201,Social Services Clients,05-Dec-2013,2677329-1385497H,588.92,REDACTED - PAYMENT TO INDIVIDUAL
Children and Adult Services,Head of Adults,Transfer Payments,515201,Social Services Clients,05-Dec-2013,2677331-1385132H,844.00,REDACTED - PAYMENT TO INDIVIDUAL
Children and Adult Services,Head of Adults,Transfer Payments,515201,Social Services Clients,05-Dec-2013,2677335-1380465H,"1,600.00",REDACTED - PAYMENT TO INDIVIDUAL
Children and Adult Services,Head of Adults,Transfer Payments,515201,Social Services Clients,05-Dec-2013,2677336-1381880H,794.52,REDACTED - PAYMENT TO INDIVIDUAL
Children and Adult Services,Head of Adults,Transfer Payments,515201,Social Services Clients,05-Dec-2013,2677337-1379490H,510.72,REDACTED - PAYMENT TO INDIVIDUAL
Children and Adult Services,Head of Adults,Transfer Payments,515201,Social Services Clients,05-Dec-2013,2677342-1382924H,842.88,REDACTED - PAYMENT TO INDIVIDUAL
Children and Adult Services,Head of Adults,Third Party Payments,470101,Purchase of Care,05-Dec-2013,2677344-2132230,"1,792.92",ALLIANCE CARE.
Children and Adult Services,Head of Adults,Third Party Payments,470101,Purchase of Care,05-Dec-2013,2677344-2132231,"1,792.92",ALLIANCE CARE.
Children and Adult Services,Head of Adults,Third Party Payments,470101,Purchase of Care,05-Dec-2013,2677344-2132232,"1,267.96",ALLIANCE CARE.
Children and Adult Services,Head of Adults,Third Party Payments,470101,Purchase of Care,05-Dec-2013,2677344-2132233,"1,189.68",ALLIANCE CARE.
Children and Adult Services,Head of Adults,Third Party Payments,470101,Purchase of Care,05-Dec-2013,2677344-2132234,753.76,ALLIANCE CARE.
Children and Adult Services,Head of Adults,Third Party Payments,470101,Purchase of Care,05-Dec-2013,2677344-2132235,866.96,ALLIANCE CARE.
Children and Adult Services,Head of Adults,Third Party Payments,470101,Purchase of Care,05-Dec-2013,2677344-2132237,"1,280.65",ALLIANCE CARE.
Children and Adult Services,Head of Adults,Third Party Payments,470101,Purchase of Care,05-Dec-2013,2677344-2132238,745.84,ALLIANCE CARE.
Children and Adult Services,Head of Adults,Third Party Payments,470101,Purchase of Care,05-Dec-2013,2677344-2132239,512.26,ALLIANCE CARE.
Children and Adult Services,Head of Adults,Third Party Payments,470101,Purchase of Care,05-Dec-2013,2677344-2132241,"1,163.36",ALLIANCE CARE.
Children and Adult Services,Head of Adults,Third Party Payments,470101,Purchase of Care,05-Dec-2013,2677344-2132242,"1,306.92",ALLIANCE CARE.
Children and Adult Services,Head of Adults,Third Party Payments,470101,Purchase of Care,05-Dec-2013,2677344-2132243,"1,257.08",ALLIANCE CARE.
Children and Adult Services,Head of Adults,Third Party Payments,470101,Purchase of Care,05-Dec-2013,2677344-2132244,"2,544.77",ALLIANCE CARE.
Children and Adult Services,Head of Adults,Third Party Payments,470101,Purchase of Care,05-Dec-2013,2677344-2132245,"1,002.39",ALLIANCE CARE.
Children and Adult Services,Head of Adults,Third Party Payments,470101,Purchase of Care,05-Dec-2013,2677344-2132246,"1,792.92",ALLIANCE CARE.
Children and Adult Services,Head of Adults,Third Party Payments,470101,Purchase of Care,05-Dec-2013,2677344-2132247,"1,792.92",ALLIANCE CARE.
Children and Adult Services,Head of Adults,Third Party Payments,470101,Purchase of Care,05-Dec-2013,2677344-2132248,"1,306.92",ALLIANCE CARE.
Children and Adult Services,Head of Adults,Third Party Payments,470101,Purchase of Care,05-Dec-2013,2677344-2132249,"1,031.80",ALLIANCE CARE.
Children and Adult Services,Head of Adults,Third Party Payments,470101,Purchase of Care,05-Dec-2013,2677344-2132250,"1,792.92",ALLIANCE CARE.
Children and Adult Services,Head of Adults,Third Party Payments,470101,Purchase of Care,05-Dec-2013,2677344-2132251,"1,911.52",ALLIANCE CARE.
Children and Adult Services,Head of Adults,Third Party Payments,470101,Purchase of Care,05-Dec-2013,2677344-2132252,"1,306.92",ALLIANCE CARE.
Children and Adult Services,Head of Adults,Third Party Payments,470101,Purchase of Care,05-Dec-2013,2677344-2132253,"1,306.92",ALLIANCE CARE.
Children and Adult Services,Head of Adults,Third Party Payments,474101,Purchase of Care,05-Dec-2013,2677344-2133357,"1,247.36",ALLIANCE CARE.
Children and Adult Services,Head of Adults,Third Party Payments,474101,Purchase of Care,05-Dec-2013,2677344-2133360,"1,468.00",ALLIANCE CARE.
Children and Adult Services,Head of Adults,Third Party Payments,474101,Purchase of Care,05-Dec-2013,2677344-2133362,"1,334.24",ALLIANCE CARE.
Children and Adult Services,Head of Adults,Third Party Payments,470101,Purchase of Care,05-Dec-2013,2677344-2133928,"1,504.96",ALLIANCE CARE.
Children and Adult Services,Head of Adults,Third Party Payments,471101,Purchase of Care,05-Dec-2013,2677344-2135472,"1,377.80",ALLIANCE CARE.
Children and Adult Services,Head of Adults,Third Party Payments,471101,Purchase of Care,05-Dec-2013,2677344-2135473,"1,261.96",ALLIANCE CARE.
Children and Adult Services,Head of Adults,Third Party Payments,471101,Purchase of Care,05-Dec-2013,2677344-2135474,"1,102.80",ALLIANCE CARE.
Children and Adult Services,Head of Adults,Third Party Payments,471101,Purchase of Care,05-Dec-2013,2677344-2135475,"1,377.80",ALLIANCE CARE.
Children and Adult Services,Head of Adults,Third Party Payments,471101,Purchase of Care,05-Dec-2013,2677344-2135476,"1,312.36",ALLIANCE CARE.
Children and Adult Services,Head of Adults,Third Party Payments,471101,Purchase of Care,05-Dec-2013,2677344-2135477,"1,377.80",ALLIANCE CARE.
Children and Adult Services,Head of Adults,Third Party Payments,471101,Purchase of Care,05-Dec-2013,2677344-2135478,"1,863.80",ALLIANCE CARE.
Children and Adult Services,Head of Adults,Third Party Payments,471101,Purchase of Care,05-Dec-2013,2677344-2135479,"1,144.36",ALLIANCE CARE.
Children and Adult Services,Head of Adults,Third Party Payments,471101,Purchase of Care,05-Dec-2013,2677344-2135480,"1,365.28",ALLIANCE CARE.
Children and Adult Services,Head of Adults,Third Party Payments,471101,Purchase of Care,05-Dec-2013,2677344-2135481,"1,272.60",ALLIANCE CARE.
Children and Adult Services,Head of Adults,Third Party Payments,471101,Purchase of Care,05-Dec-2013,2677344-2135482,"1,194.36",ALLIANCE CARE.
Children and Adult Services,Head of Adults,Third Party Payments,471101,Purchase of Care,05-Dec-2013,2677344-2135483,"1,863.80",ALLIANCE CARE.
Children and Adult Services,Head of Adults,Third Party Payments,471101,Purchase of Care,05-Dec-2013,2677344-2135484,766.11,ALLIANCE CARE.
Children and Adult Services,Head of Adults,Third Party Payments,474101,Purchase of Care,05-Dec-2013,2677344-2136033,541.88,ALLIANCE CARE.
Children and Adult Services,Head of Adults,Third Party Payments,470101,Purchase of Care,05-Dec-2013,2677344-2136040,"1,088.56",ALLIANCE CARE.
